Workbook

Sheet TOC
C1: Table of Contents | V1: Macros
B3: Workbook: | C3: =CELL("filename",A1) -> D:\William\Dropbox\Web\Dreamweaver\Miller Solar\public_html\MillerSolar\case_studies\Old_Creek_Files\[Outback Analysis.xlsm]TOC
B4: Last Page: | C4: 12
A6: Sheet | B6: Date | C6: Client | D6: Project
A7: 3 | B7: =IFERROR(INDIRECT($A7&"!b7"),"") -> 00:00:00 | C7: =IFERROR(INDIRECT($A7&"!b5"),"") -> 0 | D7: =IFERROR(INDIRECT($A7&"!b6"),"") -> 0
A8: =IF(A7 <= $C$4-1,A7+1," ") -> 4 | B8: =IFERROR(INDIRECT($A8&"!b7"),"") -> 00:00:00 | C8: =IFERROR(INDIRECT($A8&"!b5"),"") -> Jacobson | D8: =IFERROR(INDIRECT($A8&"!b6"),"") -> 0
A9: =IF(A8 <= $C$4-1,A8+1," ") -> 5 | B9: 2018-08-29 | C9: Jacobson | D9: Settings
A10: 6 | B10: 2019-01-18 | C10: Jacobson | D10: Event Log
A11: 7 | B11: 2019-01-18 | C11: Joacobson | D11: FNDC Log
A12: 8 | B12: 2019-01-18 | C12: Jacobson | D12: CC Log
A13: 9 | B13: 00:00:00 | C13: Pataye | D13: Radian
A14: 10 | B14: 00:00:00 | C14: 0 | D14: 0 | AC14: 3 | AE14: 4 | AG14: 5 | AH14: 6 | AI14: 7
A15: 11 | B15: 00:00:00 | C15: 0 | D15: 0
A16: 12 | B16: 00:00:00 | C16: 0 | D16: 0
L18: Instructions
L19: 1 | M19: Ctl+h to go home
L20: 2 | M20: Highlight a row on TOC page, press F5 and enter to go to page
B58: =IFERROR(INDIRECT("Sheet"&$A58&"!b7"),"") -> 

Sheet Template
A1: Miller Solar
A2: 17395 Oak Rd. Atascadero, CA 93422
A3: WORKSHEET
A5: Client:
A6: Project:
A7: Date: | D7: Revision:
A10: Radian | B10: Date | C10: Time | D10: Port | E10: Device Type (6) | F10: L1 Inverter Current | G10: L1 Charger Current | H10: L1 Buy Current | I10: L1 Sell Current | J10: L1 Grid input Voltage | K10: L1 Generator input voltage | L10: L1 Output Voltage | M10: L2 Inverter Current | N10: L2 Charger Current | O10: L2 Buy Current | P10: L2 Sell Current | Q10: L2 Grid input Voltage | R10: L2 Generator input Voltage | S10: L2 Output Voltage | T10: Inverter operating mode | U10: Error Codes | V10: AC mode | W10: Battery Voltage | X10: Misc | Y10: Warning Codes
A11: FXR | C11: Time | D11: Port | E11: Device Type (5) | F11: L1 Inverter Current | G11: L1 Charger Current | H11: L1 Buy Current | I11: L1 Sell Current | J11: L1 Grid input Voltage | K11: L1 Generator input voltage | L11: L1 Output Voltage | M11: L2 Inverter Current | N11: L2 Charger Current | O11: L2 Buy Current | P11: L2 Sell Current | Q11: L2 Grid input Voltage | R11: L2 Generator input Voltage | S11: L2 Output Voltage | T11: Inverter operating mode | U11: Error Codes | V11: AC mode | W11: Battery Voltage | X11: Misc | Y11: Warning Codes
A12: FX | B12: Date | C12: Time | D12: Port | E12: Device Type (2) | F12: Inverter Current | G12: Charger Current | H12: Buy Current | I12: AC In Voltage | J12: AC Out Voltage | K12: Sell Current | L12: Operating Mode | M12: Error Code | N12: AC Mode | O12: Battery Voltage | P12: Misc | Q12: Warning Code
A13: CC | B13: Date | C13: Time | D13: Port | E13: Device Type (3) | F13: unused | G13: Charger Current | H13: PV Current | I13: PV Voltage | J13: Daily KWh | K13: CC Amps (tenths) | L13: Aux Mode | M13: Error Code | N13: Mode | O13: Battery Voltage | P13: Amp Hours | Q13: unused
A14: FNDC | B14: Date | C14: Time | D14: Port | E14: Device Type (4) | F14: Shunt A Amps | G14: Shunt B Amps | H14: Shunt C Amps | I14: Extra Data Identifier | J14: Extra Data | K14: Battery Voltage | L14: SOC | M14: Shunt Enable | N14: Status Flag | O14: Battery Temp

Sheet 3
A1: Miller Solar
A2: 17395 Oak Rd. Atascadero, CA 93422
A3: ENGINEERING WORKSHEET | J3: Solo | K3: Duo | L3: Trio
J4: 80 | K4: =+J4+30 -> 110 | L4: =+K4+80 -> 190
A5: Client:
A6: Project:
A7: Date: | D7: Revision:
A10: Distance one way | B10: 50
A11: Drive time one way | B11: 1
A13: Qty | B13: Description | C13: Unit | D13: Unit Qty | E13: Extension
A14: Preliminary
A15: 1 | B15: Design | C15: =+$J$4 -> 80 | E15: =+A15*C15 -> 80
B16: Site visit | C16: =+$J$4 -> 80 | E16: =+A16*C16 -> 0
C18: Subtotal | E18: =SUM(E15:E17) -> 80
C19: Profit | D19: 0.2 | E19: =+E18*D19 -> 16
C20: Total | E20: =SUM(E18:E19) -> 96 | G20: =+E20 -> 96
A22: Major components
E23: =+A23*C23 -> 0
E24: =+A24*C24 -> 0
E25: =+A25*C25 -> 0
E26: =+A26*C26 -> 0
E27: =+A27*C27 -> 0
C28: Subtotal | E28: =SUM(E23:E27) -> 0
C29: Markup | D29: 0.4 | E29: =+E28*D29 -> 0
C30: Total | E30: =SUM(E28:E29) -> 0 | F30: =+E30 -> 0
F31: =SUM(F13:F30) -> 0 | G31: =+F31 -> 0
A33: Project
A34: Materials
A35: 1 | B35: Item | C35: 1 | D35: 1 | E35: =+A35*C35/D35 -> 1
C38: Subtotal | E38: =SUM(E35:E37) -> 1
C39: Markup | D39: 0.4 | E39: =+E38*D39 -> 0.4
C40: Total | E40: =SUM(E38:E39) -> 1.4 | F40: =+E40 -> 1.4
A42: Labor
A43: =+$B$11 -> 1 | B43: Drive | C43: =+$L$4 -> 190 | E43: =+A43*C43 -> 190
A44: 8 | B44: Task | C44: =+$L$4 -> 190 | E44: =+A44*C44 -> 1520
A45: =+$B$11 -> 1 | B45: Drive | C45: =+$L$4 -> 190 | E45: =+A45*C45 -> 190
C47: Subtotal | E47: =SUM(E43:E46) -> 1900
C48: Profit | D48: 0.2 | E48: =+E47*D48 -> 380
C49: Total | E49: =SUM(E47:E48) -> 2280 | F49: =+E49 -> 2280
F50: =SUM(F34:F49) -> 2281.4 | G50: =+F50 -> 2281.4
A52: Totals
B53: Description | C53: One Way | D53: Distance | E53: Rate
A54: =COUNTIF(B13:B50,"Drive") -> 2 | B54: Drive | C54: =B10 -> 50 | D54: =+A54*C54 -> 100 | E54: 0.75 | F54: =+D54*E54 -> 75 | G54: =+F54 -> 75
A56: Total | G56: =SUM(G14:G55) -> 2452.4

Sheet 4
A1: Miller Solar
A2: 17395 Oak Rd. Atascadero, CA 93422
A3: WORKSHEET
A5: Client: | B5: Jacobson
A6: Project:
A7: Date: | D7: Revision:
A10: FXR | B10: Date | C10: Time | D10: Port | E10: Device Type (5) | F10: L1 Inverter Current | G10: L1 Charger Current | H10: L1 Buy Current | I10: L1 Sell Current | J10: L1 Grid input Voltage | K10: L1 Generator input voltage | L10: L1 Output Voltage | M10: L2 Inverter Current | N10: L2 Charger Current | O10: L2 Buy Current | P10: L2 Sell Current | Q10: L2 Grid input Voltage | R10: L2 Generator input Voltage | S10: L2 Output Voltage | T10: Inverter operating mode | U10: Error Codes | V10: AC mode | W10: Battery Voltage | X10: Misc | Y10: Warning Codes
B11: 1/18/19 | C11: 12:10:09 | D11: 1 | E11: 5 | F11: 0 | G11: 0 | H11: 0 | I11: 0 | J11: 0 | K11: 0 | L11: 0 | M11: 2 | N11: 0 | O11: 0 | P11: 0 | Q11: 0 | R11: 0 | S11: 122 | T11: 2 | U11: 0 | V11: 0 | W11: 548 | X11: 60 | Y11: 0
B12: 1/18/19 | C12: 12:10:09 | D12: 2 | E12: 5 | F12: 0 | G12: 0 | H12: 0 | I12: 0 | J12: 0 | K12: 0 | L12: 0 | M12: 2 | N12: 0 | O12: 0 | P12: 0 | Q12: 0 | R12: 0 | S12: 121 | T12: 2 | U12: 0 | V12: 0 | W12: 548 | X12: 44 | Y12: 0
B13: 1/18/19 | C13: 12:10:09 | D13: 3 | E13: 4 | F13: 145 | G13: 256 | H13: 0 | I13: 65 | J13: 6 | K13: 549 | L13: 100 | M13: 110 | N13: 8 | O13: 29
B14: 1/18/19 | C14: 12:10:09 | D14: 7 | E14: 5 | F14: 0 | G14: 0 | H14: 0 | I14: 0 | J14: 0 | K14: 0 | L14: 0 | M14: 1 | N14: 0 | O14: 0 | P14: 0 | Q14: 0 | R14: 0 | S14: 122 | T14: 2 | U14: 0 | V14: 0 | W14: 548 | X14: 44 | Y14: 0
B15: 1/18/19 | C15: 12:10:09 | D15: 8 | E15: 5 | F15: 0 | G15: 0 | H15: 0 | I15: 0 | J15: 0 | K15: 0 | L15: 0 | M15: 1 | N15: 0 | O15: 0 | P15: 0 | Q15: 0 | R15: 0 | S15: 122 | T15: 2 | U15: 0 | V15: 0 | W15: 548 | X15: 44 | Y15: 0
B16: 1/18/19 | C16: 12:10:09 | D16: 9 | E16: 3 | F16: 0 | G16: 11 | H16: 6 | I16: 104 | J16: 6 | K16: 0 | L16: 3 | M16: 0 | N16: 1 | O16: 552 | P16: 10 | Q16: 0
B17: 1/18/19 | C17: 12:10:09 | D17: 10 | E17: 3 | F17: 0 | G17: 13 | H17: 8 | I17: 99 | J17: 7 | K17: 8 | L17: 3 | M17: 0 | N17: 1 | O17: 552 | P17: 14 | Q17: 0
B18: 1/18/19 | C18: 12:10:09 | D18: 1 | E18: 5 | F18: 0 | G18: 0 | H18: 0 | I18: 0 | J18: 0 | K18: 0 | L18: 0 | M18: 2 | N18: 0 | O18: 0 | P18: 0 | Q18: 0 | R18: 0 | S18: 122 | T18: 2 | U18: 0 | V18: 0 | W18: 548 | X18: 60 | Y18: 0
B19: 1/18/19 | C19: 12:10:09 | D19: 2 | E19: 5 | F19: 0 | G19: 0 | H19: 0 | I19: 0 | J19: 0 | K19: 0 | L19: 0 | M19: 2 | N19: 0 | O19: 0 | P19: 0 | Q19: 0 | R19: 0 | S19: 121 | T19: 2 | U19: 0 | V19: 0 | W19: 548 | X19: 44 | Y19: 0
B20: 1/18/19 | C20: 12:10:09 | D20: 3 | E20: 4 | F20: 145 | G20: 256 | H20: 0 | I20: 2 | J20: 1 | K20: 549 | L20: 100 | M20: 110 | N20: 8 | O20: 29
B21: 1/18/19 | C21: 12:10:09 | D21: 7 | E21: 5 | F21: 0 | G21: 0 | H21: 0 | I21: 0 | J21: 0 | K21: 0 | L21: 0 | M21: 1 | N21: 0 | O21: 0 | P21: 0 | Q21: 0 | R21: 0 | S21: 122 | T21: 2 | U21: 0 | V21: 0 | W21: 548 | X21: 44 | Y21: 0
B22: 1/18/19 | C22: 12:10:09 | D22: 8 | E22: 5 | F22: 0 | G22: 0 | H22: 0 | I22: 0 | J22: 0 | K22: 0 | L22: 0 | M22: 1 | N22: 0 | O22: 0 | P22: 0 | Q22: 0 | R22: 0 | S22: 122 | T22: 2 | U22: 0 | V22: 0 | W22: 548 | X22: 44 | Y22: 0
B23: 1/18/19 | C23: 12:10:09 | D23: 9 | E23: 3 | F23: 0 | G23: 11 | H23: 6 | I23: 104 | J23: 6 | K23: 0 | L23: 3 | M23: 0 | N23: 1 | O23: 552 | P23: 10 | Q23: 0
B24: 1/18/19 | C24: 12:10:09 | D24: 10 | E24: 3 | F24: 0 | G24: 13 | H24: 8 | I24: 99 | J24: 7 | K24: 8 | L24: 3 | M24: 0 | N24: 1 | O24: 552 | P24: 14 | Q24: 0
B25: 1/18/19 | C25: 12:10:10 | D25: 1 | E25: 5 | F25: 0 | G25: 0 | H25: 0 | I25: 0 | J25: 0 | K25: 0 | L25: 0 | M25: 2 | N25: 0 | O25: 0 | P25: 0 | Q25: 0 | R25: 0 | S25: 122 | T25: 2 | U25: 0 | V25: 0 | W25: 548 | X25: 60 | Y25: 0
B26: 1/18/19 | C26: 12:10:10 | D26: 2 | E26: 5 | F26: 0 | G26: 0 | H26: 0 | I26: 0 | J26: 0 | K26: 0 | L26: 0 | M26: 2 | N26: 0 | O26: 0 | P26: 0 | Q26: 0 | R26: 0 | S26: 121 | T26: 2 | U26: 0 | V26: 0 | W26: 548 | X26: 44 | Y26: 0
B27: 1/18/19 | C27: 12:10:10 | D27: 3 | E27: 4 | F27: 145 | G27: 254 | H27: 0 | I27: 3 | J27: 10 | K27: 548 | L27: 100 | M27: 110 | N27: 8 | O27: 29
B28: 1/18/19 | C28: 12:10:10 | D28: 7 | E28: 5 | F28: 0 | G28: 0 | H28: 0 | I28: 0 | J28: 0 | K28: 0 | L28: 0 | M28: 1 | N28: 0 | O28: 0 | P28: 0 | Q28: 0 | R28: 0 | S28: 122 | T28: 2 | U28: 0 | V28: 0 | W28: 548 | X28: 44 | Y28: 0
B29: 1/18/19 | C29: 12:10:10 | D29: 8 | E29: 5 | F29: 0 | G29: 0 | H29: 0 | I29: 0 | J29: 0 | K29: 0 | L29: 0 | M29: 1 | N29: 0 | O29: 0 | P29: 0 | Q29: 0 | R29: 0 | S29: 122 | T29: 2 | U29: 0 | V29: 0 | W29: 548 | X29: 44 | Y29: 0
B30: 1/18/19 | C30: 12:10:10 | D30: 9 | E30: 3 | F30: 0 | G30: 10 | H30: 5 | I30: 104 | J30: 6 | K30: 9 | L30: 3 | M30: 0 | N30: 1 | O30: 552 | P30: 10 | Q30: 0
B31: 1/18/19 | C31: 12:10:10 | D31: 10 | E31: 3 | F31: 0 | G31: 14 | H31: 8 | I31: 98 | J31: 7 | K31: 0 | L31: 3 | M31: 0 | N31: 1 | O31: 552 | P31: 14 | Q31: 0
B32: 1/18/19 | C32: 12:10:11 | D32: 1 | E32: 5 | F32: 0 | G32: 0 | H32: 0 | I32: 0 | J32: 0 | K32: 0 | L32: 0 | M32: 2 | N32: 0 | O32: 0 | P32: 0 | Q32: 0 | R32: 0 | S32: 122 | T32: 2 | U32: 0 | V32: 0 | W32: 548 | X32: 60 | Y32: 0
B33: 1/18/19 | C33: 12:10:11 | D33: 2 | E33: 5 | F33: 0 | G33: 0 | H33: 0 | I33: 0 | J33: 0 | K33: 0 | L33: 0 | M33: 2 | N33: 0 | O33: 0 | P33: 0 | Q33: 0 | R33: 0 | S33: 121 | T33: 2 | U33: 0 | V33: 0 | W33: 548 | X33: 44 | Y33: 0
B34: 1/18/19 | C34: 12:10:11 | D34: 3 | E34: 4 | F34: 146 | G34: 255 | H34: 0 | I34: 4 | J34: 0 | K34: 549 | L34: 100 | M34: 110 | N34: 8 | O34: 29
B35: 1/18/19 | C35: 12:10:11 | D35: 7 | E35: 5 | F35: 0 | G35: 0 | H35: 0 | I35: 0 | J35: 0 | K35: 0 | L35: 0 | M35: 1 | N35: 0 | O35: 0 | P35: 0 | Q35: 0 | R35: 0 | S35: 122 | T35: 2 | U35: 0 | V35: 0 | W35: 548 | X35: 44 | Y35: 0
B36: 1/18/19 | C36: 12:10:11 | D36: 8 | E36: 5 | F36: 0 | G36: 0 | H36: 0 | I36: 0 | J36: 0 | K36: 0 | L36: 0 | M36: 1 | N36: 0 | O36: 0 | P36: 0 | Q36: 0 | R36: 0 | S36: 122 | T36: 2 | U36: 0 | V36: 0 | W36: 548 | X36: 44 | Y36: 0
B37: 1/18/19 | C37: 12:10:11 | D37: 9 | E37: 3 | F37: 0 | G37: 11 | H37: 6 | I37: 104 | J37: 6 | K37: 0 | L37: 3 | M37: 0 | N37: 1 | O37: 552 | P37: 10 | Q37: 0
B38: 1/18/19 | C38: 12:10:11 | D38: 10 | E38: 3 | F38: 0 | G38: 13 | H38: 8 | I38: 98 | J38: 7 | K38: 9 | L38: 3 | M38: 0 | N38: 1 | O38: 552 | P38: 14 | Q38: 0
B39: 1/18/19 | C39: 12:10:12 | D39: 1 | E39: 5 | F39: 0 | G39: 0 | H39: 0 | I39: 0 | J39: 0 | K39: 0 | L39: 0 | M39: 2 | N39: 0 | O39: 0 | P39: 0 | Q39: 0 | R39: 0 | S39: 122 | T39: 2 | U39: 0 | V39: 0 | W39: 548 | X39: 60 | Y39: 0
B40: 1/18/19 | C40: 12:10:12 | D40: 2 | E40: 5 | F40: 0 | G40: 0 | H40: 0 | I40: 0 | J40: 0 | K40: 0 | L40: 0 | M40: 2 | N40: 0 | O40: 0 | P40: 0 | Q40: 0 | R40: 0 | S40: 121 | T40: 2 | U40: 0 | V40: 0 | W40: 548 | X40: 44 | Y40: 0
B41: 1/18/19 | C41: 12:10:12 | D41: 3 | E41: 4 | F41: 145 | G41: 254 | H41: 0 | I41: 5 | J41: 0 | K41: 548 | L41: 100 | M41: 110 | N41: 8 | O41: 29
B42: 1/18/19 | C42: 12:10:12 | D42: 7 | E42: 5 | F42: 0 | G42: 0 | H42: 0 | I42: 0 | J42: 0 | K42: 0 | L42: 0 | M42: 1 | N42: 0 | O42: 0 | P42: 0 | Q42: 0 | R42: 0 | S42: 122 | T42: 2 | U42: 0 | V42: 0 | W42: 548 | X42: 44 | Y42: 0
B43: 1/18/19 | C43: 12:10:12 | D43: 8 | E43: 5 | F43: 0 | G43: 0 | H43: 0 | I43: 0 | J43: 0 | K43: 0 | L43: 0 | M43: 1 | N43: 0 | O43: 0 | P43: 0 | Q43: 0 | R43: 0 | S43: 122 | T43: 2 | U43: 0 | V43: 0 | W43: 548 | X43: 44 | Y43: 0
B44: 1/18/19 | C44: 12:10:12 | D44: 9 | E44: 3 | F44: 0 | G44: 10 | H44: 5 | I44: 104 | J44: 6 | K44: 6 | L44: 3 | M44: 0 | N44: 1 | O44: 552 | P44: 10 | Q44: 0
B45: 1/18/19 | C45: 12:10:12 | D45: 10 | E45: 3 | F45: 0 | G45: 14 | H45: 8 | I45: 98 | J45: 7 | K45: 2 | L45: 3 | M45: 0 | N45: 1 | O45: 552 | P45: 14 | Q45: 0
B46: 1/18/19 | C46: 12:10:13 | D46: 1 | E46: 5 | F46: 0 | G46: 0 | H46: 0 | I46: 0 | J46: 0 | K46: 0 | L46: 0 | M46: 2 | N46: 0 | O46: 0 | P46: 0 | Q46: 0 | R46: 0 | S46: 122 | T46: 2 | U46: 0 | V46: 0 | W46: 548 | X46: 60 | Y46: 0
B47: 1/18/19 | C47: 12:10:13 | D47: 2 | E47: 5 | F47: 0 | G47: 0 | H47: 0 | I47: 0 | J47: 0 | K47: 0 | L47: 0 | M47: 2 | N47: 0 | O47: 0 | P47: 0 | Q47: 0 | R47: 0 | S47: 121 | T47: 2 | U47: 0 | V47: 0 | W47: 548 | X47: 44 | Y47: 0
B48: 1/18/19 | C48: 12:10:13 | D48: 3 | E48: 4 | F48: 146 | G48: 254 | H48: 0 | I48: 6 | J48: 16 | K48: 549 | L48: 100 | M48: 110 | N48: 8 | O48: 29
B49: 1/18/19 | C49: 12:10:13 | D49: 7 | E49: 5 | F49: 0 | G49: 0 | H49: 0 | I49: 0 | J49: 0 | K49: 0 | L49: 0 | M49: 1 | N49: 0 | O49: 0 | P49: 0 | Q49: 0 | R49: 0 | S49: 122 | T49: 2 | U49: 0 | V49: 0 | W49: 548 | X49: 44 | Y49: 0
B50: 1/18/19 | C50: 12:10:13 | D50: 8 | E50: 5 | F50: 0 | G50: 0 | H50: 0 | I50: 0 | J50: 0 | K50: 0 | L50: 0 | M50: 1 | N50: 0 | O50: 0 | P50: 0 | Q50: 0 | R50: 0 | S50: 122 | T50: 2 | U50: 0 | V50: 0 | W50: 548 | X50: 44 | Y50: 0
B51: 1/18/19 | C51: 12:10:13 | D51: 9 | E51: 3 | F51: 0 | G51: 10 | H51: 6 | I51: 104 | J51: 6 | K51: 9 | L51: 3 | M51: 0 | N51: 1 | O51: 552 | P51: 10 | Q51: 0
B52: 1/18/19 | C52: 12:10:13 | D52: 10 | E52: 3 | F52: 0 | G52: 13 | H52: 8 | I52: 99 | J52: 7 | K52: 9 | L52: 3 | M52: 0 | N52: 1 | O52: 552 | P52: 14 | Q52: 0
B53: 1/18/19 | C53: 12:10:14 | D53: 1 | E53: 5 | F53: 0 | G53: 0 | H53: 0 | I53: 0 | J53: 0 | K53: 0 | L53: 0 | M53: 2 | N53: 0 | O53: 0 | P53: 0 | Q53: 0 | R53: 0 | S53: 122 | T53: 2 | U53: 0 | V53: 0 | W53: 548 | X53: 60 | Y53: 0
B54: 1/18/19 | C54: 12:10:14 | D54: 2 | E54: 5 | F54: 0 | G54: 0 | H54: 0 | I54: 0 | J54: 0 | K54: 0 | L54: 0 | M54: 2 | N54: 0 | O54: 0 | P54: 0 | Q54: 0 | R54: 0 | S54: 121 | T54: 2 | U54: 0 | V54: 0 | W54: 548 | X54: 44 | Y54: 0
B55: 1/18/19 | C55: 12:10:14 | D55: 3 | E55: 4 | F55: 145 | G55: 255 | H55: 0 | I55: 7 | J55: 79 | K55: 549 | L55: 100 | M55: 110 | N55: 8 | O55: 29
B56: 1/18/19 | C56: 12:10:14 | D56: 7 | E56: 5 | F56: 0 | G56: 0 | H56: 0 | I56: 0 | J56: 0 | K56: 0 | L56: 0 | M56: 1 | N56: 0 | O56: 0 | P56: 0 | Q56: 0 | R56: 0 | S56: 122 | T56: 2 | U56: 0 | V56: 0 | W56: 548 | X56: 44 | Y56: 0
B57: 1/18/19 | C57: 12:10:14 | D57: 8 | E57: 5 | F57: 0 | G57: 0 | H57: 0 | I57: 0 | J57: 0 | K57: 0 | L57: 0 | M57: 1 | N57: 0 | O57: 0 | P57: 0 | Q57: 0 | R57: 0 | S57: 122 | T57: 2 | U57: 0 | V57: 0 | W57: 548 | X57: 44 | Y57: 0
B58: 1/18/19 | C58: 12:10:14 | D58: 9 | E58: 3 | F58: 0 | G58: 11 | H58: 6 | I58: 103 | J58: 6 | K58: 3 | L58: 3 | M58: 0 | N58: 1 | O58: 552 | P58: 10 | Q58: 0
B59: 1/18/19 | C59: 12:10:14 | D59: 10 | E59: 3 | F59: 0 | G59: 13 | H59: 7 | I59: 99 | J59: 7 | K59: 8 | L59: 3 | M59: 0 | N59: 1 | O59: 552 | P59: 14 | Q59: 0
B60: 1/18/19 | C60: 12:10:15 | D60: 1 | E60: 5 | F60: 0 | G60: 0 | H60: 0 | I60: 0 | J60: 0 | K60: 0 | L60: 0 | M60: 2 | N60: 0 | O60: 0 | P60: 0 | Q60: 0 | R60: 0 | S60: 122 | T60: 2 | U60: 0 | V60: 0 | W60: 548 | X60: 60 | Y60: 0
B61: 1/18/19 | C61: 12:10:15 | D61: 2 | E61: 5 | F61: 0 | G61: 0 | H61: 0 | I61: 0 | J61: 0 | K61: 0 | L61: 0 | M61: 2 | N61: 0 | O61: 0 | P61: 0 | Q61: 0 | R61: 0 | S61: 121 | T61: 2 | U61: 0 | V61: 0 | W61: 548 | X61: 44 | Y61: 0
B62: 1/18/19 | C62: 12:10:15 | D62: 3 | E62: 4 | F62: 145 | G62: 256 | H62: 0 | I62: 8 | J62: 491 | K62: 548 | L62: 100 | M62: 110 | N62: 8 | O62: 29
B63: 1/18/19 | C63: 12:10:15 | D63: 7 | E63: 5 | F63: 0 | G63: 0 | H63: 0 | I63: 0 | J63: 0 | K63: 0 | L63: 0 | M63: 1 | N63: 0 | O63: 0 | P63: 0 | Q63: 0 | R63: 0 | S63: 122 | T63: 2 | U63: 0 | V63: 0 | W63: 548 | X63: 44 | Y63: 0
B64: 1/18/19 | C64: 12:10:15 | D64: 8 | E64: 5 | F64: 0 | G64: 0 | H64: 0 | I64: 0 | J64: 0 | K64: 0 | L64: 0 | M64: 1 | N64: 0 | O64: 0 | P64: 0 | Q64: 0 | R64: 0 | S64: 122 | T64: 2 | U64: 0 | V64: 0 | W64: 548 | X64: 44 | Y64: 0
B65: 1/18/19 | C65: 12:10:15 | D65: 9 | E65: 3 | F65: 0 | G65: 11 | H65: 6 | I65: 103 | J65: 6 | K65: 1 | L65: 3 | M65: 0 | N65: 1 | O65: 552 | P65: 10 | Q65: 0
B66: 1/18/19 | C66: 12:10:15 | D66: 10 | E66: 3 | F66: 0 | G66: 13 | H66: 7 | I66: 99 | J66: 7 | K66: 8 | L66: 3 | M66: 0 | N66: 1 | O66: 552 | P66: 14 | Q66: 0
B67: 1/18/19 | C67: 12:10:16 | D67: 1 | E67: 5 | F67: 0 | G67: 0 | H67: 0 | I67: 0 | J67: 0 | K67: 0 | L67: 0 | M67: 2 | N67: 0 | O67: 0 | P67: 0 | Q67: 0 | R67: 0 | S67: 122 | T67: 2 | U67: 0 | V67: 0 | W67: 548 | X67: 60 | Y67: 0
B68: 1/18/19 | C68: 12:10:16 | D68: 2 | E68: 5 | F68: 0 | G68: 0 | H68: 0 | I68: 0 | J68: 0 | K68: 0 | L68: 0 | M68: 2 | N68: 0 | O68: 0 | P68: 0 | Q68: 0 | R68: 0 | S68: 121 | T68: 2 | U68: 0 | V68: 0 | W68: 548 | X68: 44 | Y68: 0
B69: 1/18/19 | C69: 12:10:16 | D69: 3 | E69: 4 | F69: 146 | G69: 253 | H69: 0 | I69: 9 | J69: 5 | K69: 549 | L69: 100 | M69: 110 | N69: 8 | O69: 29
B70: 1/18/19 | C70: 12:10:16 | D70: 7 | E70: 5 | F70: 0 | G70: 0 | H70: 0 | I70: 0 | J70: 0 | K70: 0 | L70: 0 | M70: 1 | N70: 0 | O70: 0 | P70: 0 | Q70: 0 | R70: 0 | S70: 122 | T70: 2 | U70: 0 | V70: 0 | W70: 548 | X70: 44 | Y70: 0
B71: 1/18/19 | C71: 12:10:16 | D71: 8 | E71: 5 | F71: 0 | G71: 0 | H71: 0 | I71: 0 | J71: 0 | K71: 0 | L71: 0 | M71: 1 | N71: 0 | O71: 0 | P71: 0 | Q71: 0 | R71: 0 | S71: 122 | T71: 2 | U71: 0 | V71: 0 | W71: 548 | X71: 44 | Y71: 0
B72: 1/18/19 | C72: 12:10:16 | D72: 9 | E72: 3 | F72: 0 | G72: 10 | H72: 5 | I72: 104 | J72: 6 | K72: 8 | L72: 3 | M72: 0 | N72: 1 | O72: 552 | P72: 10 | Q72: 0
B73: 1/18/19 | C73: 12:10:16 | D73: 10 | E73: 3 | F73: 0 | G73: 14 | H73: 8 | I73: 98 | J73: 7 | K73: 1 | L73: 3 | M73: 0 | N73: 1 | O73: 552 | P73: 14 | Q73: 0
B74: 1/18/19 | C74: 12:10:18 | D74: 1 | E74: 5 | F74: 0 | G74: 0 | H74: 0 | I74: 0 | J74: 0 | K74: 0 | L74: 0 | M74: 2 | N74: 0 | O74: 0 | P74: 0 | Q74: 0 | R74: 0 | S74: 122 | T74: 2 | U74: 0 | V74: 0 | W74: 548 | X74: 60 | Y74: 0
B75: 1/18/19 | C75: 12:10:18 | D75: 2 | E75: 5 | F75: 0 | G75: 0 | H75: 0 | I75: 0 | J75: 0 | K75: 0 | L75: 0 | M75: 2 | N75: 0 | O75: 0 | P75: 0 | Q75: 0 | R75: 0 | S75: 121 | T75: 2 | U75: 0 | V75: 0 | W75: 548 | X75: 44 | Y75: 0
B76: 1/18/19 | C76: 12:10:18 | D76: 3 | E76: 4 | F76: 146 | G76: 254 | H76: 0 | I76: 10 | J76: 2790 | K76: 549 | L76: 100 | M76: 110 | N76: 8 | O76: 29
B77: 1/18/19 | C77: 12:10:18 | D77: 7 | E77: 5 | F77: 0 | G77: 0 | H77: 0 | I77: 0 | J77: 0 | K77: 0 | L77: 0 | M77: 1 | N77: 0 | O77: 0 | P77: 0 | Q77: 0 | R77: 0 | S77: 122 | T77: 2 | U77: 0 | V77: 0 | W77: 548 | X77: 44 | Y77: 0
B78: 1/18/19 | C78: 12:10:18 | D78: 8 | E78: 5 | F78: 0 | G78: 0 | H78: 0 | I78: 0 | J78: 0 | K78: 0 | L78: 0 | M78: 1 | N78: 0 | O78: 0 | P78: 0 | Q78: 0 | R78: 0 | S78: 122 | T78: 2 | U78: 0 | V78: 0 | W78: 548 | X78: 44 | Y78: 0
B79: 1/18/19 | C79: 12:10:18 | D79: 9 | E79: 3 | F79: 0 | G79: 11 | H79: 6 | I79: 104 | J79: 6 | K79: 0 | L79: 3 | M79: 0 | N79: 1 | O79: 552 | P79: 10 | Q79: 0
B80: 1/18/19 | C80: 12:10:18 | D80: 10 | E80: 3 | F80: 0 | G80: 13 | H80: 8 | I80: 98 | J80: 7 | K80: 9 | L80: 3 | M80: 0 | N80: 1 | O80: 552 | P80: 14 | Q80: 0
B81: 1/18/19 | C81: 12:10:18 | D81: 1 | E81: 5 | F81: 0 | G81: 0 | H81: 0 | I81: 0 | J81: 0 | K81: 0 | L81: 0 | M81: 2 | N81: 0 | O81: 0 | P81: 0 | Q81: 0 | R81: 0 | S81: 122 | T81: 2 | U81: 0 | V81: 0 | W81: 548 | X81: 60 | Y81: 0
B82: 1/18/19 | C82: 12:10:18 | D82: 2 | E82: 5 | F82: 0 | G82: 0 | H82: 0 | I82: 0 | J82: 0 | K82: 0 | L82: 0 | M82: 2 | N82: 0 | O82: 0 | P82: 0 | Q82: 0 | R82: 0 | S82: 121 | T82: 2 | U82: 0 | V82: 0 | W82: 548 | X82: 44 | Y82: 0
B83: 1/18/19 | C83: 12:10:18 | D83: 3 | E83: 4 | F83: 145 | G83: 255 | H83: 0 | I83: 11 | J83: 20 | K83: 549 | L83: 100 | M83: 110 | N83: 8 | O83: 29
B84: 1/18/19 | C84: 12:10:18 | D84: 7 | E84: 5 | F84: 0 | G84: 0 | H84: 0 | I84: 0 | J84: 0 | K84: 0 | L84: 0 | M84: 1 | N84: 0 | O84: 0 | P84: 0 | Q84: 0 | R84: 0 | S84: 122 | T84: 2 | U84: 0 | V84: 0 | W84: 548 | X84: 44 | Y84: 0
B85: 1/18/19 | C85: 12:10:18 | D85: 8 | E85: 5 | F85: 0 | G85: 0 | H85: 0 | I85: 0 | J85: 0 | K85: 0 | L85: 0 | M85: 1 | N85: 0 | O85: 0 | P85: 0 | Q85: 0 | R85: 0 | S85: 122 | T85: 2 | U85: 0 | V85: 0 | W85: 548 | X85: 44 | Y85: 0
B86: 1/18/19 | C86: 12:10:18 | D86: 9 | E86: 3 | F86: 0 | G86: 11 | H86: 6 | I86: 104 | J86: 6 | K86: 0 | L86: 3 | M86: 0 | N86: 1 | O86: 552 | P86: 10 | Q86: 0
B87: 1/18/19 | C87: 12:10:18 | D87: 10 | E87: 3 | F87: 0 | G87: 13 | H87: 8 | I87: 99 | J87: 7 | K87: 9 | L87: 3 | M87: 0 | N87: 1 | O87: 552 | P87: 14 | Q87: 0
B88: 1/18/19 | C88: 12:10:19 | D88: 1 | E88: 5 | F88: 0 | G88: 0 | H88: 0 | I88: 0 | J88: 0 | K88: 0 | L88: 0 | M88: 2 | N88: 0 | O88: 0 | P88: 0 | Q88: 0 | R88: 0 | S88: 122 | T88: 2 | U88: 0 | V88: 0 | W88: 548 | X88: 60 | Y88: 0
B89: 1/18/19 | C89: 12:10:19 | D89: 2 | E89: 5 | F89: 0 | G89: 0 | H89: 0 | I89: 0 | J89: 0 | K89: 0 | L89: 0 | M89: 2 | N89: 0 | O89: 0 | P89: 0 | Q89: 0 | R89: 0 | S89: 121 | T89: 2 | U89: 0 | V89: 0 | W89: 548 | X89: 44 | Y89: 0
B90: 1/18/19 | C90: 12:10:19 | D90: 3 | E90: 4 | F90: 145 | G90: 255 | H90: 0 | I90: 12 | J90: 0 | K90: 549 | L90: 100 | M90: 110 | N90: 8 | O90: 29
B91: 1/18/19 | C91: 12:10:19 | D91: 7 | E91: 5 | F91: 0 | G91: 0 | H91: 0 | I91: 0 | J91: 0 | K91: 0 | L91: 0 | M91: 1 | N91: 0 | O91: 0 | P91: 0 | Q91: 0 | R91: 0 | S91: 122 | T91: 2 | U91: 0 | V91: 0 | W91: 548 | X91: 44 | Y91: 0
B92: 1/18/19 | C92: 12:10:19 | D92: 8 | E92: 5 | F92: 0 | G92: 0 | H92: 0 | I92: 0 | J92: 0 | K92: 0 | L92: 0 | M92: 1 | N92: 0 | O92: 0 | P92: 0 | Q92: 0 | R92: 0 | S92: 122 | T92: 2 | U92: 0 | V92: 0 | W92: 548 | X92: 44 | Y92: 0
B93: 1/18/19 | C93: 12:10:19 | D93: 9 | E93: 3 | F93: 0 | G93: 10 | H93: 5 | I93: 104 | J93: 6 | K93: 9 | L93: 3 | M93: 0 | N93: 1 | O93: 552 | P93: 10 | Q93: 0
B94: 1/18/19 | C94: 12:10:19 | D94: 10 | E94: 3 | F94: 0 | G94: 13 | H94: 8 | I94: 99 | J94: 7 | K94: 9 | L94: 3 | M94: 0 | N94: 1 | O94: 552 | P94: 14 | Q94: 0
B95: 1/18/19 | C95: 12:10:20 | D95: 1 | E95: 5 | F95: 0 | G95: 0 | H95: 0 | I95: 0 | J95: 0 | K95: 0 | L95: 0 | M95: 2 | N95: 0 | O95: 0 | P95: 0 | Q95: 0 | R95: 0 | S95: 122 | T95: 2 | U95: 0 | V95: 0 | W95: 548 | X95: 60 | Y95: 0
B96: 1/18/19 | C96: 12:10:20 | D96: 2 | E96: 5 | F96: 0 | G96: 0 | H96: 0 | I96: 0 | J96: 0 | K96: 0 | L96: 0 | M96: 2 | N96: 0 | O96: 0 | P96: 0 | Q96: 0 | R96: 0 | S96: 121 | T96: 2 | U96: 0 | V96: 0 | W96: 548 | X96: 44 | Y96: 0
B97: 1/18/19 | C97: 12:10:20 | D97: 3 | E97: 4 | F97: 145 | G97: 255 | H97: 0 | I97: 13 | J97: 2 | K97: 549 | L97: 100 | M97: 110 | N97: 8 | O97: 29
B98: 1/18/19 | C98: 12:10:20 | D98: 7 | E98: 5 | F98: 0 | G98: 0 | H98: 0 | I98: 0 | J98: 0 | K98: 0 | L98: 0 | M98: 1 | N98: 0 | O98: 0 | P98: 0 | Q98: 0 | R98: 0 | S98: 122 | T98: 2 | U98: 0 | V98: 0 | W98: 548 | X98: 44 | Y98: 0
B99: 1/18/19 | C99: 12:10:20 | D99: 8 | E99: 5 | F99: 0 | G99: 0 | H99: 0 | I99: 0 | J99: 0 | K99: 0 | L99: 0 | M99: 1 | N99: 0 | O99: 0 | P99: 0 | Q99: 0 | R99: 0 | S99: 122 | T99: 2 | U99: 0 | V99: 0 | W99: 548 | X99: 44 | Y99: 0
B100: 1/18/19 | C100: 12:10:20 | D100: 9 | E100: 3 | F100: 0 | G100: 10 | H100: 5 | I100: 104 | J100: 6 | K100: 9 | L100: 3 | M100: 0 | N100: 1 | O100: 552 | P100: 10 | Q100: 0
B101: 1/18/19 | C101: 12:10:20 | D101: 10 | E101: 3 | F101: 0 | G101: 14 | H101: 8 | I101: 99 | J101: 7 | K101: 0 | L101: 3 | M101: 0 | N101: 1 | O101: 552 | P101: 14 | Q101: 0
B102: 1/18/19 | C102: 12:10:21 | D102: 1 | E102: 5 | F102: 0 | G102: 0 | H102: 0 | I102: 0 | J102: 0 | K102: 0 | L102: 0 | M102: 2 | N102: 0 | O102: 0 | P102: 0 | Q102: 0 | R102: 0 | S102: 122 | T102: 2 | U102: 0 | V102: 0 | W102: 548 | X102: 60 | Y102: 0
B103: 1/18/19 | C103: 12:10:21 | D103: 2 | E103: 5 | F103: 0 | G103: 0 | H103: 0 | I103: 0 | J103: 0 | K103: 0 | L103: 0 | M103: 2 | N103: 0 | O103: 0 | P103: 0 | Q103: 0 | R103: 0 | S103: 121 | T103: 2 | U103: 0 | V103: 0 | W103: 548 | X103: 44 | Y103: 0
B104: 1/18/19 | C104: 12:10:21 | D104: 3 | E104: 4 | F104: 145 | G104: 255 | H104: 0 | I104: 64 | J104: 2 | K104: 548 | L104: 100 | M104: 110 | N104: 8 | O104: 29
B105: 1/18/19 | C105: 12:10:21 | D105: 7 | E105: 5 | F105: 0 | G105: 0 | H105: 0 | I105: 0 | J105: 0 | K105: 0 | L105: 0 | M105: 1 | N105: 0 | O105: 0 | P105: 0 | Q105: 0 | R105: 0 | S105: 122 | T105: 2 | U105: 0 | V105: 0 | W105: 548 | X105: 44 | Y105: 0
B106: 1/18/19 | C106: 12:10:21 | D106: 8 | E106: 5 | F106: 0 | G106: 0 | H106: 0 | I106: 0 | J106: 0 | K106: 0 | L106: 0 | M106: 1 | N106: 0 | O106: 0 | P106: 0 | Q106: 0 | R106: 0 | S106: 122 | T106: 2 | U106: 0 | V106: 0 | W106: 548 | X106: 44 | Y106: 0
B107: 1/18/19 | C107: 12:10:21 | D107: 9 | E107: 3 | F107: 0 | G107: 10 | H107: 5 | I107: 104 | J107: 6 | K107: 8 | L107: 3 | M107: 0 | N107: 1 | O107: 552 | P107: 10 | Q107: 0
B108: 1/18/19 | C108: 12:10:21 | D108: 10 | E108: 3 | F108: 0 | G108: 14 | H108: 8 | I108: 99 | J108: 7 | K108: 0 | L108: 3 | M108: 0 | N108: 1 | O108: 552 | P108: 14 | Q108: 0
B109: 1/18/19 | C109: 12:10:22 | D109: 1 | E109: 5 | F109: 0 | G109: 0 | H109: 0 | I109: 0 | J109: 0 | K109: 0 | L109: 0 | M109: 2 | N109: 0 | O109: 0 | P109: 0 | Q109: 0 | R109: 0 | S109: 122 | T109: 2 | U109: 0 | V109: 0 | W109: 548 | X109: 60 | Y109: 0
B110: 1/18/19 | C110: 12:10:22 | D110: 2 | E110: 5 | F110: 0 | G110: 0 | H110: 0 | I110: 0 | J110: 0 | K110: 0 | L110: 0 | M110: 2 | N110: 0 | O110: 0 | P110: 0 | Q110: 0 | R110: 0 | S110: 121 | T110: 2 | U110: 0 | V110: 0 | W110: 548 | X110: 44 | Y110: 0
B111: 1/18/19 | C111: 12:10:22 | D111: 3 | E111: 4 | F111: 145 | G111: 254 | H111: 0 | I111: 65 | J111: 7 | K111: 549 | L111: 100 | M111: 110 | N111: 8 | O111: 29
B112: 1/18/19 | C112: 12:10:22 | D112: 7 | E112: 5 | F112: 0 | G112: 0 | H112: 0 | I112: 0 | J112: 0 | K112: 0 | L112: 0 | M112: 1 | N112: 0 | O112: 0 | P112: 0 | Q112: 0 | R112: 0 | S112: 122 | T112: 2 | U112: 0 | V112: 0 | W112: 548 | X112: 44 | Y112: 0
B113: 1/18/19 | C113: 12:10:22 | D113: 8 | E113: 5 | F113: 0 | G113: 0 | H113: 0 | I113: 0 | J113: 0 | K113: 0 | L113: 0 | M113: 1 | N113: 0 | O113: 0 | P113: 0 | Q113: 0 | R113: 0 | S113: 122 | T113: 2 | U113: 0 | V113: 0 | W113: 548 | X113: 44 | Y113: 0
B114: 1/18/19 | C114: 12:10:22 | D114: 9 | E114: 3 | F114: 0 | G114: 10 | H114: 5 | I114: 104 | J114: 6 | K114: 7 | L114: 3 | M114: 0 | N114: 1 | O114: 552 | P114: 10 | Q114: 0
B115: 1/18/19 | C115: 12:10:22 | D115: 10 | E115: 3 | F115: 0 | G115: 14 | H115: 8 | I115: 99 | J115: 7 | K115: 0 | L115: 3 | M115: 0 | N115: 1 | O115: 552 | P115: 14 | Q115: 0
B116: 1/18/19 | C116: 12:10:23 | D116: 1 | E116: 5 | F116: 0 | G116: 0 | H116: 0 | I116: 0 | J116: 0 | K116: 0 | L116: 0 | M116: 2 | N116: 0 | O116: 0 | P116: 0 | Q116: 0 | R116: 0 | S116: 122 | T116: 2 | U116: 0 | V116: 0 | W116: 548 | X116: 60 | Y116: 0
B117: 1/18/19 | C117: 12:10:23 | D117: 2 | E117: 5 | F117: 0 | G117: 0 | H117: 0 | I117: 0 | J117: 0 | K117: 0 | L117: 0 | M117: 2 | N117: 0 | O117: 0 | P117: 0 | Q117: 0 | R117: 0 | S117: 121 | T117: 2 | U117: 0 | V117: 0 | W117: 548 | X117: 44 | Y117: 0
B118: 1/18/19 | C118: 12:10:23 | D118: 3 | E118: 4 | F118: 146 | G118: 254 | H118: 0 | I118: 2 | J118: 1 | K118: 549 | L118: 100 | M118: 110 | N118: 8 | O118: 29
B119: 1/18/19 | C119: 12:10:23 | D119: 7 | E119: 5 | F119: 0 | G119: 0 | H119: 0 | I119: 0 | J119: 0 | K119: 0 | L119: 0 | M119: 1 | N119: 0 | O119: 0 | P119: 0 | Q119: 0 | R119: 0 | S119: 122 | T119: 2 | U119: 0 | V119: 0 | W119: 548 | X119: 44 | Y119: 0
B120: 1/18/19 | C120: 12:10:23 | D120: 8 | E120: 5 | F120: 0 | G120: 0 | H120: 0 | I120: 0 | J120: 0 | K120: 0 | L120: 0 | M120: 1 | N120: 0 | O120: 0 | P120: 0 | Q120: 0 | R120: 0 | S120: 122 | T120: 2 | U120: 0 | V120: 0 | W120: 548 | X120: 44 | Y120: 0
B121: 1/18/19 | C121: 12:10:23 | D121: 9 | E121: 3 | F121: 0 | G121: 10 | H121: 5 | I121: 104 | J121: 6 | K121: 9 | L121: 3 | M121: 0 | N121: 1 | O121: 552 | P121: 10 | Q121: 0
B122: 1/18/19 | C122: 12:10:23 | D122: 10 | E122: 3 | F122: 0 | G122: 13 | H122: 8 | I122: 99 | J122: 7 | K122: 9 | L122: 3 | M122: 0 | N122: 1 | O122: 552 | P122: 14 | Q122: 0
B123: 1/18/19 | C123: 12:10:24 | D123: 1 | E123: 5 | F123: 0 | G123: 0 | H123: 0 | I123: 0 | J123: 0 | K123: 0 | L123: 0 | M123: 2 | N123: 0 | O123: 0 | P123: 0 | Q123: 0 | R123: 0 | S123: 122 | T123: 2 | U123: 0 | V123: 0 | W123: 548 | X123: 60 | Y123: 0
B124: 1/18/19 | C124: 12:10:24 | D124: 2 | E124: 5 | F124: 0 | G124: 0 | H124: 0 | I124: 0 | J124: 0 | K124: 0 | L124: 0 | M124: 2 | N124: 0 | O124: 0 | P124: 0 | Q124: 0 | R124: 0 | S124: 121 | T124: 2 | U124: 0 | V124: 0 | W124: 548 | X124: 44 | Y124: 0
B125: 1/18/19 | C125: 12:10:24 | D125: 3 | E125: 4 | F125: 145 | G125: 254 | H125: 0 | I125: 3 | J125: 10 | K125: 549 | L125: 100 | M125: 110 | N125: 8 | O125: 29
B126: 1/18/19 | C126: 12:10:24 | D126: 7 | E126: 5 | F126: 0 | G126: 0 | H126: 0 | I126: 0 | J126: 0 | K126: 0 | L126: 0 | M126: 1 | N126: 0 | O126: 0 | P126: 0 | Q126: 0 | R126: 0 | S126: 122 | T126: 2 | U126: 0 | V126: 0 | W126: 548 | X126: 44 | Y126: 0
B127: 1/18/19 | C127: 12:10:24 | D127: 8 | E127: 5 | F127: 0 | G127: 0 | H127: 0 | I127: 0 | J127: 0 | K127: 0 | L127: 0 | M127: 1 | N127: 0 | O127: 0 | P127: 0 | Q127: 0 | R127: 0 | S127: 122 | T127: 2 | U127: 0 | V127: 0 | W127: 548 | X127: 44 | Y127: 0
B128: 1/18/19 | C128: 12:10:24 | D128: 9 | E128: 3 | F128: 0 | G128: 10 | H128: 5 | I128: 104 | J128: 6 | K128: 7 | L128: 3 | M128: 0 | N128: 1 | O128: 552 | P128: 10 | Q128: 0
B129: 1/18/19 | C129: 12:10:24 | D129: 10 | E129: 3 | F129: 0 | G129: 14 | H129: 8 | I129: 99 | J129: 7 | K129: 0 | L129: 3 | M129: 0 | N129: 1 | O129: 552 | P129: 14 | Q129: 0
B130: 1/18/19 | C130: 12:10:25 | D130: 1 | E130: 5 | F130: 0 | G130: 0 | H130: 0 | I130: 0 | J130: 0 | K130: 0 | L130: 0 | M130: 2 | N130: 0 | O130: 0 | P130: 0 | Q130: 0 | R130: 0 | S130: 122 | T130: 2 | U130: 0 | V130: 0 | W130: 548 | X130: 60 | Y130: 0
B131: 1/18/19 | C131: 12:10:25 | D131: 2 | E131: 5 | F131: 0 | G131: 0 | H131: 0 | I131: 0 | J131: 0 | K131: 0 | L131: 0 | M131: 2 | N131: 0 | O131: 0 | P131: 0 | Q131: 0 | R131: 0 | S131: 121 | T131: 2 | U131: 0 | V131: 0 | W131: 548 | X131: 44 | Y131: 0
B132: 1/18/19 | C132: 12:10:25 | D132: 3 | E132: 4 | F132: 145 | G132: 256 | H132: 0 | I132: 4 | J132: 0 | K132: 549 | L132: 100 | M132: 110 | N132: 8 | O132: 29
B133: 1/18/19 | C133: 12:10:25 | D133: 7 | E133: 5 | F133: 0 | G133: 0 | H133: 0 | I133: 0 | J133: 0 | K133: 0 | L133: 0 | M133: 1 | N133: 0 | O133: 0 | P133: 0 | Q133: 0 | R133: 0 | S133: 122 | T133: 2 | U133: 0 | V133: 0 | W133: 548 | X133: 44 | Y133: 0
B134: 1/18/19 | C134: 12:10:25 | D134: 8 | E134: 5 | F134: 0 | G134: 0 | H134: 0 | I134: 0 | J134: 0 | K134: 0 | L134: 0 | M134: 1 | N134: 0 | O134: 0 | P134: 0 | Q134: 0 | R134: 0 | S134: 122 | T134: 2 | U134: 0 | V134: 0 | W134: 548 | X134: 44 | Y134: 0
B135: 1/18/19 | C135: 12:10:25 | D135: 9 | E135: 3 | F135: 0 | G135: 10 | H135: 5 | I135: 104 | J135: 6 | K135: 7 | L135: 3 | M135: 0 | N135: 1 | O135: 552 | P135: 10 | Q135: 0
B136: 1/18/19 | C136: 12:10:25 | D136: 10 | E136: 3 | F136: 0 | G136: 14 | H136: 8 | I136: 99 | J136: 7 | K136: 1 | L136: 3 | M136: 0 | N136: 1 | O136: 552 | P136: 14 | Q136: 0
B137: 1/18/19 | C137: 12:10:26 | D137: 1 | E137: 5 | F137: 0 | G137: 0 | H137: 0 | I137: 0 | J137: 0 | K137: 0 | L137: 0 | M137: 2 | N137: 0 | O137: 0 | P137: 0 | Q137: 0 | R137: 0 | S137: 122 | T137: 2 | U137: 0 | V137: 0 | W137: 548 | X137: 60 | Y137: 0
B138: 1/18/19 | C138: 12:10:26 | D138: 2 | E138: 5 | F138: 0 | G138: 0 | H138: 0 | I138: 0 | J138: 0 | K138: 0 | L138: 0 | M138: 2 | N138: 0 | O138: 0 | P138: 0 | Q138: 0 | R138: 0 | S138: 121 | T138: 2 | U138: 0 | V138: 0 | W138: 548 | X138: 44 | Y138: 0
B139: 1/18/19 | C139: 12:10:26 | D139: 3 | E139: 4 | F139: 146 | G139: 255 | H139: 0 | I139: 5 | J139: 0 | K139: 548 | L139: 100 | M139: 110 | N139: 8 | O139: 29
B140: 1/18/19 | C140: 12:10:26 | D140: 7 | E140: 5 | F140: 0 | G140: 0 | H140: 0 | I140: 0 | J140: 0 | K140: 0 | L140: 0 | M140: 1 | N140: 0 | O140: 0 | P140: 0 | Q140: 0 | R140: 0 | S140: 122 | T140: 2 | U140: 0 | V140: 0 | W140: 548 | X140: 44 | Y140: 0
B141: 1/18/19 | C141: 12:10:26 | D141: 8 | E141: 5 | F141: 0 | G141: 0 | H141: 0 | I141: 0 | J141: 0 | K141: 0 | L141: 0 | M141: 1 | N141: 0 | O141: 0 | P141: 0 | Q141: 0 | R141: 0 | S141: 122 | T141: 2 | U141: 0 | V141: 0 | W141: 548 | X141: 44 | Y141: 0
B142: 1/18/19 | C142: 12:10:26 | D142: 9 | E142: 3 | F142: 0 | G142: 10 | H142: 5 | I142: 104 | J142: 6 | K142: 8 | L142: 3 | M142: 0 | N142: 1 | O142: 552 | P142: 10 | Q142: 0
B143: 1/18/19 | C143: 12:10:26 | D143: 10 | E143: 3 | F143: 0 | G143: 14 | H143: 8 | I143: 99 | J143: 7 | K143: 1 | L143: 3 | M143: 0 | N143: 1 | O143: 552 | P143: 14 | Q143: 0
B144: 1/18/19 | C144: 12:10:27 | D144: 1 | E144: 5 | F144: 0 | G144: 0 | H144: 0 | I144: 0 | J144: 0 | K144: 0 | L144: 0 | M144: 2 | N144: 0 | O144: 0 | P144: 0 | Q144: 0 | R144: 0 | S144: 122 | T144: 2 | U144: 0 | V144: 0 | W144: 548 | X144: 60 | Y144: 0
B145: 1/18/19 | C145: 12:10:27 | D145: 2 | E145: 5 | F145: 0 | G145: 0 | H145: 0 | I145: 0 | J145: 0 | K145: 0 | L145: 0 | M145: 2 | N145: 0 | O145: 0 | P145: 0 | Q145: 0 | R145: 0 | S145: 121 | T145: 2 | U145: 0 | V145: 0 | W145: 548 | X145: 44 | Y145: 0
B146: 1/18/19 | C146: 12:10:27 | D146: 3 | E146: 4 | F146: 145 | G146: 256 | H146: 0 | I146: 6 | J146: 16 | K146: 549 | L146: 100 | M146: 110 | N146: 8 | O146: 29
B147: 1/18/19 | C147: 12:10:27 | D147: 7 | E147: 5 | F147: 0 | G147: 0 | H147: 0 | I147: 0 | J147: 0 | K147: 0 | L147: 0 | M147: 1 | N147: 0 | O147: 0 | P147: 0 | Q147: 0 | R147: 0 | S147: 122 | T147: 2 | U147: 0 | V147: 0 | W147: 548 | X147: 44 | Y147: 0
B148: 1/18/19 | C148: 12:10:27 | D148: 8 | E148: 5 | F148: 0 | G148: 0 | H148: 0 | I148: 0 | J148: 0 | K148: 0 | L148: 0 | M148: 1 | N148: 0 | O148: 0 | P148: 0 | Q148: 0 | R148: 0 | S148: 122 | T148: 2 | U148: 0 | V148: 0 | W148: 548 | X148: 44 | Y148: 0
B149: 1/18/19 | C149: 12:10:27 | D149: 9 | E149: 3 | F149: 0 | G149: 10 | H149: 5 | I149: 105 | J149: 6 | K149: 5 | L149: 3 | M149: 0 | N149: 1 | O149: 552 | P149: 10 | Q149: 0
B150: 1/18/19 | C150: 12:10:27 | D150: 10 | E150: 3 | F150: 0 | G150: 14 | H150: 8 | I150: 98 | J150: 7 | K150: 5 | L150: 3 | M150: 0 | N150: 1 | O150: 552 | P150: 14 | Q150: 0
B151: 1/18/19 | C151: 12:10:29 | D151: 1 | E151: 5 | F151: 0 | G151: 0 | H151: 0 | I151: 0 | J151: 0 | K151: 0 | L151: 0 | M151: 2 | N151: 0 | O151: 0 | P151: 0 | Q151: 0 | R151: 0 | S151: 122 | T151: 2 | U151: 0 | V151: 0 | W151: 548 | X151: 60 | Y151: 0
B152: 1/18/19 | C152: 12:10:29 | D152: 2 | E152: 5 | F152: 0 | G152: 0 | H152: 0 | I152: 0 | J152: 0 | K152: 0 | L152: 0 | M152: 2 | N152: 0 | O152: 0 | P152: 0 | Q152: 0 | R152: 0 | S152: 121 | T152: 2 | U152: 0 | V152: 0 | W152: 548 | X152: 44 | Y152: 0
B153: 1/18/19 | C153: 12:10:29 | D153: 3 | E153: 4 | F153: 145 | G153: 254 | H153: 0 | I153: 7 | J153: 79 | K153: 548 | L153: 100 | M153: 110 | N153: 8 | O153: 29
B154: 1/18/19 | C154: 12:10:29 | D154: 7 | E154: 5 | F154: 0 | G154: 0 | H154: 0 | I154: 0 | J154: 0 | K154: 0 | L154: 0 | M154: 1 | N154: 0 | O154: 0 | P154: 0 | Q154: 0 | R154: 0 | S154: 122 | T154: 2 | U154: 0 | V154: 0 | W154: 548 | X154: 44 | Y154: 0
B155: 1/18/19 | C155: 12:10:29 | D155: 8 | E155: 5 | F155: 0 | G155: 0 | H155: 0 | I155: 0 | J155: 0 | K155: 0 | L155: 0 | M155: 1 | N155: 0 | O155: 0 | P155: 0 | Q155: 0 | R155: 0 | S155: 122 | T155: 2 | U155: 0 | V155: 0 | W155: 548 | X155: 44 | Y155: 0
B156: 1/18/19 | C156: 12:10:29 | D156: 9 | E156: 3 | F156: 0 | G156: 10 | H156: 5 | I156: 104 | J156: 6 | K156: 9 | L156: 3 | M156: 0 | N156: 1 | O156: 552 | P156: 10 | Q156: 0
B157: 1/18/19 | C157: 12:10:29 | D157: 10 | E157: 3 | F157: 0 | G157: 13 | H157: 8 | I157: 99 | J157: 8 | K157: 9 | L157: 3 | M157: 0 | N157: 1 | O157: 552 | P157: 14 | Q157: 0
B158: 1/18/19 | C158: 12:10:30 | D158: 1 | E158: 5 | F158: 0 | G158: 0 | H158: 0 | I158: 0 | J158: 0 | K158: 0 | L158: 0 | M158: 2 | N158: 0 | O158: 0 | P158: 0 | Q158: 0 | R158: 0 | S158: 122 | T158: 2 | U158: 0 | V158: 0 | W158: 548 | X158: 60 | Y158: 0
B159: 1/18/19 | C159: 12:10:30 | D159: 2 | E159: 5 | F159: 0 | G159: 0 | H159: 0 | I159: 0 | J159: 0 | K159: 0 | L159: 0 | M159: 2 | N159: 0 | O159: 0 | P159: 0 | Q159: 0 | R159: 0 | S159: 121 | T159: 2 | U159: 0 | V159: 0 | W159: 548 | X159: 44 | Y159: 0
B160: 1/18/19 | C160: 12:10:30 | D160: 3 | E160: 4 | F160: 146 | G160: 254 | H160: 0 | I160: 8 | J160: 492 | K160: 549 | L160: 100 | M160: 110 | N160: 8 | O160: 29
B161: 1/18/19 | C161: 12:10:30 | D161: 7 | E161: 5 | F161: 0 | G161: 0 | H161: 0 | I161: 0 | J161: 0 | K161: 0 | L161: 0 | M161: 1 | N161: 0 | O161: 0 | P161: 0 | Q161: 0 | R161: 0 | S161: 122 | T161: 2 | U161: 0 | V161: 0 | W161: 548 | X161: 44 | Y161: 0
B162: 1/18/19 | C162: 12:10:30 | D162: 8 | E162: 5 | F162: 0 | G162: 0 | H162: 0 | I162: 0 | J162: 0 | K162: 0 | L162: 0 | M162: 1 | N162: 0 | O162: 0 | P162: 0 | Q162: 0 | R162: 0 | S162: 122 | T162: 2 | U162: 0 | V162: 0 | W162: 548 | X162: 44 | Y162: 0
B163: 1/18/19 | C163: 12:10:30 | D163: 9 | E163: 3 | F163: 0 | G163: 11 | H163: 6 | I163: 104 | J163: 6 | K163: 0 | L163: 3 | M163: 0 | N163: 1 | O163: 552 | P163: 10 | Q163: 0
B164: 1/18/19 | C164: 12:10:30 | D164: 10 | E164: 3 | F164: 0 | G164: 13 | H164: 8 | I164: 99 | J164: 8 | K164: 9 | L164: 3 | M164: 0 | N164: 1 | O164: 552 | P164: 14 | Q164: 0
B165: 1/18/19 | C165: 12:10:31 | D165: 1 | E165: 5 | F165: 0 | G165: 0 | H165: 0 | I165: 0 | J165: 0 | K165: 0 | L165: 0 | M165: 2 | N165: 0 | O165: 0 | P165: 0 | Q165: 0 | R165: 0 | S165: 122 | T165: 2 | U165: 0 | V165: 0 | W165: 548 | X165: 60 | Y165: 0
B166: 1/18/19 | C166: 12:10:31 | D166: 2 | E166: 5 | F166: 0 | G166: 0 | H166: 0 | I166: 0 | J166: 0 | K166: 0 | L166: 0 | M166: 2 | N166: 0 | O166: 0 | P166: 0 | Q166: 0 | R166: 0 | S166: 121 | T166: 2 | U166: 0 | V166: 0 | W166: 548 | X166: 44 | Y166: 0
B167: 1/18/19 | C167: 12:10:31 | D167: 3 | E167: 4 | F167: 146 | G167: 255 | H167: 0 | I167: 9 | J167: 5 | K167: 549 | L167: 100 | M167: 110 | N167: 8 | O167: 29
B168: 1/18/19 | C168: 12:10:31 | D168: 7 | E168: 5 | F168: 0 | G168: 0 | H168: 0 | I168: 0 | J168: 0 | K168: 0 | L168: 0 | M168: 1 | N168: 0 | O168: 0 | P168: 0 | Q168: 0 | R168: 0 | S168: 122 | T168: 2 | U168: 0 | V168: 0 | W168: 548 | X168: 44 | Y168: 0
B169: 1/18/19 | C169: 12:10:31 | D169: 8 | E169: 5 | F169: 0 | G169: 0 | H169: 0 | I169: 0 | J169: 0 | K169: 0 | L169: 0 | M169: 1 | N169: 0 | O169: 0 | P169: 0 | Q169: 0 | R169: 0 | S169: 122 | T169: 2 | U169: 0 | V169: 0 | W169: 548 | X169: 44 | Y169: 0
B170: 1/18/19 | C170: 12:10:31 | D170: 9 | E170: 3 | F170: 0 | G170: 10 | H170: 5 | I170: 104 | J170: 6 | K170: 9 | L170: 3 | M170: 0 | N170: 1 | O170: 552 | P170: 10 | Q170: 0
B171: 1/18/19 | C171: 12:10:31 | D171: 10 | E171: 3 | F171: 0 | G171: 13 | H171: 8 | I171: 99 | J171: 8 | K171: 9 | L171: 3 | M171: 0 | N171: 1 | O171: 552 | P171: 14 | Q171: 0
B172: 1/18/19 | C172: 12:10:32 | D172: 1 | E172: 5 | F172: 0 | G172: 0 | H172: 0 | I172: 0 | J172: 0 | K172: 0 | L172: 0 | M172: 2 | N172: 0 | O172: 0 | P172: 0 | Q172: 0 | R172: 0 | S172: 122 | T172: 2 | U172: 0 | V172: 0 | W172: 548 | X172: 60 | Y172: 0
B173: 1/18/19 | C173: 12:10:32 | D173: 2 | E173: 5 | F173: 0 | G173: 0 | H173: 0 | I173: 0 | J173: 0 | K173: 0 | L173: 0 | M173: 2 | N173: 0 | O173: 0 | P173: 0 | Q173: 0 | R173: 0 | S173: 121 | T173: 2 | U173: 0 | V173: 0 | W173: 548 | X173: 44 | Y173: 0
B174: 1/18/19 | C174: 12:10:32 | D174: 3 | E174: 4 | F174: 145 | G174: 255 | H174: 0 | I174: 10 | J174: 2791 | K174: 549 | L174: 100 | M174: 110 | N174: 8 | O174: 29
B175: 1/18/19 | C175: 12:10:32 | D175: 7 | E175: 5 | F175: 0 | G175: 0 | H175: 0 | I175: 0 | J175: 0 | K175: 0 | L175: 0 | M175: 1 | N175: 0 | O175: 0 | P175: 0 | Q175: 0 | R175: 0 | S175: 122 | T175: 2 | U175: 0 | V175: 0 | W175: 548 | X175: 44 | Y175: 0
B176: 1/18/19 | C176: 12:10:32 | D176: 8 | E176: 5 | F176: 0 | G176: 0 | H176: 0 | I176: 0 | J176: 0 | K176: 0 | L176: 0 | M176: 1 | N176: 0 | O176: 0 | P176: 0 | Q176: 0 | R176: 0 | S176: 122 | T176: 2 | U176: 0 | V176: 0 | W176: 548 | X176: 44 | Y176: 0
B177: 1/18/19 | C177: 12:10:32 | D177: 9 | E177: 3 | F177: 0 | G177: 11 | H177: 6 | I177: 104 | J177: 6 | K177: 1 | L177: 3 | M177: 0 | N177: 1 | O177: 552 | P177: 10 | Q177: 0
B178: 1/18/19 | C178: 12:10:32 | D178: 10 | E178: 3 | F178: 0 | G178: 13 | H178: 8 | I178: 99 | J178: 8 | K178: 9 | L178: 3 | M178: 0 | N178: 1 | O178: 552 | P178: 14 | Q178: 0
B179: 1/18/19 | C179: 12:10:33 | D179: 1 | E179: 5 | F179: 0 | G179: 0 | H179: 0 | I179: 0 | J179: 0 | K179: 0 | L179: 0 | M179: 2 | N179: 0 | O179: 0 | P179: 0 | Q179: 0 | R179: 0 | S179: 122 | T179: 2 | U179: 0 | V179: 0 | W179: 548 | X179: 60 | Y179: 0
B180: 1/18/19 | C180: 12:10:33 | D180: 2 | E180: 5 | F180: 0 | G180: 0 | H180: 0 | I180: 0 | J180: 0 | K180: 0 | L180: 0 | M180: 2 | N180: 0 | O180: 0 | P180: 0 | Q180: 0 | R180: 0 | S180: 121 | T180: 2 | U180: 0 | V180: 0 | W180: 548 | X180: 44 | Y180: 0
B181: 1/18/19 | C181: 12:10:33 | D181: 3 | E181: 4 | F181: 145 | G181: 256 | H181: 0 | I181: 11 | J181: 20 | K181: 549 | L181: 100 | M181: 110 | N181: 8 | O181: 29
B182: 1/18/19 | C182: 12:10:33 | D182: 7 | E182: 5 | F182: 0 | G182: 0 | H182: 0 | I182: 0 | J182: 0 | K182: 0 | L182: 0 | M182: 1 | N182: 0 | O182: 0 | P182: 0 | Q182: 0 | R182: 0 | S182: 122 | T182: 2 | U182: 0 | V182: 0 | W182: 548 | X182: 44 | Y182: 0
B183: 1/18/19 | C183: 12:10:33 | D183: 8 | E183: 5 | F183: 0 | G183: 0 | H183: 0 | I183: 0 | J183: 0 | K183: 0 | L183: 0 | M183: 1 | N183: 0 | O183: 0 | P183: 0 | Q183: 0 | R183: 0 | S183: 122 | T183: 2 | U183: 0 | V183: 0 | W183: 548 | X183: 44 | Y183: 0
B184: 1/18/19 | C184: 12:10:33 | D184: 9 | E184: 3 | F184: 0 | G184: 10 | H184: 5 | I184: 104 | J184: 6 | K184: 9 | L184: 3 | M184: 0 | N184: 1 | O184: 552 | P184: 10 | Q184: 0
B185: 1/18/19 | C185: 12:10:33 | D185: 10 | E185: 3 | F185: 0 | G185: 13 | H185: 8 | I185: 99 | J185: 8 | K185: 8 | L185: 3 | M185: 0 | N185: 1 | O185: 552 | P185: 14 | Q185: 0
B186: 1/18/19 | C186: 12:10:34 | D186: 1 | E186: 5 | F186: 0 | G186: 0 | H186: 0 | I186: 0 | J186: 0 | K186: 0 | L186: 0 | M186: 2 | N186: 0 | O186: 0 | P186: 0 | Q186: 0 | R186: 0 | S186: 122 | T186: 2 | U186: 0 | V186: 0 | W186: 548 | X186: 60 | Y186: 0
B187: 1/18/19 | C187: 12:10:34 | D187: 2 | E187: 5 | F187: 0 | G187: 0 | H187: 0 | I187: 0 | J187: 0 | K187: 0 | L187: 0 | M187: 2 | N187: 0 | O187: 0 | P187: 0 | Q187: 0 | R187: 0 | S187: 121 | T187: 2 | U187: 0 | V187: 0 | W187: 548 | X187: 44 | Y187: 0
B188: 1/18/19 | C188: 12:10:34 | D188: 3 | E188: 4 | F188: 145 | G188: 254 | H188: 0 | I188: 12 | J188: 0 | K188: 549 | L188: 100 | M188: 110 | N188: 8 | O188: 29
B189: 1/18/19 | C189: 12:10:34 | D189: 7 | E189: 5 | F189: 0 | G189: 0 | H189: 0 | I189: 0 | J189: 0 | K189: 0 | L189: 0 | M189: 1 | N189: 0 | O189: 0 | P189: 0 | Q189: 0 | R189: 0 | S189: 122 | T189: 2 | U189: 0 | V189: 0 | W189: 548 | X189: 44 | Y189: 0
B190: 1/18/19 | C190: 12:10:34 | D190: 8 | E190: 5 | F190: 0 | G190: 0 | H190: 0 | I190: 0 | J190: 0 | K190: 0 | L190: 0 | M190: 1 | N190: 0 | O190: 0 | P190: 0 | Q190: 0 | R190: 0 | S190: 122 | T190: 2 | U190: 0 | V190: 0 | W190: 548 | X190: 44 | Y190: 0
B191: 1/18/19 | C191: 12:10:34 | D191: 9 | E191: 3 | F191: 0 | G191: 11 | H191: 6 | I191: 104 | J191: 6 | K191: 1 | L191: 3 | M191: 0 | N191: 1 | O191: 552 | P191: 10 | Q191: 0
B192: 1/18/19 | C192: 12:10:34 | D192: 10 | E192: 3 | F192: 0 | G192: 13 | H192: 7 | I192: 99 | J192: 8 | K192: 8 | L192: 3 | M192: 0 | N192: 1 | O192: 552 | P192: 14 | Q192: 0
B193: 1/18/19 | C193: 12:10:35 | D193: 1 | E193: 5 | F193: 0 | G193: 0 | H193: 0 | I193: 0 | J193: 0 | K193: 0 | L193: 0 | M193: 2 | N193: 0 | O193: 0 | P193: 0 | Q193: 0 | R193: 0 | S193: 122 | T193: 2 | U193: 0 | V193: 0 | W193: 548 | X193: 60 | Y193: 0
B194: 1/18/19 | C194: 12:10:35 | D194: 2 | E194: 5 | F194: 0 | G194: 0 | H194: 0 | I194: 0 | J194: 0 | K194: 0 | L194: 0 | M194: 2 | N194: 0 | O194: 0 | P194: 0 | Q194: 0 | R194: 0 | S194: 121 | T194: 2 | U194: 0 | V194: 0 | W194: 548 | X194: 44 | Y194: 0
B195: 1/18/19 | C195: 12:10:35 | D195: 3 | E195: 4 | F195: 145 | G195: 256 | H195: 0 | I195: 13 | J195: 2 | K195: 549 | L195: 100 | M195: 110 | N195: 8 | O195: 29
B196: 1/18/19 | C196: 12:10:35 | D196: 7 | E196: 5 | F196: 0 | G196: 0 | H196: 0 | I196: 0 | J196: 0 | K196: 0 | L196: 0 | M196: 1 | N196: 0 | O196: 0 | P196: 0 | Q196: 0 | R196: 0 | S196: 122 | T196: 2 | U196: 0 | V196: 0 | W196: 548 | X196: 44 | Y196: 0
B197: 1/18/19 | C197: 12:10:35 | D197: 8 | E197: 5 | F197: 0 | G197: 0 | H197: 0 | I197: 0 | J197: 0 | K197: 0 | L197: 0 | M197: 1 | N197: 0 | O197: 0 | P197: 0 | Q197: 0 | R197: 0 | S197: 122 | T197: 2 | U197: 0 | V197: 0 | W197: 548 | X197: 44 | Y197: 0
B198: 1/18/19 | C198: 12:10:35 | D198: 9 | E198: 3 | F198: 0 | G198: 10 | H198: 5 | I198: 104 | J198: 6 | K198: 9 | L198: 3 | M198: 0 | N198: 1 | O198: 552 | P198: 10 | Q198: 0
B199: 1/18/19 | C199: 12:10:35 | D199: 10 | E199: 3 | F199: 0 | G199: 13 | H199: 8 | I199: 99 | J199: 8 | K199: 9 | L199: 3 | M199: 0 | N199: 1 | O199: 552 | P199: 14 | Q199: 0
B200: 1/18/19 | C200: 12:10:36 | D200: 1 | E200: 5 | F200: 0 | G200: 0 | H200: 0 | I200: 0 | J200: 0 | K200: 0 | L200: 0 | M200: 2 | N200: 0 | O200: 0 | P200: 0 | Q200: 0 | R200: 0 | S200: 122 | T200: 2 | U200: 0 | V200: 0 | W200: 548 | X200: 60 | Y200: 0
B201: 1/18/19 | C201: 12:10:36 | D201: 2 | E201: 5 | F201: 0 | G201: 0 | H201: 0 | I201: 0 | J201: 0 | K201: 0 | L201: 0 | M201: 2 | N201: 0 | O201: 0 | P201: 0 | Q201: 0 | R201: 0 | S201: 121 | T201: 2 | U201: 0 | V201: 0 | W201: 548 | X201: 44 | Y201: 0
B202: 1/18/19 | C202: 12:10:36 | D202: 3 | E202: 4 | F202: 146 | G202: 255 | H202: 0 | I202: 64 | J202: 2 | K202: 549 | L202: 100 | M202: 110 | N202: 8 | O202: 29
B203: 1/18/19 | C203: 12:10:36 | D203: 7 | E203: 5 | F203: 0 | G203: 0 | H203: 0 | I203: 0 | J203: 0 | K203: 0 | L203: 0 | M203: 1 | N203: 0 | O203: 0 | P203: 0 | Q203: 0 | R203: 0 | S203: 122 | T203: 2 | U203: 0 | V203: 0 | W203: 548 | X203: 44 | Y203: 0
... 1212 more rows

Sheet 5
A1: Miller Solar
A2: 17395 Oak Rd. Atascadero, CA 93422
A3: WORKSHEET
A5: Client: | B5: Jacobson
A6: Project: | B6: Settings
A7: Date: | B7: 2018-08-29 | D7: Revision:
A10: ?xml version="1.0"?
A11: -System_Config
A12: Sys_Name | B12: OutBack Power Technologies | C12: Sys_Name
A13: Sys_Title | B13: OutBack Power | C13: Sys_Title
A14: Installed_By/
A15: Installer_Name/
A16: Installer_Phone/
A17: Installer_Notes/
A18: Time_Stamp | B18: 8/29/18 18:52 | C18: Time_Stamp
A19: System Type="Off Grid"/
A20: Nominal_Voltage | B20: 48 | C20: Nominal_Voltage
A21: PV_Size_Watts | B21: 5400 | C21: PV_Size_Watts
A22: Battery_AH_Capacity | B22: 1670 | C22: Battery_AH_Capacity
A23: Generator_KW | B23: 140 | C23: Generator_KW
A24: Max_Inverter_Output_KW | B24: 144 | C24: Max_Inverter_Output_KW
A25: Max_Charger_Output_KW | B25: 98 | C25: Max_Charger_Output_KW
A27: -New_Remote
A28: Firmware | B28: 001.003.001 | C28: Firmware
A30: -Display
A32: -Backlight
A33: Red | B33: 19 | C33: Red
A34: Blue | B34: 19 | C34: Blue
A35: Green | B35: 19 | C35: Green
A36: Brightness | B36: 10 | C36: Brightness
A37: Contrast | B37: 45 | C37: Contrast
A38: Mode | B38: Auto | C38: Mode
A39: Timeout | B39: 120 | C39: Timeout
A40: /Backlight
A41: Contrast | B41: 45 | C41: Contrast
A42: /Display
A43: Button_Beep | B43: Enabled | C43: Button_Beep
A44: Wheel_Click | B44: Enabled | C44: Wheel_Click
A45: Data_Stream_Mode | B45: Serial | C45: Data_Stream_Mode
A46: Serial_Baud | B46: 19200 | C46: Serial_Baud
A47: SD_CARD_Log_Mode | B47: Excel | C47: SD_CARD_Log_Mode
A48: SD_CARD_Log_Interval | B48: 1 | C48: SD_CARD_Log_Interval
A49: Internal_Data_Log_Interval | B49: 60 | C49: Internal_Data_Log_Interval
A51: -Network
A52: DHCP | B52: Enabled | C52: DHCP
A53: IP_address | B53: 192.168.000.064 | C53: IP_address
A54: Netmask | B54: 255.255.255.000 | C54: Netmask
A55: Gateway | B55: 192.168.000.001 | C55: Gateway
A56: DNS_1 | B56: 192.168.000.002 | C56: DNS_1
A57: DNS_2 | B57: 192.168.000.003 | C57: DNS_2
A58: HTTP_Port | B58: 80 | C58: HTTP_Port
A59: FTP_Port | B59: 21 | C59: FTP_Port
A60: Telnet_Port | B60: 23 | C60: Telnet_Port
A61: Data_Stream_IP | B61: 192.168.000.080 | C61: Data_Stream_IP
A62: Data_Stream_Port | B62: 57027 | C62: Data_Stream_Port
A63: /Network
A65: -Network_Options
A66: OPTICSre | B66: Enabled | C66: OPTICSre
A67: OPTICS_Auto_Reboot_Interval | B67: 24 Hours | C67: OPTICS_Auto_Reboot_Interval
A68: SunSpec | B68: Disabled | C68: SunSpec
A69: SunSpec_Port | B69: 502 | C69: SunSpec_Port
A70: Internet_Time | B70: Enabled | C70: Internet_Time
A71: Time_Zone | B71: 65529 | C71: Time_Zone
A72: /Network_Options
A74: -Global_Charge_Controller_Output_Control Mode="Disabled"
A75: Max_Charge_Rate | B75: 80 | C75: Max_Charge_Rate
A76: /Global_Charge_Controller_Output_Control
A77: CC_Float_Coordination Mode="Enabled"/
A78: FNDC_Charge_Term_Control Mode="Enabled"/
A79: FNDC_Sell_Control Mode="Disabled"/
A80: Multi_Phase_Coordination Mode="Disabled"/
A81: Low_SOC_Warning_Percentage | B81: 60 | C81: Low_SOC_Warning_Percentage
A82: Low_SOC_Error_Percentage | B82: 50 | C82: Low_SOC_Error_Percentage
A84: -AC_Coupled_Control Mode="Disabled"
A85: AUX_Output | B85: 1 | C85: AUX_Output
A86: /AC_Coupled_Control
A88: -Advance_Generator_Start Mode="Enabled"
A89: Port | B89: 8 | C89: Port
A90: Generator_Type | B90: AC | C90: Generator_Type
A91: DC_Generator_Absorb_Time | B91: 10 | C91: DC_Generator_Absorb_Time
A92: DC_Generator_Absorb_Voltage | B92: 760 | C92: DC_Generator_Absorb_Voltage
A93: Fault_Time | B93: 17 | C93: Fault_Time
A94: Cooldown_Time | B94: 1 | C94: Cooldown_Time
A95: Warmup_Time | B95: 4 | C95: Warmup_Time
A96: AC_Input_Reconnect_Delay | B96: 3 | C96: AC_Input_Reconnect_Delay
A98: -Two_Min_Voltage_Start Mode="Enabled"
A99: Voltage | B99: 464 | C99: Voltage
A100: /Two_Min_Voltage_Start
A102: -Two_Hour_Voltage_Start Mode="Enabled"
A103: Voltage | B103: 472 | C103: Voltage
A104: /Two_Hour_Voltage_Start
A106: -Twenty_Four_Hour_Voltage_Start Mode="Enabled"
A107: Voltage | B107: 488 | C107: Voltage
A108: /Twenty_Four_Hour_Voltage_Start
A110: -Quiet_Time Mode="Disabled"
A112: -Weekday
A113: Start_Hour | B113: 22 | C113: Start_Hour
A114: Start_Min | B114: 0 | C114: Start_Min
A115: Stop_Hour | B115: 12 | C115: Stop_Hour
A116: Stop_Min | B116: 0 | C116: Stop_Min
A117: /Weekday
A119: -Weekend
A120: Start_Hour | B120: 22 | C120: Start_Hour
A121: Start_Min | B121: 0 | C121: Start_Min
A122: Stop_Hour | B122: 12 | C122: Stop_Hour
A123: Stop_Min | B123: 0 | C123: Stop_Min
A124: /Weekend
A125: /Quiet_Time
A127: -Must_Run Mode="Disabled"
A129: -Weekday
A130: Start_Hour | B130: 0 | C130: Start_Hour
A131: Start_Min | B131: 0 | C131: Start_Min
A132: Stop_Hour | B132: 0 | C132: Stop_Hour
A133: Stop_Min | B133: 0 | C133: Stop_Min
A134: /Weekday
A136: -Weekend
A137: Start_Hour | B137: 0 | C137: Start_Hour
A138: Start_Min | B138: 0 | C138: Start_Min
A139: Stop_Hour | B139: 0 | C139: Stop_Hour
A140: Stop_Min | B140: 0 | C140: Stop_Min
A141: /Weekend
A142: /Must_Run
A144: -Load_Start Mode="Enabled"
A146: -Start
A147: Load_KW | B147: 30 | C147: Load_KW
A148: Delay | B148: 1 | C148: Delay
A149: /Start
A151: -Stop
A152: Load_KW | B152: 10 | C152: Load_KW
A153: Delay | B153: 10 | C153: Delay
A154: /Stop
A155: /Load_Start
A157: -SOC_Start Mode="Disabled"
A158: Start_Percentage | B158: 60 | C158: Start_Percentage
A159: Stop_Percentage | B159: 90 | C159: Stop_Percentage
A160: /SOC_Start
A162: -FNDC_Full_Charge Mode="Disabled"
A163: Interval | B163: 14 | C163: Interval
A164: /FNDC_Full_Charge
A166: -Generator_Exercise Mode="Disabled"
A167: Start_Hour | B167: 0 | C167: Start_Hour
A168: Start_Min | B168: 0 | C168: Start_Min
A169: Day | B169: Sun | C169: Day
A170: Period | B170: 15 | C170: Period
A171: Interval | B171: 2 | C171: Interval
A172: Sell_During_Exercise | B172: Enabled | C172: Sell_During_Exercise
A173: /Generator_Exercise
A174: /Advance_Generator_Start
A176: -Grid_Use Mode="Disabled"
A178: -Weekday
A179: Use_Hour | B179: 0 | C179: Use_Hour
A180: Use_Min | B180: 0 | C180: Use_Min
A181: Drop_Hour | B181: 0 | C181: Drop_Hour
A182: Drop_Min | B182: 0 | C182: Drop_Min
A183: /Weekday
A185: -Weekend
A186: Use_Hour | B186: 0 | C186: Use_Hour
A187: Use_Min | B187: 0 | C187: Use_Min
A188: Drop_Hour | B188: 0 | C188: Drop_Hour
A189: Drop_Min | B189: 0 | C189: Drop_Min
A190: /Weekend
A191: /Grid_Use
A193: -Grid_Use_P2 Mode="Disabled"
A195: -Weekday
A196: Use_Hour | B196: 0 | C196: Use_Hour
A197: Use_Min | B197: 0 | C197: Use_Min
A198: Drop_Hour | B198: 0 | C198: Drop_Hour
A199: Drop_Min | B199: 0 | C199: Drop_Min
A200: /Weekday
A201: /Grid_Use_P2
A203: -Grid_Use_P3 Mode="Disabled"
A205: -Weekday
A206: Use_Hour | B206: 0 | C206: Use_Hour
A207: Use_Min | B207: 0 | C207: Use_Min
A208: Drop_Hour | B208: 0 | C208: Drop_Hour
A209: Drop_Min | B209: 0 | C209: Drop_Min
A210: /Weekday
A211: /Grid_Use_P3
A213: -High_Battery_Transfer Mode="Disabled"
A215: -Low_Voltage_Connect
A216: Voltage | B216: 480 | C216: Voltage
A217: Delay | B217: 60 | C217: Delay
A218: /Low_Voltage_Connect
A220: -High_Voltage_Disconnect
A221: Voltage | B221: 520 | C221: Voltage
A222: Delay | B222: 60 | C222: Delay
A223: /High_Voltage_Disconnect
A224: SOC_Connect_Percentage | B224: 60 | C224: SOC_Connect_Percentage
A225: SOC_Disconnect_Percentage | B225: 90 | C225: SOC_Disconnect_Percentage
A226: /High_Battery_Transfer
A228: -Load_Grid_Transfer Mode="Disabled"
A229: Load_Threshold_KW | B229: 10 | C229: Load_Threshold_KW
A230: Load_Connect_Delay | B230: 5 | C230: Load_Connect_Delay
A231: Load_Disconnect_Delay | B231: 10 | C231: Load_Disconnect_Delay
A232: Low_Battery_Connect | B232: 480 | C232: Low_Battery_Connect
A233: High_Battery_Disconnect | B233: 576 | C233: High_Battery_Disconnect
A234: /Load_Grid_Transfer
A236: -Grid_Mode_Schedule_1 Mode="---------"
A237: Enable_Hour | B237: 0 | C237: Enable_Hour
A238: Enable_Min | B238: 0 | C238: Enable_Min
... 523 more rows

Sheet 6
A1: Miller Solar
A2: 17395 Oak Rd. Atascadero, CA 93422
A3: WORKSHEET
A5: Client: | B5: Jacobson
A6: Project: | B6: Event Log
A7: Date: | B7: 2019-01-18 | D7: Revision:
A9: Date | B9: Time | C9: Event | D9: Batt VDC
A10: 1/18/19 | B10: 11:59:08 | C10: AGS Battery Charge Complete Stop | D10: Bat 54.9 VDC SOC 100 %
A11: 1/18/19 | B11: 11:59:09 | C11: AGS Manual Stop | D11: Bat 54.9 VDC SOC 100 %
A12: 1/18/19 | B12: 7:20:24 | C12: Gateway Power Down
A13: 1/18/19 | B13: 7:20:25 | C13: Gateway Power Up
A14: 1/18/19 | B14: 7:20:53 | C14: SD Card error
A15: 1/17/19 | B15: 22:45:38 | C15: AGS AC Input Accepted
A16: 1/17/19 | B16: 22:41:27 | C16: AGS 2 Hour Voltage Start | D16: Bat 47.1 VDC SOC 78 %
A17: 1/17/19 | B17: 2:04:20 | C17: Gateway Power Down
A18: 1/17/19 | B18: 2:04:21 | C18: Gateway Power Up
A19: 1/17/19 | B19: 2:04:49 | C19: SD Card error
A20: 1/16/19 | B20: 20:11:33 | C20: AGS Battery Charge Complete Stop | D20: Bat 58.1 VDC SOC 100 %
A21: 1/16/19 | B21: 20:12:34 | C21: AGS Gen Stop
A22: 1/16/19 | B22: 20:12:42 | C22: Charge Parms Met
A23: 1/16/19 | B23: 6:50:20 | C23: AGS AC Input Accepted
A24: 1/16/19 | B24: 6:46:09 | C24: AGS 2 Hour Voltage Start | D24: Bat 47.0 VDC SOC 78 %
A25: 1/15/19 | B25: 14:00:01 | C25: Gateway Power Down
A26: 1/15/19 | B26: 14:00:02 | C26: Gateway Power Up
A27: 1/15/19 | B27: 14:00:30 | C27: SD Card error
A28: 1/15/19 | B28: 11:11:32 | C28: AGS Gen Stop
A29: 1/15/19 | B29: 11:10:31 | C29: AGS Battery Charge Complete Stop | D29: Bat 58.4 VDC SOC 100 %
A30: 1/15/19 | B30: 11:10:37 | C30: Charge Parms Met
A31: 1/14/19 | B31: 23:56:33 | C31: AGS AC Input Accepted
A32: 1/14/19 | B32: 23:52:21 | C32: AGS 2 Min Voltage Start | D32: Bat 46.4 VDC SOC 80 %
A33: 1/14/19 | B33: 13:59:09 | C33: Gateway Power Down
A34: 1/14/19 | B34: 13:59:11 | C34: Gateway Power Up
A35: 1/14/19 | B35: 13:59:37 | C35: SD Card error
A36: 1/14/19 | B36: 11:37:54 | C36: AGS Gen Stop
A37: 1/14/19 | B37: 11:36:53 | C37: AGS Inverter Load Below Threshold Stop | D37: Bat 58.3 VDC SOC 96 %
A38: 1/14/19 | B38: 9:44:12 | C38: AGS AC Input Accepted
A39: 1/14/19 | B39: 9:40:01 | C39: AGS Load Start | D39: Bat 46.2 VDC SOC 85 %
A40: 1/14/19 | B40: 0:47:06 | C40: AGS Inverter Load Below Threshold Stop | D40: Bat 51.0 VDC SOC 99 %
A41: 1/14/19 | B41: 0:47:06 | C41: AGS Battery Charge Complete Stop | D41: Bat 51.0 VDC SOC 99 %
A42: 1/14/19 | B42: 0:48:07 | C42: AGS Gen Stop
A43: 1/13/19 | B43: 20:59:57 | C43: AGS Load Start | D43: Bat 49.5 VDC SOC 99 %
A44: 1/13/19 | B44: 21:00:37 | C44: AGS AC Input Accepted
A45: 1/13/19 | B45: 20:56:56 | C45: AGS Battery Charge Complete Stop | D45: Bat 57.2 VDC SOC 97 %
A46: 1/13/19 | B46: 20:57:57 | C46: AGS Gen Stop
A47: 1/13/19 | B47: 20:58:07 | C47: Charge Parms Met
A48: 1/13/19 | B48: 17:49:14 | C48: AGS AC Input Accepted
A49: 1/13/19 | B49: 17:45:02 | C49: AGS 2 Min Voltage Start | D49: Bat 46.3 VDC SOC 82 %
A50: 1/13/19 | B50: 13:58:18 | C50: Gateway Power Down
A51: 1/13/19 | B51: 13:58:19 | C51: Gateway Power Up
A52: 1/13/19 | B52: 13:58:47 | C52: SD Card error
A53: 1/13/19 | B53: 3:52:04 | C53: AGS Battery Charge Complete Stop | D53: Bat 59.0 VDC SOC 97 %
A54: 1/13/19 | B54: 3:53:05 | C54: AGS Gen Stop
A55: 1/13/19 | B55: 3:53:16 | C55: Charge Parms Met
A56: 1/13/19 | B56: 0:46:15 | C56: AGS AC Input Accepted
A57: 1/13/19 | B57: 0:42:05 | C57: AGS 2 Min Voltage Start | D57: Bat 46.4 VDC SOC 82 %
A58: 1/12/19 | B58: 13:57:22 | C58: Gateway Power Down
A59: 1/12/19 | B59: 13:57:23 | C59: Gateway Power Up
A60: 1/12/19 | B60: 13:57:51 | C60: SD Card error
A61: 1/12/19 | B61: 0:11:06 | C61: Charge Parms Met
A62: 1/12/19 | B62: 0:09:55 | C62: AGS Battery Charge Complete Stop | D62: Bat 58.4 VDC SOC 96 %
A63: 1/12/19 | B63: 0:10:56 | C63: AGS Gen Stop
A64: 1/11/19 | B64: 20:25:52 | C64: AGS AC Input Accepted
A65: 1/11/19 | B65: 20:21:40 | C65: AGS 2 Hour Voltage Start | D65: Bat 47.1 VDC SOC 77 %
A66: 1/11/19 | B66: 13:56:36 | C66: Gateway Power Down
A67: 1/11/19 | B67: 13:56:37 | C67: Gateway Power Up
A68: 1/11/19 | B68: 13:57:05 | C68: SD Card error
A69: 1/10/19 | B69: 13:54:14 | C69: Gateway Power Down
A70: 1/10/19 | B70: 13:54:15 | C70: Gateway Power Up
A71: 1/10/19 | B71: 13:54:42 | C71: SD Card error
A72: 1/09/19 | B72: 21:36:42 | C72: AGS Battery Charge Complete Stop | D72: Bat 57.9 VDC SOC 97 %
A73: 1/09/19 | B73: 21:37:43 | C73: AGS Gen Stop
A74: 1/09/19 | B74: 21:37:53 | C74: Charge Parms Met
A75: 1/09/19 | B75: 17:25:16 | C75: AGS AC Input Accepted
A76: 1/09/19 | B76: 17:21:05 | C76: AGS 2 Hour Voltage Start | D76: Bat 46.9 VDC SOC 76 %
A77: 1/09/19 | B77: 13:53:00 | C77: Gateway Power Down
A78: 1/09/19 | B78: 13:53:01 | C78: Gateway Power Up
A79: 1/09/19 | B79: 13:53:29 | C79: SD Card error
A80: 1/09/19 | B80: 0:26:04 | C80: AGS Gen Stop
A81: 1/09/19 | B81: 0:26:13 | C81: Charge Parms Met
A82: 1/09/19 | B82: 0:25:03 | C82: AGS Battery Charge Complete Stop | D82: Bat 58.3 VDC SOC 97 %
A83: 1/08/19 | B83: 20:29:34 | C83: AGS AC Input Accepted
A84: 1/08/19 | B84: 20:25:23 | C84: AGS 2 Hour Voltage Start | D84: Bat 47.1 VDC SOC 77 %
A85: 1/08/19 | B85: 13:52:16 | C85: Gateway Power Down
A86: 1/08/19 | B86: 13:52:17 | C86: Gateway Power Up
A87: 1/08/19 | B87: 13:52:44 | C87: SD Card error
A88: 1/08/19 | B88: 1:18:17 | C88: AGS Battery Charge Complete Stop | D88: Bat 57.8 VDC SOC 96 %
A89: 1/08/19 | B89: 1:19:18 | C89: AGS Gen Stop
A90: 1/08/19 | B90: 1:19:29 | C90: Charge Parms Met
A91: 1/07/19 | B91: 21:13:32 | C91: AGS AC Input Accepted
A92: 1/07/19 | B92: 21:09:22 | C92: AGS 2 Hour Voltage Start | D92: Bat 46.7 VDC SOC 76 %
A93: 1/07/19 | B93: 13:51:17 | C93: Gateway Power Down
A94: 1/07/19 | B94: 13:51:18 | C94: Gateway Power Up
A95: 1/07/19 | B95: 13:51:46 | C95: SD Card error
A96: 1/06/19 | B96: 23:24:48 | C96: Charge Parms Met
A97: 1/06/19 | B97: 23:23:37 | C97: AGS Battery Charge Complete Stop | D97: Bat 58.0 VDC SOC 97 %
A98: 1/06/19 | B98: 23:24:38 | C98: AGS Gen Stop
A99: 1/06/19 | B99: 20:09:10 | C99: FXR-8 | D99: IN AC Current OK | E99: 22 A
A100: 1/06/19 | B100: 20:08:03 | C100: FXR-8 | D100: IN AC Current Too High | E100: 24 A
A101: 1/06/19 | B101: 19:55:14 | C101: AGS AC Input Accepted
A102: 1/06/19 | B102: 19:51:04 | C102: AGS 2 Min Voltage Start | D102: Bat 46.2 VDC SOC 79 %
A103: 1/06/19 | B103: 13:49:31 | C103: Gateway Power Down
A104: 1/06/19 | B104: 13:49:32 | C104: Gateway Power Up
A105: 1/06/19 | B105: 13:50:00 | C105: SD Card error
A106: 1/06/19 | B106: 2:45:34 | C106: AGS Battery Charge Complete Stop | D106: Bat 58.4 VDC SOC 97 %
A107: 1/06/19 | B107: 2:46:35 | C107: AGS Gen Stop
A108: 1/06/19 | B108: 2:46:45 | C108: Charge Parms Met
A109: 1/05/19 | B109: 22:55:05 | C109: AGS AC Input Accepted
A110: 1/05/19 | B110: 22:50:54 | C110: AGS 2 Min Voltage Start | D110: Bat 46.4 VDC SOC 78 %
A111: 1/05/19 | B111: 13:47:25 | C111: Gateway Power Down
A112: 1/05/19 | B112: 13:47:26 | C112: Gateway Power Up
A113: 1/05/19 | B113: 13:47:53 | C113: SD Card error
A114: 1/05/19 | B114: 7:16:55 | C114: AGS Gen Stop
A115: 1/05/19 | B115: 7:17:03 | C115: Charge Parms Met
A116: 1/05/19 | B116: 7:15:54 | C116: AGS Battery Charge Complete Stop | D116: Bat 56.3 VDC SOC 96 %
A117: 1/05/19 | B117: 3:57:46 | C117: AGS AC Input Accepted
A118: 1/05/19 | B118: 3:53:36 | C118: AGS 2 Hour Voltage Start | D118: Bat 46.9 VDC SOC 79 %
A119: 1/04/19 | B119: 13:46:30 | C119: Gateway Power Down
A120: 1/04/19 | B120: 13:46:31 | C120: Gateway Power Up
A121: 1/04/19 | B121: 13:46:58 | C121: SD Card error
A122: 1/04/19 | B122: 13:47:46 | C122: Charge Parms Met
A123: 1/04/19 | B123: 11:18:19 | C123: Charge Parms Met
A124: 1/04/19 | B124: 11:18:58 | C124: AGS Gen Stop
A125: 1/04/19 | B125: 11:17:57 | C125: AGS Battery Charge Complete Stop | D125: Bat 58.4 VDC SOC 95 %
A126: 1/04/19 | B126: 7:55:37 | C126: AGS AC Input Accepted
A127: 1/04/19 | B127: 7:51:26 | C127: AGS 2 Hour Voltage Start | D127: Bat 47.1 VDC SOC 76 %
A128: 1/03/19 | B128: 13:45:21 | C128: Gateway Power Down
A129: 1/03/19 | B129: 13:45:22 | C129: Gateway Power Up
A130: 1/03/19 | B130: 13:45:49 | C130: SD Card error
A131: 1/03/19 | B131: 1:58:05 | C131: AGS Inverter Load Below Threshold Stop | D131: Bat 51.0 VDC SOC 99 %
A132: 1/03/19 | B132: 1:58:06 | C132: AGS Battery Charge Complete Stop | D132: Bat 51.0 VDC SOC 99 %
A133: 1/03/19 | B133: 1:59:06 | C133: AGS Gen Stop
A134: 1/02/19 | B134: 22:04:46 | C134: Charge Parms Met
A135: 1/02/19 | B135: 20:22:21 | C135: AGS AC Input Accepted
A136: 1/02/19 | B136: 20:18:10 | C136: AGS Load Start | D136: Bat 46.9 VDC SOC 90 %
A137: 1/02/19 | B137: 13:44:33 | C137: Gateway Power Down
A138: 1/02/19 | B138: 13:44:34 | C138: Gateway Power Up
A139: 1/02/19 | B139: 13:45:02 | C139: SD Card error
A140: 1/02/19 | B140: 4:27:14 | C140: AGS Gen Stop
A141: 1/02/19 | B141: 4:27:25 | C141: Charge Parms Met
A142: 1/02/19 | B142: 4:26:13 | C142: AGS Battery Charge Complete Stop | D142: Bat 58.8 VDC SOC 93 %
A143: 1/02/19 | B143: 0:30:47 | C143: AGS AC Input Accepted
A144: 1/02/19 | B144: 0:26:37 | C144: AGS 2 Hour Voltage Start | D144: Bat 46.8 VDC SOC 74 %
A145: 1/01/19 | B145: 13:43:31 | C145: Gateway Power Down
A146: 1/01/19 | B146: 13:43:32 | C146: Gateway Power Up
A147: 1/01/19 | B147: 13:44:00 | C147: SD Card error
A148: 2018-12-31 | B148: 13:42:41 | C148: Gateway Power Down
A149: 2018-12-31 | B149: 13:42:42 | C149: Gateway Power Up
A150: 2018-12-31 | B150: 13:43:10 | C150: SD Card error
A151: 2018-12-31 | B151: 11:10:25 | C151: Charge Parms Met
A152: 2018-12-31 | B152: 10:35:40 | C152: AGS Battery Charge Complete Stop | D152: Bat 58.5 VDC SOC 96 %
A153: 2018-12-31 | B153: 10:36:41 | C153: AGS Gen Stop
A154: 2018-12-31 | B154: 6:55:48 | C154: AGS AC Input Accepted
A155: 2018-12-31 | B155: 6:51:37 | C155: AGS 2 Hour Voltage Start | D155: Bat 46.9 VDC SOC 76 %
A156: 2018-12-30 | B156: 13:41:32 | C156: Gateway Power Down
A157: 2018-12-30 | B157: 13:41:33 | C157: Gateway Power Up
A158: 2018-12-30 | B158: 13:42:01 | C158: SD Card error
A159: 2018-12-30 | B159: 11:16:00 | C159: AGS Manual Stop | D159: Bat 58.4 VDC SOC 100 %
A160: 2018-12-30 | B160: 11:14:51 | C160: AGS 2 Min Voltage Start | D160: Bat 54.8 VDC SOC 100 %
A161: 2018-12-30 | B161: 11:14:54 | C161: FXR-1 | D161: IN AC Freq Too Low | E161: 59.1 Hz
A162: 2018-12-30 | B162: 11:14:55 | C162: FXR-1 | D162: IN AC Freq OK | E162: 60.4 Hz
A163: 2018-12-30 | B163: 11:15:32 | C163: AGS AC Input Accepted
A164: 2018-12-30 | B164: 9:57:36 | C164: Charge Parms Met
A165: 2018-12-30 | B165: 3:23:03 | C165: FNDC-3 | D165: Batt SOC OK
A166: 2018-12-30 | B166: 1:33:18 | C166: FNDC-3 | D166: Batt SOC Low
A167: 2018-12-29 | B167: 20:49:52 | C167: FXR-1 | D167: Batt Voltage OK | E167: 50.8 VDC
A168: 2018-12-29 | B168: 19:44:00 | C168: FXR-1 | D168: Batt Voltage Low Error | E168: 43.6 VDC
A169: 2018-12-29 | B169: 15:35:48 | C169: AGS Run Fault
A170: 2018-12-29 | B170: 15:36:04 | C170: AGS Gen Stop
A171: 2018-12-29 | B171: 15:15:14 | C171: AGS 2 Min Voltage Start | D171: Bat 46.3 VDC SOC 32 %
A172: 2018-12-29 | B172: 13:40:38 | C172: Gateway Power Down
A173: 2018-12-29 | B173: 13:40:39 | C173: Gateway Power Up
A174: 2018-12-29 | B174: 13:41:07 | C174: SD Card error
A175: 2018-12-28 | B175: 17:52:48 | C175: AGS Run Fault
A176: 2018-12-28 | B176: 17:53:04 | C176: AGS Gen Stop
A177: 2018-12-28 | B177: 17:31:17 | C177: FNDC-3 | D177: Batt SOC Low Error
A178: 2018-12-28 | B178: 17:31:48 | C178: AGS 2 Hour Voltage Start | D178: Bat 46.4 VDC SOC 50 %
A179: 2018-12-28 | B179: 13:39:43 | C179: Gateway Power Down
A180: 2018-12-28 | B180: 13:39:44 | C180: Gateway Power Up
A181: 2018-12-28 | B181: 13:40:11 | C181: SD Card error
A182: 2018-12-28 | B182: 11:59:16 | C182: FNDC-3 | D182: Batt SOC Low Error
A183: 2018-12-28 | B183: 12:00:04 | C183: FNDC-3 | D183: Batt SOC Low
A184: 2018-12-28 | B184: 11:58:40 | C184: FNDC-3 | D184: Batt SOC Low
A185: 2018-12-28 | B185: 6:41:29 | C185: FNDC-3 | D185: Batt SOC Low Error
A186: 2018-12-28 | B186: 0:01:08 | C186: FNDC-3 | D186: Batt SOC Low Warning
A187: 2018-12-27 | B187: 19:42:56 | C187: AGS Run Fault
A188: 2018-12-27 | B188: 19:43:12 | C188: AGS Gen Stop
A189: 2018-12-27 | B189: 19:21:56 | C189: AGS 2 Hour Voltage Start | D189: Bat 46.9 VDC SOC 67 %
A190: 2018-12-27 | B190: 13:38:54 | C190: Gateway Power Down
A191: 2018-12-27 | B191: 13:38:55 | C191: Gateway Power Up
A192: 2018-12-27 | B192: 13:39:22 | C192: SD Card error
A193: 2018-12-27 | B193: 1:01:15 | C193: AGS Run Fault
A194: 2018-12-27 | B194: 1:01:31 | C194: AGS Gen Stop
A195: 2018-12-27 | B195: 0:08:25 | C195: AGS AC Input Accepted
A196: 2018-12-27 | B196: 0:04:15 | C196: AGS 2 Hour Voltage Start | D196: Bat 46.6 VDC SOC 81 %
A197: 2018-12-26 | B197: 13:38:10 | C197: Gateway Power Down
A198: 2018-12-26 | B198: 13:38:11 | C198: Gateway Power Up
A199: 2018-12-26 | B199: 13:38:38 | C199: SD Card error
A200: 2018-12-26 | B200: 4:59:07 | C200: AGS Battery Charge Complete Stop | D200: Bat 58.3 VDC SOC 100 %
A201: 2018-12-26 | B201: 5:00:08 | C201: AGS Gen Stop
A202: 2018-12-26 | B202: 5:00:17 | C202: Charge Parms Met
... 649 more rows

Sheet 7
A1: Miller Solar
A2: 17395 Oak Rd. Atascadero, CA 93422
A3: WORKSHEET
A5: Client: | B5: Joacobson
A6: Project: | B6: FNDC Log
A7: Date: | B7: 2019-01-18 | D7: Revision:
A10: Date | B10: In AH | C10: In kWh | D10: Out AH | E10: Out kWh | F10: Net AH | G10: Net kWh | H10: Min SOC
A11: 2018-12-27 | B11: 310 | C11: 15.5 | D11: 595 | E11: 28.25 | F11: -285 | G11: -12.75 | H11: 61
A12: 2018-12-28 | B12: 304 | C12: 14.87 | D12: 588 | E12: 27.42 | F12: -284 | G12: -12.55 | H12: 40
A13: 1/14/19 | B13: 210 | C13: 11.44 | D13: 486 | E13: 23.48 | F13: -276 | G13: -12.04 | H13: 80
A14: 1/17/19 | B14: 55 | C14: 2.72 | D14: 320 | E14: 15.35 | F14: -265 | G14: -12.63 | H14: 77
A15: 2018-10-06 | B15: 347 | C15: 17.51 | D15: 603 | E15: 29.31 | F15: -256 | G15: -11.8 | H15: 77
A16: 1/01/19 | B16: 294 | C16: 14.89 | D16: 536 | E16: 25.94 | F16: -242 | G16: -11.05 | H16: 74
A17: 2018-11-10 | B17: 189 | C17: 9.28 | D17: 421 | E17: 20.21 | F17: -232 | G17: -10.93 | H17: 65
A18: 2018-11-26 | B18: 393 | C18: 20.09 | D18: 618 | E18: 29.88 | F18: -225 | G18: -9.79 | H18: 76
A19: 1/12/19 | B19: 144 | C19: 7.36 | D19: 366 | E19: 17.98 | F19: -222 | G19: -10.62 | H19: 84
A20: 2018-10-12 | B20: 194 | C20: 9.68 | D20: 411 | E20: 19.76 | F20: -217 | G20: -10.08 | H20: 77
A21: 9/25/18 | B21: 380 | C21: 19.55 | D21: 595 | E21: 29.28 | F21: -215 | G21: -9.73 | H21: 83
A22: 2018-10-01 | B22: 369 | C22: 18.91 | D22: 584 | E22: 28.83 | F22: -215 | G22: -9.92 | H22: 83
A23: 2018-10-14 | B23: 331 | C23: 16.66 | D23: 538 | E23: 25.98 | F23: -207 | G23: -9.32 | H23: 75
A24: 1/03/19 | B24: 278 | C24: 14.34 | D24: 483 | E24: 23.75 | F24: -205 | G24: -9.41 | H24: 84
A25: 2018-11-24 | B25: 490 | C25: 26.31 | D25: 671 | E25: 32.54 | F25: -181 | G25: -6.23 | H25: 78
A26: 9/22/18 | B26: 332 | C26: 16.81 | D26: 509 | E26: 24.59 | F26: -177 | G26: -7.78 | H26: 66
A27: 2018-11-01 | B27: 264 | C27: 13.3 | D27: 433 | E27: 20.94 | F27: -169 | G27: -7.64 | H27: 78
A28: 2018-10-28 | B28: 307 | C28: 15.61 | D28: 462 | E28: 22.46 | F28: -155 | G28: -6.85 | H28: 78
A29: 2018-11-03 | B29: 312 | C29: 15.82 | D29: 458 | E29: 22.33 | F29: -146 | G29: -6.51 | H29: 79
A30: 2018-10-26 | B30: 312 | C30: 15.9 | D30: 453 | E30: 22.17 | F30: -141 | G30: -6.27 | H30: 80
A31: 2018-11-07 | B31: 291 | C31: 14.83 | D31: 432 | E31: 21.06 | F31: -141 | G31: -6.23 | H31: 79
A32: 2018-11-05 | B32: 303 | C32: 15.42 | D32: 443 | E32: 21.56 | F32: -140 | G32: -6.14 | H32: 78
A33: 2018-12-03 | B33: 510 | C33: 26.76 | D33: 645 | E33: 31.28 | F33: -135 | G33: -4.52 | H33: 83
A34: 2018-12-06 | B34: 427 | C34: 23.39 | D34: 562 | E34: 27.29 | F34: -135 | G34: -3.9 | H34: 81
A35: 2018-12-26 | B35: 393 | C35: 20.73 | D35: 526 | E35: 25.92 | F35: -133 | G35: -5.19 | H35: 81
A36: 9/29/18 | B36: 343 | C36: 17.54 | D36: 473 | E36: 23.28 | F36: -130 | G36: -5.74 | H36: 81
A37: 2018-11-15 | B37: 334 | C37: 17.04 | D37: 460 | E37: 22.32 | F37: -126 | G37: -5.28 | H37: 76
A38: 2018-11-12 | B38: 283 | C38: 14.39 | D38: 407 | E38: 20.02 | F38: -124 | G38: -5.63 | H38: 80
A39: 2018-12-25 | B39: 356 | C39: 18.27 | D39: 479 | E39: 23.26 | F39: -123 | G39: -4.99 | H39: 83
A40: 2018-10-24 | B40: 305 | C40: 15.57 | D40: 425 | E40: 20.81 | F40: -120 | G40: -5.24 | H40: 81
A41: 2018-10-22 | B41: 304 | C41: 15.52 | D41: 424 | E41: 20.74 | F41: -120 | G41: -5.22 | H41: 81
A42: 2018-11-28 | B42: 402 | C42: 22.17 | D42: 515 | E42: 24.96 | F42: -113 | G42: -2.79 | H42: 79
A43: 2018-11-30 | B43: 390 | C43: 20.51 | D43: 503 | E43: 24.86 | F43: -113 | G43: -4.35 | H43: 83
A44: 2018-10-16 | B44: 477 | C44: 25.66 | D44: 586 | E44: 28.63 | F44: -109 | G44: -2.97 | H44: 78
A45: 2018-11-09 | B45: 311 | C45: 15.83 | D45: 419 | E45: 20.47 | F45: -108 | G45: -4.64 | H45: 81
A46: 2018-10-30 | B46: 331 | C46: 16.94 | D46: 423 | E46: 20.74 | F46: -92 | G46: -3.8 | H46: 81
A47: 2018-12-19 | B47: 432 | C47: 22.84 | D47: 522 | E47: 25.75 | F47: -90 | G47: -2.91 | H47: 83
A48: 1/10/19 | B48: 286 | C48: 15.11 | D48: 372 | E48: 18.56 | F48: -86 | G48: -3.45 | H48: 89
A49: 2018-12-14 | B49: 301 | C49: 15.87 | D49: 381 | E49: 18.31 | F49: -80 | G49: -2.44 | H49: 80
A50: 9/21/18 | B50: 369 | C50: 19.03 | D50: 446 | E50: 21.94 | F50: -77 | G50: -2.91 | H50: 79
A51: 1/05/19 | B51: 430 | C51: 23.44 | D51: 496 | E51: 23.73 | F51: -66 | G51: -0.29 | H51: 78
A52: 2018-12-01 | B52: 435 | C52: 24.07 | D52: 496 | E52: 24.14 | F52: -61 | G52: -0.07 | H52: 84
A53: 2018-12-12 | B53: 422 | C53: 22.65 | D53: 475 | E53: 23.38 | F53: -53 | G53: -0.73 | H53: 81
A54: 2018-11-20 | B54: 535 | C54: 28.08 | D54: 585 | E54: 28.44 | F54: -50 | G54: -0.36 | H54: 78
A55: 1/07/19 | B55: 455 | C55: 23.77 | D55: 505 | E55: 24.27 | F55: -50 | G55: -0.5 | H55: 75
A56: 2018-12-09 | B56: 344 | C56: 18.39 | D56: 390 | E56: 18.81 | F56: -46 | G56: -0.42 | H56: 78
A57: 2018-12-04 | B57: 549 | C57: 30 | D57: 594 | E57: 28.47 | F57: -45 | G57: 1.53 | H57: 83
A58: 9/20/18 | B58: 385 | C58: 19.91 | D58: 422 | E58: 20.95 | F58: -37 | G58: -1.04 | H58: 85
A59: 2018-12-16 | B59: 308 | C59: 16.25 | D59: 343 | E59: 16.58 | F59: -35 | G59: -0.33 | H59: 81
A60: 2018-11-19 | B60: 618 | C60: 33.27 | D60: 642 | E60: 30.96 | F60: -24 | G60: 2.31 | H60: 80
A61: 2018-11-21 | B61: 499 | C61: 27.54 | D61: 516 | E61: 24.93 | F61: -17 | G61: 2.61 | H61: 78
A62: 2018-11-14 | B62: 371 | C62: 20.2 | D62: 387 | E62: 19.53 | F62: -16 | G62: 0.67 | H62: 84
A63: 2018-12-23 | B63: 357 | C63: 18.97 | D63: 372 | E63: 18.08 | F63: -15 | G63: 0.89 | H63: 80
A64: 2018-10-02 | B64: 471 | C64: 25.14 | D64: 482 | E64: 23.49 | F64: -11 | G64: 1.65 | H64: 74
A65: 2018-10-10 | B65: 346 | C65: 18.32 | D65: 354 | E65: 17.15 | F65: -8 | G65: 1.17 | H65: 74
A66: 2018-11-16 | B66: 513 | C66: 27.54 | D66: 520 | E66: 25.61 | F66: -7 | G66: 1.93 | H66: 79
A67: 2018-10-20 | B67: 451 | C67: 24.07 | D67: 456 | E67: 22.38 | F67: -5 | G67: 1.69 | H67: 78
A68: 2018-10-09 | B68: 392 | C68: 20.51 | D68: 396 | E68: 19.46 | F68: -4 | G68: 1.05 | H68: 81
A69: 1/09/19 | B69: 427 | C69: 23.48 | D69: 428 | E69: 20.74 | F69: -1 | G69: 2.74 | H69: 75
A70: 1/18/19 | B70: 2 | C70: 0.13 | D70: 2 | E70: 0.08 | F70: 0 | G70: 0.05 | H70: 79
A71: 9/27/18 | B71: 558 | C71: 30.48 | D71: 556 | E71: 27.54 | F71: 2 | G71: 2.94 | H71: 78
A72: 9/14/18 | B72: 387 | C72: 20.41 | D72: 385 | E72: 19.31 | F72: 2 | G72: 1.1 | H72: 86
A73: 2018-11-22 | B73: 562 | C73: 29.8 | D73: 557 | E73: 27.09 | F73: 5 | G73: 2.71 | H73: 80
A74: 9/18/18 | B74: 384 | C74: 20.26 | D74: 379 | E74: 18.98 | F74: 5 | G74: 1.28 | H74: 86
A75: 9/16/18 | B75: 396 | C75: 20.95 | D75: 390 | E75: 19.48 | F75: 6 | G75: 1.47 | H75: 86
A76: 2018-10-19 | B76: 448 | C76: 24.02 | D76: 441 | E76: 21.6 | F76: 7 | G76: 2.42 | H76: 78
A77: 9/12/18 | B77: 397 | C77: 20.83 | D77: 389 | E77: 19.52 | F77: 8 | G77: 1.31 | H77: 85
A78: 9/17/18 | B78: 396 | C78: 20.82 | D78: 385 | E78: 19.36 | F78: 11 | G78: 1.46 | H78: 85
A79: 9/19/18 | B79: 387 | C79: 20.47 | D79: 376 | E79: 18.92 | F79: 11 | G79: 1.55 | H79: 86
A80: 9/13/18 | B80: 393 | C80: 20.72 | D80: 380 | E80: 19.09 | F80: 13 | G80: 1.63 | H80: 86
A81: 9/15/18 | B81: 393 | C81: 20.76 | D81: 377 | E81: 18.96 | F81: 16 | G81: 1.8 | H81: 85
A82: 2018-10-08 | B82: 459 | C82: 24.62 | D82: 442 | E82: 21.7 | F82: 17 | G82: 2.92 | H82: 76
A83: 2018-12-22 | B83: 402 | C83: 21.61 | D83: 385 | E83: 19.08 | F83: 17 | G83: 2.53 | H83: 82
A84: 9/24/18 | B84: 575 | C84: 30.49 | D84: 554 | E84: 27.34 | F84: 21 | G84: 3.15 | H84: 83
A85: 2018-10-03 | B85: 365 | C85: 19.19 | D85: 340 | E85: 16.36 | F85: 25 | G85: 2.83 | H85: 77
A86: 2018-12-10 | B86: 405 | C86: 21.73 | D86: 377 | E86: 18.39 | F86: 28 | G86: 3.34 | H86: 82
A87: 2018-12-08 | B87: 469 | C87: 25.87 | D87: 440 | E87: 21.58 | F87: 29 | G87: 4.29 | H87: 77
A88: 2018-12-17 | B88: 430 | C88: 22.9 | D88: 396 | E88: 19.38 | F88: 34 | G88: 3.52 | H88: 81
A89: 2018-10-11 | B89: 320 | C89: 16.86 | D89: 282 | E89: 13.69 | F89: 38 | G89: 3.17 | H89: 80
A90: 2018-12-20 | B90: 418 | C90: 21.97 | D90: 374 | E90: 18.54 | F90: 44 | G90: 3.43 | H90: 83
A91: 2018-12-07 | B91: 490 | C91: 26.96 | D91: 442 | E91: 21.75 | F91: 48 | G91: 5.21 | H91: 79
A92: 1/15/19 | B92: 303 | C92: 15.99 | D92: 251 | E92: 12.19 | F92: 52 | G92: 3.8 | H92: 80
A93: 2018-11-17 | B93: 643 | C93: 34.15 | D93: 587 | E93: 28.53 | F93: 56 | G93: 5.62 | H93: 77
A94: 2018-12-11 | B94: 461 | C94: 24.56 | D94: 398 | E94: 19.91 | F94: 63 | G94: 4.65 | H94: 81
A95: 2018-12-21 | B95: 438 | C95: 23.42 | D95: 371 | E95: 18.65 | F95: 67 | G95: 4.77 | H95: 82
A96: 2018-10-21 | B96: 436 | C96: 23.32 | D96: 367 | E96: 18.28 | F96: 69 | G96: 5.04 | H96: 80
A97: 2018-11-23 | B97: 574 | C97: 31.56 | D97: 503 | E97: 24.26 | F97: 71 | G97: 7.3 | H97: 78
A98: 2018-12-18 | B98: 540 | C98: 28.45 | D98: 469 | E98: 23.41 | F98: 71 | G98: 5.04 | H98: 85
A99: 2018-12-15 | B99: 429 | C99: 22.91 | D99: 357 | E99: 17.61 | F99: 72 | G99: 5.3 | H99: 80
A100: 2018-10-17 | B100: 535 | C100: 28.47 | D100: 462 | E100: 22.94 | F100: 73 | G100: 5.53 | H100: 78
A101: 1/04/19 | B101: 472 | C101: 26.4 | D101: 396 | E101: 19.32 | F101: 76 | G101: 7.08 | H101: 76
A102: 2018-12-31 | B102: 499 | C102: 27.58 | D102: 422 | E102: 20.74 | F102: 77 | G102: 6.84 | H102: 76
A103: 2018-10-18 | B103: 455 | C103: 24.44 | D103: 376 | E103: 18.72 | F103: 79 | G103: 5.72 | H103: 78
A104: 9/28/18 | B104: 545 | C104: 29.8 | D104: 457 | E104: 22.67 | F104: 88 | G104: 7.13 | H104: 76
A105: 1/08/19 | B105: 511 | C105: 28.01 | D105: 423 | E105: 20.43 | F105: 88 | G105: 7.58 | H105: 77
A106: 2018-10-04 | B106: 452 | C106: 24.06 | D106: 363 | E106: 17.85 | F106: 89 | G106: 6.21 | H106: 76
A107: 2018-12-13 | B107: 466 | C107: 24.81 | D107: 375 | E107: 18.9 | F107: 91 | G107: 5.91 | H107: 82
A108: 2018-12-29 | B108: 643 | C108: 31.95 | D108: 527 | E108: 23.93 | F108: 116 | G108: 8.02 | H108: 24
A109: 9/26/18 | B109: 615 | C109: 33.62 | D109: 499 | E109: 25.03 | F109: 116 | G109: 8.59 | H109: 77
A110: 2018-10-05 | B110: 521 | C110: 28.08 | D110: 400 | E110: 19.61 | F110: 121 | G110: 8.47 | H110: 77
A111: 2018-10-23 | B111: 419 | C111: 22.61 | D111: 298 | E111: 14.68 | F111: 121 | G111: 7.93 | H111: 75
A112: 1/11/19 | B112: 437 | C112: 23.65 | D112: 312 | E112: 14.97 | F112: 125 | G112: 8.68 | H112: 77
A113: 2018-11-13 | B113: 499 | C113: 26.11 | D113: 372 | E113: 17.79 | F113: 127 | G113: 8.32 | H113: 67
A114: 2018-10-31 | B114: 433 | C114: 23.35 | D114: 297 | E114: 14.83 | F114: 136 | G114: 8.52 | H114: 76
A115: 2018-11-04 | B115: 456 | C115: 24.28 | D115: 308 | E115: 15.55 | F115: 148 | G115: 8.73 | H115: 76
A116: 2018-10-25 | B116: 448 | C116: 24.07 | D116: 296 | E116: 14.79 | F116: 152 | G116: 9.28 | H116: 76
A117: 2018-10-27 | B117: 457 | C117: 24.32 | D117: 304 | E117: 15.27 | F117: 153 | G117: 9.05 | H117: 77
A118: 2018-10-29 | B118: 429 | C118: 22.84 | D118: 272 | E118: 13.69 | F118: 157 | G118: 9.15 | H118: 76
A119: 2018-10-07 | B119: 524 | C119: 28.06 | D119: 358 | E119: 18.03 | F119: 166 | G119: 10.03 | H119: 74
A120: 2018-11-06 | B120: 446 | C120: 23.88 | D120: 271 | E120: 13.71 | F120: 175 | G120: 10.17 | H120: 77
A121: 2018-11-02 | B121: 458 | C121: 24.3 | D121: 272 | E121: 13.78 | F121: 186 | G121: 10.52 | H121: 79
A122: 2018-11-29 | B122: 645 | C122: 35.3 | D122: 450 | E122: 21.71 | F122: 195 | G122: 13.59 | H122: 81
A123: 2018-10-15 | B123: 485 | C123: 26.01 | D123: 278 | E123: 14.22 | F123: 207 | G123: 11.79 | H123: 76
A124: 9/11/18 | B124: 552 | C124: 31.63 | D124: 344 | E124: 16.93 | F124: 208 | G124: 14.7 | H124: 81
A125: 2018-12-02 | B125: 729 | C125: 39.14 | D125: 520 | E125: 25.33 | F125: 209 | G125: 13.81 | H125: 83
A126: 2018-11-27 | B126: 702 | C126: 37.58 | D126: 489 | E126: 23.65 | F126: 213 | G126: 13.93 | H126: 78
A127: 2018-12-24 | B127: 503 | C127: 26.86 | D127: 283 | E127: 14.07 | F127: 220 | G127: 12.79 | H127: 83
A128: 1/16/19 | B128: 371 | C128: 19.59 | D128: 150 | E128: 7.27 | F128: 221 | G128: 12.32 | H128: 78
A129: 2018-12-05 | B129: 663 | C129: 36.1 | D129: 440 | E129: 21.17 | F129: 223 | G129: 14.93 | H129: 81
A130: 1/06/19 | B130: 607 | C130: 33.63 | D130: 380 | E130: 18.48 | F130: 227 | G130: 15.15 | H130: 79
A131: 2018-11-18 | B131: 803 | C131: 43.26 | D131: 562 | E131: 27.45 | F131: 241 | G131: 15.81 | H131: 80
A132: 2018-10-13 | B132: 535 | C132: 28.36 | D132: 287 | E132: 14.59 | F132: 248 | G132: 13.77 | H132: 78
A133: 9/30/18 | B133: 569 | C133: 30.61 | D133: 315 | E133: 15.7 | F133: 254 | G133: 14.91 | H133: 74
A134: 1/13/19 | B134: 676 | C134: 37.14 | D134: 400 | E134: 19.22 | F134: 276 | G134: 17.92 | H134: 81
A135: 2018-11-08 | B135: 547 | C135: 30.54 | D135: 226 | E135: 10.99 | F135: 321 | G135: 19.55 | H135: 78
A136: 2018-11-25 | B136: 881 | C136: 47.45 | D136: 546 | E136: 26.83 | F136: 335 | G136: 20.62 | H136: 78
A137: 1/02/19 | B137: 786 | C137: 43.13 | D137: 435 | E137: 21.67 | F137: 351 | G137: 21.46 | H137: 73
A138: 2018-11-11 | B138: 706 | C138: 38.58 | D138: 310 | E138: 15.63 | F138: 396 | G138: 22.95 | H138: 64
A139: 9/23/18 | B139: 722 | C139: 39.96 | D139: 305 | E139: 15.27 | F139: 417 | G139: 24.69 | H139: 60
A140: 2018-12-30 | B140: 925 | C140: 51.35 | D140: 239 | E140: 11.9 | F140: 686 | G140: 39.45 | H140: 42

Sheet 8
A1: Miller Solar
A2: 17395 Oak Rd. Atascadero, CA 93422
A3: WORKSHEET
A5: Client: | B5: Jacobson
A6: Project: | B6: CC Log
A7: Date: | B7: 2019-01-18 | D7: Revision:
A10: Date | B10: AH | C10: Kwh | D10: Max Amps | E10: Max Watts | F10: Absorb Time | G10: Float Time | H10: Min Battery V | I10: Max Battery V | J10: MAX VOC
A11: 2018-11-23 | B11: 0 | C11: 0 | D11: 0 | E11: 0 | F11: 0:47 | G11: 0:00 | H11: 47.5 | I11: 58.9 | J11: 24
A12: 2018-11-21 | B12: 0 | C12: 0 | D12: 1.1 | E12: 52 | F12: 1:33 | G12: 0:00 | H12: 46 | I12: 58.5 | J12: 115
A13: 1/16/19 | B13: 0 | C13: 0 | D13: 1.3 | E13: 76 | F13: 0:00 | G13: 0:00 | H13: 47.1 | I13: 58.8 | J13: 119
A14: 1/06/19 | B14: 0 | C14: 0 | D14: 1.5 | E14: 79 | F14: 0:11 | G14: 0:00 | H14: 46.3 | I14: 59.2 | J14: 117
A15: 1/10/19 | B15: 1 | C15: 0 | D15: 2 | E15: 95 | F15: 0:25 | G15: 0:00 | H15: 49.4 | I15: 59 | J15: 117
A16: 2018-11-29 | B16: 3 | C16: 0.1 | D16: 2.3 | E16: 114 | F16: 1:29 | G16: 0:00 | H16: 47.3 | I16: 58.9 | J16: 118
A17: 2018-10-11 | B17: 16 | C17: 0.9 | D17: 4.3 | E17: 231 | F17: 0:00 | G17: 0:00 | H17: 48.4 | I17: 58.4 | J17: 115
A18: 1/15/19 | B18: 3 | C18: 0.2 | D18: 4.6 | E18: 252 | F18: 0:07 | G18: 0:00 | H18: 46.3 | I18: 58.6 | J18: 122
A19: 1/17/19 | B19: 5 | C19: 0.2 | D19: 6 | E19: 316 | F19: 0:00 | G19: 0:00 | H19: 49.2 | I19: 58.4 | J19: 116
A20: 2018-12-15 | B20: 11 | C20: 0.6 | D20: 6.6 | E20: 350 | F20: 0:00 | G20: 0:00 | H20: 46.7 | I20: 58.4 | J20: 118
A21: 2018-11-24 | B21: 13 | C21: 0.6 | D21: 10.8 | E21: 523 | F21: 0:47 | G21: 0:00 | H21: 46.7 | I21: 58.9 | J21: 122
A22: 1/14/19 | B22: 30 | C22: 1.5 | D22: 11.7 | E22: 597 | F22: 1:24 | G22: 0:55 | H22: 46.2 | I22: 59.3 | J22: 120
A23: 2018-11-14 | B23: 54 | C23: 2.8 | D23: 12.9 | E23: 672 | F23: 1:09 | G23: 0:00 | H23: 48.1 | I23: 58.5 | J23: 111
A24: 2018-12-17 | B24: 21 | C24: 1.1 | D24: 12.1 | E24: 672 | F24: 0:00 | G24: 0:00 | H24: 47.1 | I24: 58.4 | J24: 122
A25: 2018-11-19 | B25: 30 | C25: 1.5 | D25: 13.9 | E25: 704 | F25: 0:51 | G25: 0:00 | H25: 46.1 | I25: 58.5 | J25: 119
A26: 2018-11-10 | B26: 65 | C26: 3.2 | D26: 14.4 | E26: 729 | F26: 0:00 | G26: 0:00 | H26: 46.8 | I26: 50.6 | J26: 112
A27: 2018-12-05 | B27: 15 | C27: 0.7 | D27: 15.1 | E27: 768 | F27: 1:10 | G27: 0:00 | H27: 46.4 | I27: 58.9 | J27: 118
A28: 2018-11-30 | B28: 15 | C28: 0.7 | D28: 15 | E28: 771 | F28: 0:19 | G28: 1:31 | H28: 46.1 | I28: 58.9 | J28: 119
A29: 2018-10-03 | B29: 12 | C29: 0.6 | D29: 15.2 | E29: 833 | F29: 0:00 | G29: 0:00 | H29: 46.8 | I29: 57.9 | J29: 120
A30: 2018-11-16 | B30: 77 | C30: 4 | D30: 16.8 | E30: 867 | F30: 0:47 | G30: 0:00 | H30: 46.5 | I30: 58.5 | J30: 112
A31: 2018-11-05 | B31: 114 | C31: 5.8 | D31: 17.2 | E31: 870 | F31: 0:00 | G31: 0:00 | H31: 46.7 | I31: 52.5 | J31: 115
A32: 2018-11-18 | B32: 91 | C32: 4.5 | D32: 17.4 | E32: 872 | F32: 1:23 | G32: 0:00 | H32: 49.1 | I32: 58.9 | J32: 119
A33: 2018-11-02 | B33: 93 | C33: 5 | D33: 16.2 | E33: 874 | F33: 0:04 | G33: 5:01 | H33: 48.3 | I33: 58 | J33: 116
A34: 2018-11-22 | B34: 72 | C34: 3.7 | D34: 16.8 | E34: 875 | F34: 0:25 | G34: 0:00 | H34: 46.1 | I34: 58.6 | J34: 119
A35: 2018-10-27 | B35: 104 | C35: 5.7 | D35: 16.1 | E35: 875 | F35: 0:18 | G35: 4:48 | H35: 48.2 | I35: 57.6 | J35: 127
A36: 2018-11-11 | B36: 90 | C36: 4.9 | D36: 16 | E36: 876 | F36: 0:00 | G36: 4:55 | H36: 46.9 | I36: 58.5 | J36: 113
A37: 2018-10-01 | B37: 139 | C37: 7.2 | D37: 17 | E37: 878 | F37: 0:00 | G37: 0:03 | H37: 47.4 | I37: 58.2 | J37: 118
A38: 2018-10-19 | B38: 119 | C38: 6.4 | D38: 16.1 | E38: 881 | F38: 0:06 | G38: 2:33 | H38: 48 | I38: 57.6 | J38: 112
A39: 2018-11-06 | B39: 93 | C39: 5.1 | D39: 16.3 | E39: 884 | F39: 0:10 | G39: 5:06 | H39: 48.1 | I39: 58 | J39: 119
A40: 2018-11-03 | B40: 119 | C40: 6.1 | D40: 17.1 | E40: 884 | F40: 0:00 | G40: 0:00 | H40: 46.9 | I40: 52.3 | J40: 113
A41: 9/20/18 | B41: 143 | C41: 7.5 | D41: 17 | E41: 887 | F41: 0:00 | G41: 0:00 | H41: 47.3 | I41: 54.4 | J41: 113
A42: 1/18/19 | B42: 11 | C42: 0.6 | D42: 16 | E42: 888 | F42: 2:00 | G42: 2:14 | H42: 51.1 | I42: 62.5 | J42: 119
A43: 2018-10-20 | B43: 120 | C43: 6.5 | D43: 17 | E43: 890 | F43: 0:14 | G43: 1:32 | H43: 47.2 | I43: 57.6 | J43: 110
A44: 2018-10-26 | B44: 118 | C44: 6.1 | D44: 17.4 | E44: 897 | F44: 0:00 | G44: 0:00 | H44: 47.1 | I44: 52.8 | J44: 112
A45: 2018-10-15 | B45: 105 | C45: 5.8 | D45: 16.3 | E45: 899 | F45: 0:16 | G45: 6:42 | H45: 47.9 | I45: 58.4 | J45: 117
A46: 9/14/18 | B46: 142 | C46: 7.6 | D46: 16.9 | E46: 901 | F46: 0:00 | G46: 0:52 | H46: 47.6 | I46: 58 | J46: 114
A47: 2018-10-28 | B47: 119 | C47: 6.1 | D47: 17.5 | E47: 902 | F47: 0:00 | G47: 0:00 | H47: 46.8 | I47: 52.5 | J47: 112
A48: 2018-10-25 | B48: 108 | C48: 5.9 | D48: 16.4 | E48: 903 | F48: 0:19 | G48: 4:23 | H48: 48.6 | I48: 58 | J48: 115
A49: 2018-10-21 | B49: 106 | C49: 5.8 | D49: 16.8 | E49: 905 | F49: 0:15 | G49: 5:04 | H49: 48.2 | I49: 57.6 | J49: 118
A50: 9/13/18 | B50: 143 | C50: 7.6 | D50: 17.2 | E50: 906 | F50: 0:00 | G50: 0:51 | H50: 47.6 | I50: 58 | J50: 119
A51: 9/23/18 | B51: 101 | C51: 5.5 | D51: 16.5 | E51: 909 | F51: 1:35 | G51: 7:31 | H51: 46.7 | I51: 58.9 | J51: 116
A52: 9/18/18 | B52: 145 | C52: 7.7 | D52: 17.2 | E52: 911 | F52: 0:00 | G52: 0:54 | H52: 47.3 | I52: 58 | J52: 118
A53: 2018-10-06 | B53: 130 | C53: 6.6 | D53: 18.2 | E53: 911 | F53: 0:00 | G53: 0:00 | H53: 46.7 | I53: 52.3 | J53: 120
A54: 9/16/18 | B54: 144 | C54: 7.7 | D54: 17.1 | E54: 911 | F54: 0:00 | G54: 0:00 | H54: 47.5 | I54: 58 | J54: 116
A55: 2018-10-31 | B55: 104 | C55: 5.7 | D55: 17.1 | E55: 912 | F55: 0:21 | G55: 4:07 | H55: 48.2 | I55: 58 | J55: 115
A56: 2018-10-22 | B56: 115 | C56: 5.9 | D56: 17.8 | E56: 913 | F56: 0:00 | G56: 0:00 | H56: 47 | I56: 53.1 | J56: 114
A57: 2018-11-09 | B57: 117 | C57: 6 | D57: 17.7 | E57: 913 | F57: 0:00 | G57: 0:00 | H57: 47.5 | I57: 52.6 | J57: 113
A58: 9/17/18 | B58: 145 | C58: 7.7 | D58: 17.6 | E58: 915 | F58: 0:00 | G58: 0:00 | H58: 47.5 | I58: 56.7 | J58: 117
A59: 2018-10-08 | B59: 125 | C59: 6.8 | D59: 16.9 | E59: 916 | F59: 0:13 | G59: 2:43 | H59: 48 | I59: 58 | J59: 115
A60: 2018-10-18 | B60: 111 | C60: 6.1 | D60: 16.7 | E60: 920 | F60: 0:16 | G60: 4:19 | H60: 47.9 | I60: 58 | J60: 113
A61: 2018-10-16 | B61: 126 | C61: 6.9 | D61: 17.3 | E61: 926 | F61: 0:12 | G61: 2:48 | H61: 46.2 | I61: 58 | J61: 113
A62: 2018-12-14 | B62: 98 | C62: 5.3 | D62: 17.6 | E62: 927 | F62: 0:00 | G62: 3:07 | H62: 47.5 | I62: 58.4 | J62: 121
A63: 9/12/18 | B63: 145 | C63: 7.7 | D63: 17.4 | E63: 927 | F63: 0:00 | G63: 0:52 | H63: 47.5 | I63: 57.6 | J63: 118
A64: 2018-10-30 | B64: 128 | C64: 6.6 | D64: 17.7 | E64: 927 | F64: 0:00 | G64: 0:00 | H64: 46.6 | I64: 52.9 | J64: 116
A65: 2018-11-12 | B65: 102 | C65: 5.2 | D65: 17.7 | E65: 927 | F65: 0:00 | G65: 0:00 | H65: 47.5 | I65: 52.5 | J65: 112
A66: 2018-11-13 | B66: 59 | C66: 2.9 | D66: 18.2 | E66: 928 | F66: 0:00 | G66: 0:00 | H66: 46.8 | I66: 56.4 | J66: 123
A67: 2018-11-26 | B67: 108 | C67: 5.6 | D67: 18 | E67: 931 | F67: 0:45 | G67: 0:02 | H67: 46.4 | I67: 58.6 | J67: 117
A68: 2018-10-07 | B68: 121 | C68: 6.6 | D68: 17.4 | E68: 931 | F68: 0:20 | G68: 5:23 | H68: 47.7 | I68: 58 | J68: 116
A69: 2018-11-15 | B69: 100 | C69: 5.1 | D69: 18.2 | E69: 931 | F69: 0:00 | G69: 0:00 | H69: 46.7 | I69: 53.3 | J69: 110
A70: 2018-10-17 | B70: 124 | C70: 6.7 | D70: 17.5 | E70: 933 | F70: 0:16 | G70: 3:08 | H70: 47.2 | I70: 58 | J70: 115
A71: 9/15/18 | B71: 145 | C71: 7.8 | D71: 17.3 | E71: 935 | F71: 0:00 | G71: 0:49 | H71: 47.4 | I71: 58 | J71: 119
A72: 2018-11-20 | B72: 90 | C72: 4.5 | D72: 18.3 | E72: 936 | F72: 0:38 | G72: 0:00 | H72: 46.7 | I72: 58.5 | J72: 120
A73: 2018-12-20 | B73: 102 | C73: 5.4 | D73: 18.1 | E73: 936 | F73: 0:00 | G73: 1:15 | H73: 46.4 | I73: 58.2 | J73: 118
A74: 2018-12-30 | B74: 116 | C74: 5.6 | D74: 19.4 | E74: 939 | F74: 0:00 | G74: 0:00 | H74: 51.1 | I74: 52.6 | J74: 116
A75: 2018-12-03 | B75: 111 | C75: 5.7 | D75: 18.2 | E75: 940 | F75: 0:31 | G75: 0:00 | H75: 51.1 | I75: 59.3 | J75: 128
A76: 1/04/19 | B76: 107 | C76: 5.6 | D76: 18.1 | E76: 941 | F76: 0:00 | G76: 0:00 | H76: 47 | I76: 53.1 | J76: 116
A77: 2018-10-05 | B77: 125 | C77: 6.8 | D77: 17.2 | E77: 942 | F77: 0:17 | G77: 3:58 | H77: 48.1 | I77: 58 | J77: 117
A78: 2018-12-12 | B78: 95 | C78: 5.2 | D78: 17.7 | E78: 943 | F78: 0:12 | G78: 3:18 | H78: 47.4 | I78: 58.4 | J78: 118
A79: 2018-12-22 | B79: 90 | C79: 4.9 | D79: 18 | E79: 945 | F79: 0:11 | G79: 2:29 | H79: 47.6 | I79: 58.4 | J79: 117
A80: 2018-10-09 | B80: 79 | C80: 4.2 | D80: 17.8 | E80: 945 | F80: 0:00 | G80: 0:15 | H80: 47.4 | I80: 54.8 | J80: 119
A81: 9/19/18 | B81: 142 | C81: 7.6 | D81: 17.6 | E81: 945 | F81: 0:00 | G81: 0:00 | H81: 47.4 | I81: 57.5 | J81: 118
A82: 2018-11-07 | B82: 101 | C82: 5.2 | D82: 18.1 | E82: 947 | F82: 0:00 | G82: 0:00 | H82: 46.7 | I82: 52.7 | J82: 119
A83: 2018-12-16 | B83: 80 | C83: 4.4 | D83: 17.5 | E83: 949 | F83: 0:18 | G83: 2:08 | H83: 47.2 | I83: 58.4 | J83: 128
A84: 2018-11-01 | B84: 94 | C84: 4.7 | D84: 18.6 | E84: 949 | F84: 0:00 | G84: 0:00 | H84: 46.7 | I84: 52 | J84: 122
A85: 2018-10-24 | B85: 117 | C85: 6 | D85: 18.8 | E85: 949 | F85: 0:00 | G85: 0:00 | H85: 47 | I85: 52.9 | J85: 116
A86: 2018-11-27 | B86: 107 | C86: 5.4 | D86: 18.6 | E86: 951 | F86: 0:05 | G86: 0:00 | H86: 46.7 | I86: 58.5 | J86: 120
A87: 2018-11-08 | B87: 68 | C87: 3.7 | D87: 17.4 | E87: 952 | F87: 2:00 | G87: 3:18 | H87: 47.6 | I87: 62.1 | J87: 116
A88: 1/07/19 | B88: 7 | C88: 0.3 | D88: 19.1 | E88: 952 | F88: 1:05 | G88: 0:00 | H88: 49.2 | I88: 59.3 | J88: 121
A89: 2018-10-10 | B89: 22 | C89: 1.2 | D89: 16 | E89: 953 | F89: 0:03 | G89: 0:00 | H89: 47.5 | I89: 58.4 | J89: 127
A90: 9/26/18 | B90: 122 | C90: 6.6 | D90: 17.4 | E90: 954 | F90: 0:22 | G90: 5:01 | H90: 47.6 | I90: 58.9 | J90: 115
A91: 2018-10-23 | B91: 99 | C91: 5.4 | D91: 17.4 | E91: 955 | F91: 0:22 | G91: 2:34 | H91: 48.2 | I91: 58.1 | J91: 116
A92: 1/11/19 | B92: 105 | C92: 5.6 | D92: 18.2 | E92: 955 | F92: 0:00 | G92: 0:00 | H92: 48.1 | I92: 56.3 | J92: 120
A93: 2018-12-09 | B93: 74 | C93: 4.1 | D93: 17.5 | E93: 957 | F93: 0:55 | G93: 3:25 | H93: 47.7 | I93: 58.9 | J93: 115
A94: 1/05/19 | B94: 71 | C94: 4 | D94: 17.8 | E94: 960 | F94: 1:15 | G94: 3:53 | H94: 46.8 | I94: 59.3 | J94: 117
A95: 1/03/19 | B95: 107 | C95: 5.7 | D95: 18 | E95: 962 | F95: 0:00 | G95: 2:24 | H95: 47 | I95: 59.3 | J95: 117
A96: 2018-11-04 | B96: 99 | C96: 5.4 | D96: 17.7 | E96: 968 | F96: 0:23 | G96: 4:56 | H96: 47.9 | I96: 57.8 | J96: 113
A97: 2018-12-08 | B97: 80 | C97: 4.4 | D97: 18.2 | E97: 971 | F97: 0:47 | G97: 4:31 | H97: 46.6 | I97: 58.9 | J97: 117
A98: 9/21/18 | B98: 140 | C98: 7.3 | D98: 19.1 | E98: 971 | F98: 0:00 | G98: 0:00 | H98: 47.5 | I98: 53.8 | J98: 115
A99: 2018-11-25 | B99: 53 | C99: 2.7 | D99: 18.9 | E99: 974 | F99: 0:43 | G99: 0:00 | H99: 46.5 | I99: 58.8 | J99: 115
A100: 2018-12-28 | B100: 113 | C100: 5.7 | D100: 19.3 | E100: 976 | F100: 0:00 | G100: 0:00 | H100: 46 | I100: 51 | J100: 114
A101: 2018-12-23 | B101: 85 | C101: 4.7 | D101: 17.5 | E101: 980 | F101: 0:13 | G101: 3:57 | H101: 47.4 | I101: 58.4 | J101: 119
A102: 1/02/19 | B102: 111 | C102: 5.7 | D102: 19.1 | E102: 984 | F102: 0:00 | G102: 0:00 | H102: 46.7 | I102: 52 | J102: 116
A103: 2018-12-10 | B103: 59 | C103: 3.2 | D103: 17.9 | E103: 990 | F103: 0:00 | G103: 0:00 | H103: 46.8 | I103: 58.4 | J103: 122
A104: 1/01/19 | B104: 67 | C104: 3.7 | D104: 17.9 | E104: 993 | F104: 1:00 | G104: 4:02 | H104: 48.7 | I104: 58.9 | J104: 124
A105: 2018-11-28 | B105: 53 | C105: 2.6 | D105: 19.8 | E105: 993 | F105: 0:50 | G105: 0:00 | H105: 46.3 | I105: 58.8 | J105: 120
A106: 2018-12-24 | B106: 56 | C106: 3 | D106: 17.5 | E106: 1001 | F106: 0:18 | G106: 0:32 | H106: 46.6 | I106: 58.4 | J106: 124
A107: 2018-11-17 | B107: 85 | C107: 4.2 | D107: 19.4 | E107: 1001 | F107: 0:18 | G107: 0:00 | H107: 46.7 | I107: 58.9 | J107: 116
A108: 2018-10-14 | B108: 117 | C108: 5.9 | D108: 20.4 | E108: 1002 | F108: 0:00 | G108: 0:00 | H108: 46.3 | I108: 51.9 | J108: 116
A109: 2018-12-29 | B109: 116 | C109: 5.7 | D109: 20.4 | E109: 1003 | F109: 0:00 | G109: 0:00 | H109: 44.8 | I109: 49.8 | J109: 126
A110: 2018-10-29 | B110: 80 | C110: 4.4 | D110: 18.5 | E110: 1006 | F110: 0:17 | G110: 3:00 | H110: 48.1 | I110: 58 | J110: 114
A111: 2018-12-19 | B111: 98 | C111: 5.2 | D111: 19.7 | E111: 1007 | F111: 0:00 | G111: 1:15 | H111: 51.1 | I111: 58.7 | J111: 117
A112: 9/22/18 | B112: 125 | C112: 6.4 | D112: 19.8 | E112: 1010 | F112: 0:00 | G112: 0:00 | H112: 46.3 | I112: 52.2 | J112: 117
A113: 2018-12-13 | B113: 94 | C113: 5.2 | D113: 18.3 | E113: 1012 | F113: 0:05 | G113: 3:41 | H113: 45.8 | I113: 58.4 | J113: 123
A114: 2018-12-27 | B114: 101 | C114: 5.3 | D114: 19.5 | E114: 1030 | F114: 0:00 | G114: 0:00 | H114: 46.6 | I114: 58.6 | J114: 116
A115: 9/25/18 | B115: 141 | C115: 7.3 | D115: 20.7 | E115: 1035 | F115: 0:00 | G115: 0:00 | H115: 46.9 | I115: 53.6 | J115: 118
A116: 2018-12-31 | B116: 80 | C116: 4.5 | D116: 17.8 | E116: 1046 | F116: 0:00 | G116: 1:14 | H116: 47.8 | I116: 58.8 | J116: 122
A117: 9/24/18 | B117: 141 | C117: 7.3 | D117: 21.3 | E117: 1046 | F117: 0:00 | G117: 0:00 | H117: 46.7 | I117: 58.9 | J117: 119
A118: 1/12/19 | B118: 31 | C118: 1.5 | D118: 20.3 | E118: 1046 | F118: 0:00 | G118: 0:00 | H118: 46.9 | I118: 59 | J118: 117
A119: 9/29/18 | B119: 126 | C119: 6.4 | D119: 20.7 | E119: 1046 | F119: 0:00 | G119: 0:00 | H119: 47.4 | I119: 53.7 | J119: 119
A120: 9/30/18 | B120: 106 | C120: 5.8 | D120: 19.2 | E120: 1055 | F120: 0:15 | G120: 4:48 | H120: 51.1 | I120: 58.4 | J120: 116
A121: 2018-12-01 | B121: 104 | C121: 5.4 | D121: 20.1 | E121: 1064 | F121: 0:00 | G121: 0:00 | H121: 46.3 | I121: 55.2 | J121: 117
A122: 9/27/18 | B122: 100 | C122: 5.4 | D122: 21 | E122: 1077 | F122: 0:46 | G122: 5:25 | H122: 47.7 | I122: 58.9 | J122: 125
A123: 2018-12-21 | B123: 71 | C123: 3.8 | D123: 20.1 | E123: 1087 | F123: 0:00 | G123: 1:23 | H123: 47 | I123: 58.4 | J123: 123
A124: 2018-12-18 | B124: 85 | C124: 4.6 | D124: 21.3 | E124: 1096 | F124: 0:17 | G124: 2:11 | H124: 46.1 | I124: 58.4 | J124: 118
A125: 2018-12-25 | B125: 61 | C125: 3.3 | D125: 21.5 | E125: 1117 | F125: 0:02 | G125: 3:09 | H125: 47 | I125: 58.4 | J125: 120
A126: 2018-12-02 | B126: 41 | C126: 2.1 | D126: 20.5 | E126: 1125 | F126: 1:14 | G126: 0:49 | H126: 46.4 | I126: 59.2 | J126: 124
A127: 2018-12-04 | B127: 103 | C127: 5.2 | D127: 22.2 | E127: 1126 | F127: 0:33 | G127: 0:00 | H127: 46.2 | I127: 58.9 | J127: 114
A128: 2018-10-13 | B128: 110 | C128: 6 | D128: 21.5 | E128: 1133 | F128: 0:15 | G128: 3:31 | H128: 48.7 | I128: 58 | J128: 121
A129: 1/13/19 | B129: 49 | C129: 2.5 | D129: 22.5 | E129: 1175 | F129: 0:09 | G129: 0:00 | H129: 46.9 | I129: 58.9 | J129: 123
A130: 2018-12-07 | B130: 52 | C130: 2.8 | D130: 21.3 | E130: 1181 | F130: 0:44 | G130: 0:59 | H130: 46.5 | I130: 58.9 | J130: 121
A131: 1/08/19 | B131: 61 | C131: 3 | D131: 23.4 | E131: 1182 | F131: 0:00 | G131: 0:00 | H131: 46.1 | I131: 56.5 | J131: 127
A132: 9/28/18 | B132: 88 | C132: 4.8 | D132: 22.2 | E132: 1192 | F132: 0:43 | G132: 5:00 | H132: 48.5 | I132: 58.9 | J132: 118
A133: 2018-12-26 | B133: 86 | C133: 4.4 | D133: 22.8 | E133: 1194 | F133: 0:00 | G133: 0:00 | H133: 51.1 | I133: 53.5 | J133: 121
A134: 2018-12-11 | B134: 57 | C134: 3.1 | D134: 22.3 | E134: 1205 | F134: 0:00 | G134: 2:07 | H134: 47 | I134: 60.8 | J134: 119
A135: 2018-10-02 | B135: 102 | C135: 5.5 | D135: 22.5 | E135: 1229 | F135: 0:14 | G135: 2:11 | H135: 47.1 | I135: 58 | J135: 121
A136: 1/09/19 | B136: 23 | C136: 1.1 | D136: 23.8 | E136: 1230 | F136: 0:57 | G136: 0:00 | H136: 46.8 | I136: 58.9 | J136: 121
A137: 2018-10-12 | B137: 66 | C137: 3.3 | D137: 24.1 | E137: 1234 | F137: 0:00 | G137: 0:00 | H137: 46.5 | I137: 51.7 | J137: 115
A138: 2018-10-04 | B138: 84 | C138: 4.6 | D138: 23.6 | E138: 1287 | F138: 0:18 | G138: 1:38 | H138: 47.9 | I138: 58 | J138: 117
A139: 2018-12-06 | B139: 21 | C139: 1 | D139: 25.6 | E139: 1293 | F139: 0:46 | G139: 0:00 | H139: 46.4 | I139: 58.9 | J139: 122

Sheet 9
A1: Miller Solar
A2: 17395 Oak Rd. Atascadero, CA 93422
A3: WORKSHEET
A5: Client: | B5: Pataye
A6: Project: | B6: Radian
A7: Date: | D7: Revision:
A10: CC | B10: Date | C10: Time | D10: Port | E10: Device Type (3) | F10: unused | G10: Charger Current | H10: PV Current | I10: PV Voltage | J10: Daily KWh | K10: CC Amps (tenths) | L10: Aux Mode | M10: Error Code | N10: Mode | O10: Battery Voltage | P10: Amp Hours | Q10: unused
A11: Radian | B11: Date | C11: Time | D11: Port | E11: Device Type (6) | F11: L1 Inverter Current | G11: L1 Charger Current | H11: L1 Buy Current | I11: L1 Sell Current | J11: L1 Grid input Voltage | K11: L1 Generator input voltage | L11: L1 Output Voltage | M11: L2 Inverter Current | N11: L2 Charger Current | O11: L2 Buy Current | P11: L2 Sell Current | Q11: L2 Grid input Voltage | R11: L2 Generator input Voltage | S11: L2 Output Voltage | T11: Inverter operating mode | U11: Error Codes | V11: AC mode | W11: Battery Voltage | X11: Misc | Y11: Warning Codes | Z11: Column1 | AA11: Column2
B12: 2/01/19 | C12: 11:00:00 | D12: 1 | E12: 6 | F12: 1 | G12: 0 | H12: 0 | I12: 0 | J12: 0 | K12: 0 | L12: 123 | M12: 1 | N12: 0 | O12: 0 | P12: 0 | Q12: 0 | R12: 0 | S12: 124 | T12: 2 | U12: 0 | V12: 0 | W12: 504 | X12: 76 | Y12: 0
B13: 2/01/19 | C13: 11:00:00 | D13: 2 | E13: 6 | F13: 0 | G13: 0 | H13: 0 | I13: 0 | J13: 0 | K13: 0 | L13: 123 | M13: 0 | N13: 0 | O13: 0 | P13: 0 | Q13: 0 | R13: 0 | S13: 124 | T13: 2 | U13: 0 | V13: 0 | W13: 508 | X13: 76 | Y13: 0
B14: 2/01/19 | C14: 11:00:00 | D14: 3 | E14: 6 | F14: 0 | G14: 0 | H14: 0 | I14: 0 | J14: 0 | K14: 0 | L14: 123 | M14: 0 | N14: 0 | O14: 0 | P14: 0 | Q14: 0 | R14: 0 | S14: 123 | T14: 2 | U14: 0 | V14: 0 | W14: 508 | X14: 76 | Y14: 0
B15: 2/12/19 | C15: 9:00:00 | D15: 1 | E15: 6 | F15: 1 | G15: 0 | H15: 0 | I15: 0 | J15: 0 | K15: 0 | L15: 123 | M15: 1 | N15: 0 | O15: 0 | P15: 0 | Q15: 0 | R15: 0 | S15: 124 | T15: 91 | U15: 0 | V15: 0 | W15: 448 | X15: 76 | Y15: 0
B16: 2/12/19 | C16: 9:00:00 | D16: 2 | E16: 6 | F16: 0 | G16: 0 | H16: 0 | I16: 0 | J16: 0 | K16: 0 | L16: 123 | M16: 0 | N16: 0 | O16: 0 | P16: 0 | Q16: 0 | R16: 0 | S16: 123 | T16: 91 | U16: 0 | V16: 0 | W16: 448 | X16: 108 | Y16: 0
B17: 2/12/19 | C17: 9:00:00 | D17: 3 | E17: 6 | F17: 0 | G17: 0 | H17: 0 | I17: 0 | J17: 0 | K17: 0 | L17: 123 | M17: 0 | N17: 0 | O17: 0 | P17: 0 | Q17: 0 | R17: 0 | S17: 123 | T17: 91 | U17: 0 | V17: 0 | W17: 448 | X17: 108 | Y17: 0
B18: 2/12/19 | C18: 9:00:00 | D18: 10 | E18: 4 | F18: 66 | G18: 2 | H18: 3 | I18: 8 | J18: 1 | K18: 448 | L18: 100 | M18: 111 | N18: 8 | O18: 17
B19: 2/12/19 | C19: 9:00:05 | D19: 1 | E19: 6 | F19: 1 | G19: 0 | H19: 0 | I19: 0 | J19: 0 | K19: 0 | L19: 123 | M19: 1 | N19: 0 | O19: 0 | P19: 0 | Q19: 0 | R19: 0 | S19: 124 | T19: 91 | U19: 0 | V19: 0 | W19: 448 | X19: 76 | Y19: 0
B20: 2/12/19 | C20: 9:00:05 | D20: 2 | E20: 6 | F20: 0 | G20: 0 | H20: 0 | I20: 0 | J20: 0 | K20: 0 | L20: 123 | M20: 0 | N20: 0 | O20: 0 | P20: 0 | Q20: 0 | R20: 0 | S20: 123 | T20: 91 | U20: 0 | V20: 0 | W20: 448 | X20: 108 | Y20: 0
B21: 2/12/19 | C21: 9:00:05 | D21: 3 | E21: 6 | F21: 0 | G21: 0 | H21: 0 | I21: 0 | J21: 0 | K21: 0 | L21: 123 | M21: 0 | N21: 0 | O21: 0 | P21: 0 | Q21: 0 | R21: 0 | S21: 123 | T21: 91 | U21: 0 | V21: 0 | W21: 448 | X21: 108 | Y21: 0
B22: 2/12/19 | C22: 9:00:05 | D22: 10 | E22: 4 | F22: 65 | G22: 3 | H22: 3 | I22: 9 | J22: 66 | K22: 448 | L22: 100 | M22: 111 | N22: 8 | O22: 17
B23: 2/12/19 | C23: 9:00:10 | D23: 1 | E23: 6 | F23: 1 | G23: 0 | H23: 0 | I23: 0 | J23: 0 | K23: 0 | L23: 123 | M23: 1 | N23: 0 | O23: 0 | P23: 0 | Q23: 0 | R23: 0 | S23: 124 | T23: 91 | U23: 0 | V23: 0 | W23: 448 | X23: 76 | Y23: 0
B24: 2/12/19 | C24: 9:00:10 | D24: 2 | E24: 6 | F24: 0 | G24: 0 | H24: 0 | I24: 0 | J24: 0 | K24: 0 | L24: 123 | M24: 0 | N24: 0 | O24: 0 | P24: 0 | Q24: 0 | R24: 0 | S24: 123 | T24: 91 | U24: 0 | V24: 0 | W24: 448 | X24: 108 | Y24: 0
B25: 2/12/19 | C25: 9:00:10 | D25: 3 | E25: 6 | F25: 0 | G25: 0 | H25: 0 | I25: 0 | J25: 0 | K25: 0 | L25: 123 | M25: 0 | N25: 0 | O25: 0 | P25: 0 | Q25: 0 | R25: 0 | S25: 123 | T25: 91 | U25: 0 | V25: 0 | W25: 448 | X25: 108 | Y25: 0
B26: 2/12/19 | C26: 9:00:10 | D26: 10 | E26: 4 | F26: 65 | G26: 3 | H26: 3 | I26: 10 | J26: 2 | K26: 448 | L26: 100 | M26: 111 | N26: 8 | O26: 17
B27: 2/12/19 | C27: 9:00:15 | D27: 1 | E27: 6 | F27: 1 | G27: 0 | H27: 0 | I27: 0 | J27: 0 | K27: 0 | L27: 123 | M27: 1 | N27: 0 | O27: 0 | P27: 0 | Q27: 0 | R27: 0 | S27: 124 | T27: 91 | U27: 0 | V27: 0 | W27: 448 | X27: 76 | Y27: 0
B28: 2/12/19 | C28: 9:00:15 | D28: 2 | E28: 6 | F28: 0 | G28: 0 | H28: 0 | I28: 0 | J28: 0 | K28: 0 | L28: 123 | M28: 0 | N28: 0 | O28: 0 | P28: 0 | Q28: 0 | R28: 0 | S28: 123 | T28: 91 | U28: 0 | V28: 0 | W28: 448 | X28: 108 | Y28: 0
B29: 2/12/19 | C29: 9:00:15 | D29: 3 | E29: 6 | F29: 0 | G29: 0 | H29: 0 | I29: 0 | J29: 0 | K29: 0 | L29: 123 | M29: 0 | N29: 0 | O29: 0 | P29: 0 | Q29: 0 | R29: 0 | S29: 123 | T29: 91 | U29: 0 | V29: 0 | W29: 448 | X29: 108 | Y29: 0
B30: 2/12/19 | C30: 9:00:15 | D30: 10 | E30: 4 | F30: 66 | G30: 2 | H30: 3 | I30: 11 | J30: 295 | K30: 448 | L30: 100 | M30: 111 | N30: 8 | O30: 17
B31: 2/12/19 | C31: 9:00:20 | D31: 1 | E31: 6 | F31: 1 | G31: 0 | H31: 0 | I31: 0 | J31: 0 | K31: 0 | L31: 123 | M31: 1 | N31: 0 | O31: 0 | P31: 0 | Q31: 0 | R31: 0 | S31: 124 | T31: 91 | U31: 0 | V31: 0 | W31: 448 | X31: 76 | Y31: 0
B32: 2/12/19 | C32: 9:00:20 | D32: 2 | E32: 6 | F32: 0 | G32: 0 | H32: 0 | I32: 0 | J32: 0 | K32: 0 | L32: 123 | M32: 0 | N32: 0 | O32: 0 | P32: 0 | Q32: 0 | R32: 0 | S32: 123 | T32: 91 | U32: 0 | V32: 0 | W32: 448 | X32: 108 | Y32: 0
B33: 2/12/19 | C33: 9:00:20 | D33: 3 | E33: 6 | F33: 0 | G33: 0 | H33: 0 | I33: 0 | J33: 0 | K33: 0 | L33: 123 | M33: 0 | N33: 0 | O33: 0 | P33: 0 | Q33: 0 | R33: 0 | S33: 123 | T33: 91 | U33: 0 | V33: 0 | W33: 448 | X33: 108 | Y33: 0
B34: 2/12/19 | C34: 9:00:20 | D34: 10 | E34: 4 | F34: 65 | G34: 2 | H34: 3 | I34: 76 | J34: 5847 | K34: 448 | L34: 100 | M34: 111 | N34: 8 | O34: 17
B35: 2/12/19 | C35: 9:00:25 | D35: 1 | E35: 6 | F35: 1 | G35: 0 | H35: 0 | I35: 0 | J35: 0 | K35: 0 | L35: 123 | M35: 1 | N35: 0 | O35: 0 | P35: 0 | Q35: 0 | R35: 0 | S35: 124 | T35: 91 | U35: 0 | V35: 0 | W35: 448 | X35: 76 | Y35: 0
B36: 2/12/19 | C36: 9:00:25 | D36: 2 | E36: 6 | F36: 0 | G36: 0 | H36: 0 | I36: 0 | J36: 0 | K36: 0 | L36: 123 | M36: 0 | N36: 0 | O36: 0 | P36: 0 | Q36: 0 | R36: 0 | S36: 123 | T36: 91 | U36: 0 | V36: 0 | W36: 448 | X36: 108 | Y36: 0
B37: 2/12/19 | C37: 9:00:25 | D37: 3 | E37: 6 | F37: 0 | G37: 0 | H37: 0 | I37: 0 | J37: 0 | K37: 0 | L37: 124 | M37: 0 | N37: 0 | O37: 0 | P37: 0 | Q37: 0 | R37: 0 | S37: 123 | T37: 91 | U37: 0 | V37: 0 | W37: 448 | X37: 108 | Y37: 0
B38: 2/12/19 | C38: 9:00:25 | D38: 10 | E38: 4 | F38: 66 | G38: 2 | H38: 3 | I38: 77 | J38: 27579 | K38: 448 | L38: 100 | M38: 111 | N38: 8 | O38: 17
B39: 2/12/19 | C39: 9:00:30 | D39: 1 | E39: 6 | F39: 1 | G39: 0 | H39: 0 | I39: 0 | J39: 0 | K39: 0 | L39: 123 | M39: 1 | N39: 0 | O39: 0 | P39: 0 | Q39: 0 | R39: 0 | S39: 124 | T39: 91 | U39: 0 | V39: 0 | W39: 448 | X39: 76 | Y39: 0
B40: 2/12/19 | C40: 9:00:30 | D40: 2 | E40: 6 | F40: 0 | G40: 0 | H40: 0 | I40: 0 | J40: 0 | K40: 0 | L40: 123 | M40: 0 | N40: 0 | O40: 0 | P40: 0 | Q40: 0 | R40: 0 | S40: 123 | T40: 91 | U40: 0 | V40: 0 | W40: 448 | X40: 108 | Y40: 0
B41: 2/12/19 | C41: 9:00:30 | D41: 3 | E41: 6 | F41: 0 | G41: 0 | H41: 0 | I41: 0 | J41: 0 | K41: 0 | L41: 123 | M41: 0 | N41: 0 | O41: 0 | P41: 0 | Q41: 0 | R41: 0 | S41: 123 | T41: 91 | U41: 0 | V41: 0 | W41: 448 | X41: 108 | Y41: 0
B42: 2/12/19 | C42: 9:00:30 | D42: 10 | E42: 4 | F42: 66 | G42: 2 | H42: 2 | I42: 64 | J42: 6312 | K42: 448 | L42: 100 | M42: 111 | N42: 8 | O42: 17
B43: 2/12/19 | C43: 9:00:35 | D43: 1 | E43: 6 | F43: 1 | G43: 0 | H43: 0 | I43: 0 | J43: 0 | K43: 0 | L43: 123 | M43: 1 | N43: 0 | O43: 0 | P43: 0 | Q43: 0 | R43: 0 | S43: 124 | T43: 91 | U43: 0 | V43: 0 | W43: 448 | X43: 76 | Y43: 0
B44: 2/12/19 | C44: 9:00:35 | D44: 2 | E44: 6 | F44: 0 | G44: 0 | H44: 0 | I44: 0 | J44: 0 | K44: 0 | L44: 123 | M44: 0 | N44: 0 | O44: 0 | P44: 0 | Q44: 0 | R44: 0 | S44: 123 | T44: 91 | U44: 0 | V44: 0 | W44: 448 | X44: 108 | Y44: 0
B45: 2/12/19 | C45: 9:00:35 | D45: 3 | E45: 6 | F45: 0 | G45: 0 | H45: 0 | I45: 0 | J45: 0 | K45: 0 | L45: 123 | M45: 0 | N45: 0 | O45: 0 | P45: 0 | Q45: 0 | R45: 0 | S45: 123 | T45: 91 | U45: 0 | V45: 0 | W45: 448 | X45: 108 | Y45: 0
B46: 2/12/19 | C46: 9:00:35 | D46: 10 | E46: 4 | F46: 66 | G46: 2 | H46: 3 | I46: 65 | J46: 29972 | K46: 448 | L46: 100 | M46: 111 | N46: 8 | O46: 17
B47: 2/12/19 | C47: 9:00:40 | D47: 1 | E47: 6 | F47: 1 | G47: 0 | H47: 0 | I47: 0 | J47: 0 | K47: 0 | L47: 123 | M47: 1 | N47: 0 | O47: 0 | P47: 0 | Q47: 0 | R47: 0 | S47: 124 | T47: 91 | U47: 0 | V47: 0 | W47: 448 | X47: 76 | Y47: 0
B48: 2/12/19 | C48: 9:00:40 | D48: 2 | E48: 6 | F48: 0 | G48: 0 | H48: 0 | I48: 0 | J48: 0 | K48: 0 | L48: 123 | M48: 0 | N48: 0 | O48: 0 | P48: 0 | Q48: 0 | R48: 0 | S48: 123 | T48: 91 | U48: 0 | V48: 0 | W48: 448 | X48: 108 | Y48: 0
B49: 2/12/19 | C49: 9:00:40 | D49: 3 | E49: 6 | F49: 0 | G49: 0 | H49: 0 | I49: 0 | J49: 0 | K49: 0 | L49: 123 | M49: 0 | N49: 0 | O49: 0 | P49: 0 | Q49: 0 | R49: 0 | S49: 123 | T49: 91 | U49: 0 | V49: 0 | W49: 448 | X49: 108 | Y49: 0
B50: 2/12/19 | C50: 9:00:40 | D50: 10 | E50: 4 | F50: 66 | G50: 3 | H50: 2 | I50: 2 | J50: 8 | K50: 448 | L50: 100 | M50: 111 | N50: 8 | O50: 17
B51: 2/12/19 | C51: 9:00:45 | D51: 1 | E51: 6 | F51: 1 | G51: 0 | H51: 0 | I51: 0 | J51: 0 | K51: 0 | L51: 123 | M51: 1 | N51: 0 | O51: 0 | P51: 0 | Q51: 0 | R51: 0 | S51: 124 | T51: 91 | U51: 0 | V51: 0 | W51: 448 | X51: 76 | Y51: 0
B52: 2/12/19 | C52: 9:00:45 | D52: 2 | E52: 6 | F52: 0 | G52: 0 | H52: 0 | I52: 0 | J52: 0 | K52: 0 | L52: 123 | M52: 0 | N52: 0 | O52: 0 | P52: 0 | Q52: 0 | R52: 0 | S52: 123 | T52: 91 | U52: 0 | V52: 0 | W52: 448 | X52: 108 | Y52: 0
B53: 2/12/19 | C53: 9:00:45 | D53: 3 | E53: 6 | F53: 0 | G53: 0 | H53: 0 | I53: 0 | J53: 0 | K53: 0 | L53: 124 | M53: 0 | N53: 0 | O53: 0 | P53: 0 | Q53: 0 | R53: 0 | S53: 123 | T53: 91 | U53: 0 | V53: 0 | W53: 448 | X53: 108 | Y53: 0
B54: 2/12/19 | C54: 9:00:45 | D54: 10 | E54: 4 | F54: 66 | G54: 2 | H54: 2 | I54: 3 | J54: 28 | K54: 448 | L54: 100 | M54: 111 | N54: 8 | O54: 17
B55: 2/12/19 | C55: 9:00:50 | D55: 1 | E55: 6 | F55: 1 | G55: 0 | H55: 0 | I55: 0 | J55: 0 | K55: 0 | L55: 123 | M55: 1 | N55: 0 | O55: 0 | P55: 0 | Q55: 0 | R55: 0 | S55: 124 | T55: 91 | U55: 0 | V55: 0 | W55: 448 | X55: 76 | Y55: 0
B56: 2/12/19 | C56: 9:00:50 | D56: 2 | E56: 6 | F56: 0 | G56: 0 | H56: 0 | I56: 0 | J56: 0 | K56: 0 | L56: 123 | M56: 0 | N56: 0 | O56: 0 | P56: 0 | Q56: 0 | R56: 0 | S56: 123 | T56: 91 | U56: 0 | V56: 0 | W56: 448 | X56: 108 | Y56: 0
B57: 2/12/19 | C57: 9:00:50 | D57: 3 | E57: 6 | F57: 0 | G57: 0 | H57: 0 | I57: 0 | J57: 0 | K57: 0 | L57: 123 | M57: 0 | N57: 0 | O57: 0 | P57: 0 | Q57: 0 | R57: 0 | S57: 123 | T57: 91 | U57: 0 | V57: 0 | W57: 448 | X57: 108 | Y57: 0
B58: 2/12/19 | C58: 9:00:50 | D58: 10 | E58: 4 | F58: 65 | G58: 3 | H58: 3 | I58: 4 | J58: 512 | K58: 448 | L58: 100 | M58: 111 | N58: 8 | O58: 17
B59: 2/12/19 | C59: 9:00:55 | D59: 1 | E59: 6 | F59: 1 | G59: 0 | H59: 0 | I59: 0 | J59: 0 | K59: 0 | L59: 123 | M59: 1 | N59: 0 | O59: 0 | P59: 0 | Q59: 0 | R59: 0 | S59: 124 | T59: 91 | U59: 0 | V59: 0 | W59: 448 | X59: 76 | Y59: 0
B60: 2/12/19 | C60: 9:00:55 | D60: 2 | E60: 6 | F60: 0 | G60: 0 | H60: 0 | I60: 0 | J60: 0 | K60: 0 | L60: 123 | M60: 0 | N60: 0 | O60: 0 | P60: 0 | Q60: 0 | R60: 0 | S60: 123 | T60: 91 | U60: 0 | V60: 0 | W60: 448 | X60: 108 | Y60: 0
B61: 2/12/19 | C61: 9:00:55 | D61: 3 | E61: 6 | F61: 0 | G61: 0 | H61: 0 | I61: 0 | J61: 0 | K61: 0 | L61: 123 | M61: 0 | N61: 0 | O61: 0 | P61: 0 | Q61: 0 | R61: 0 | S61: 123 | T61: 91 | U61: 0 | V61: 0 | W61: 448 | X61: 108 | Y61: 0
B62: 2/12/19 | C62: 9:00:55 | D62: 10 | E62: 4 | F62: 66 | G62: 2 | H62: 3 | I62: 5 | J62: 2637 | K62: 448 | L62: 100 | M62: 111 | N62: 8 | O62: 17
B63: 2/12/19 | C63: 9:01:00 | D63: 1 | E63: 6 | F63: 1 | G63: 0 | H63: 0 | I63: 0 | J63: 0 | K63: 0 | L63: 123 | M63: 1 | N63: 0 | O63: 0 | P63: 0 | Q63: 0 | R63: 0 | S63: 124 | T63: 91 | U63: 0 | V63: 0 | W63: 448 | X63: 76 | Y63: 0
B64: 2/12/19 | C64: 9:01:00 | D64: 2 | E64: 6 | F64: 0 | G64: 0 | H64: 0 | I64: 0 | J64: 0 | K64: 0 | L64: 123 | M64: 0 | N64: 0 | O64: 0 | P64: 0 | Q64: 0 | R64: 0 | S64: 123 | T64: 91 | U64: 0 | V64: 0 | W64: 448 | X64: 108 | Y64: 0
B65: 2/12/19 | C65: 9:01:00 | D65: 3 | E65: 6 | F65: 0 | G65: 0 | H65: 0 | I65: 0 | J65: 0 | K65: 0 | L65: 123 | M65: 0 | N65: 0 | O65: 0 | P65: 0 | Q65: 0 | R65: 0 | S65: 123 | T65: 91 | U65: 0 | V65: 0 | W65: 448 | X65: 108 | Y65: 0
B66: 2/12/19 | C66: 9:01:00 | D66: 10 | E66: 4 | F66: 66 | G66: 2 | H66: 3 | I66: 6 | J66: 115 | K66: 448 | L66: 100 | M66: 111 | N66: 8 | O66: 17
B67: 2/12/19 | C67: 9:01:05 | D67: 1 | E67: 6 | F67: 1 | G67: 0 | H67: 0 | I67: 0 | J67: 0 | K67: 0 | L67: 123 | M67: 1 | N67: 0 | O67: 0 | P67: 0 | Q67: 0 | R67: 0 | S67: 124 | T67: 91 | U67: 0 | V67: 0 | W67: 448 | X67: 76 | Y67: 0
B68: 2/12/19 | C68: 9:01:05 | D68: 2 | E68: 6 | F68: 0 | G68: 0 | H68: 0 | I68: 0 | J68: 0 | K68: 0 | L68: 123 | M68: 0 | N68: 0 | O68: 0 | P68: 0 | Q68: 0 | R68: 0 | S68: 123 | T68: 91 | U68: 0 | V68: 0 | W68: 448 | X68: 108 | Y68: 0
B69: 2/12/19 | C69: 9:01:05 | D69: 3 | E69: 6 | F69: 0 | G69: 0 | H69: 0 | I69: 0 | J69: 0 | K69: 0 | L69: 123 | M69: 0 | N69: 0 | O69: 0 | P69: 0 | Q69: 0 | R69: 0 | S69: 123 | T69: 91 | U69: 0 | V69: 0 | W69: 448 | X69: 108 | Y69: 0
B70: 2/12/19 | C70: 9:01:05 | D70: 10 | E70: 4 | F70: 66 | G70: 3 | H70: 3 | I70: 7 | J70: 1 | K70: 448 | L70: 100 | M70: 111 | N70: 8 | O70: 17
B71: 2/12/19 | C71: 9:01:10 | D71: 1 | E71: 6 | F71: 1 | G71: 0 | H71: 0 | I71: 0 | J71: 0 | K71: 0 | L71: 123 | M71: 1 | N71: 0 | O71: 0 | P71: 0 | Q71: 0 | R71: 0 | S71: 124 | T71: 91 | U71: 0 | V71: 0 | W71: 448 | X71: 76 | Y71: 0
B72: 2/12/19 | C72: 9:01:10 | D72: 2 | E72: 6 | F72: 0 | G72: 0 | H72: 0 | I72: 0 | J72: 0 | K72: 0 | L72: 123 | M72: 0 | N72: 0 | O72: 0 | P72: 0 | Q72: 0 | R72: 0 | S72: 123 | T72: 91 | U72: 0 | V72: 0 | W72: 448 | X72: 108 | Y72: 0
B73: 2/12/19 | C73: 9:01:10 | D73: 3 | E73: 6 | F73: 0 | G73: 0 | H73: 0 | I73: 0 | J73: 0 | K73: 0 | L73: 123 | M73: 0 | N73: 0 | O73: 0 | P73: 0 | Q73: 0 | R73: 0 | S73: 123 | T73: 91 | U73: 0 | V73: 0 | W73: 448 | X73: 108 | Y73: 0
B74: 2/12/19 | C74: 9:01:10 | D74: 10 | E74: 4 | F74: 66 | G74: 2 | H74: 3 | I74: 8 | J74: 2 | K74: 448 | L74: 100 | M74: 111 | N74: 8 | O74: 17
B75: 2/12/19 | C75: 9:01:15 | D75: 1 | E75: 6 | F75: 1 | G75: 0 | H75: 0 | I75: 0 | J75: 0 | K75: 0 | L75: 123 | M75: 1 | N75: 0 | O75: 0 | P75: 0 | Q75: 0 | R75: 0 | S75: 124 | T75: 91 | U75: 0 | V75: 0 | W75: 448 | X75: 76 | Y75: 0
B76: 2/12/19 | C76: 9:01:15 | D76: 2 | E76: 6 | F76: 0 | G76: 0 | H76: 0 | I76: 0 | J76: 0 | K76: 0 | L76: 123 | M76: 0 | N76: 0 | O76: 0 | P76: 0 | Q76: 0 | R76: 0 | S76: 123 | T76: 91 | U76: 0 | V76: 0 | W76: 448 | X76: 108 | Y76: 0
B77: 2/12/19 | C77: 9:01:15 | D77: 3 | E77: 6 | F77: 0 | G77: 0 | H77: 0 | I77: 0 | J77: 0 | K77: 0 | L77: 124 | M77: 0 | N77: 0 | O77: 0 | P77: 0 | Q77: 0 | R77: 0 | S77: 123 | T77: 91 | U77: 0 | V77: 0 | W77: 448 | X77: 108 | Y77: 0
B78: 2/12/19 | C78: 9:01:15 | D78: 10 | E78: 4 | F78: 66 | G78: 2 | H78: 3 | I78: 9 | J78: 66 | K78: 448 | L78: 100 | M78: 111 | N78: 8 | O78: 17
B79: 2/12/19 | C79: 9:01:20 | D79: 1 | E79: 6 | F79: 1 | G79: 0 | H79: 0 | I79: 0 | J79: 0 | K79: 0 | L79: 123 | M79: 1 | N79: 0 | O79: 0 | P79: 0 | Q79: 0 | R79: 0 | S79: 124 | T79: 91 | U79: 0 | V79: 0 | W79: 448 | X79: 76 | Y79: 0
B80: 2/12/19 | C80: 9:01:20 | D80: 2 | E80: 6 | F80: 0 | G80: 0 | H80: 0 | I80: 0 | J80: 0 | K80: 0 | L80: 123 | M80: 0 | N80: 0 | O80: 0 | P80: 0 | Q80: 0 | R80: 0 | S80: 123 | T80: 91 | U80: 0 | V80: 0 | W80: 448 | X80: 108 | Y80: 0
B81: 2/12/19 | C81: 9:01:20 | D81: 3 | E81: 6 | F81: 0 | G81: 0 | H81: 0 | I81: 0 | J81: 0 | K81: 0 | L81: 123 | M81: 0 | N81: 0 | O81: 0 | P81: 0 | Q81: 0 | R81: 0 | S81: 123 | T81: 91 | U81: 0 | V81: 0 | W81: 448 | X81: 108 | Y81: 0
B82: 2/12/19 | C82: 9:01:20 | D82: 10 | E82: 4 | F82: 65 | G82: 2 | H82: 3 | I82: 10 | J82: 2 | K82: 448 | L82: 100 | M82: 111 | N82: 8 | O82: 17
B83: 2/12/19 | C83: 9:01:25 | D83: 1 | E83: 6 | F83: 1 | G83: 0 | H83: 0 | I83: 0 | J83: 0 | K83: 0 | L83: 123 | M83: 1 | N83: 0 | O83: 0 | P83: 0 | Q83: 0 | R83: 0 | S83: 124 | T83: 91 | U83: 0 | V83: 0 | W83: 448 | X83: 76 | Y83: 0
B84: 2/12/19 | C84: 9:01:25 | D84: 2 | E84: 6 | F84: 0 | G84: 0 | H84: 0 | I84: 0 | J84: 0 | K84: 0 | L84: 123 | M84: 0 | N84: 0 | O84: 0 | P84: 0 | Q84: 0 | R84: 0 | S84: 123 | T84: 91 | U84: 0 | V84: 0 | W84: 448 | X84: 108 | Y84: 0
B85: 2/12/19 | C85: 9:01:25 | D85: 3 | E85: 6 | F85: 0 | G85: 0 | H85: 0 | I85: 0 | J85: 0 | K85: 0 | L85: 124 | M85: 0 | N85: 0 | O85: 0 | P85: 0 | Q85: 0 | R85: 0 | S85: 123 | T85: 91 | U85: 0 | V85: 0 | W85: 448 | X85: 108 | Y85: 0
B86: 2/12/19 | C86: 9:01:25 | D86: 10 | E86: 4 | F86: 65 | G86: 2 | H86: 3 | I86: 11 | J86: 296 | K86: 448 | L86: 100 | M86: 111 | N86: 8 | O86: 17
B87: 2/12/19 | C87: 9:01:30 | D87: 1 | E87: 6 | F87: 1 | G87: 0 | H87: 0 | I87: 0 | J87: 0 | K87: 0 | L87: 123 | M87: 1 | N87: 0 | O87: 0 | P87: 0 | Q87: 0 | R87: 0 | S87: 124 | T87: 91 | U87: 0 | V87: 0 | W87: 448 | X87: 76 | Y87: 0
B88: 2/12/19 | C88: 9:01:30 | D88: 2 | E88: 6 | F88: 0 | G88: 0 | H88: 0 | I88: 0 | J88: 0 | K88: 0 | L88: 123 | M88: 0 | N88: 0 | O88: 0 | P88: 0 | Q88: 0 | R88: 0 | S88: 123 | T88: 91 | U88: 0 | V88: 0 | W88: 448 | X88: 108 | Y88: 0
B89: 2/12/19 | C89: 9:01:30 | D89: 3 | E89: 6 | F89: 0 | G89: 0 | H89: 0 | I89: 0 | J89: 0 | K89: 0 | L89: 123 | M89: 0 | N89: 0 | O89: 0 | P89: 0 | Q89: 0 | R89: 0 | S89: 123 | T89: 91 | U89: 0 | V89: 0 | W89: 448 | X89: 108 | Y89: 0
B90: 2/12/19 | C90: 9:01:30 | D90: 10 | E90: 4 | F90: 66 | G90: 2 | H90: 3 | I90: 76 | J90: 5847 | K90: 448 | L90: 100 | M90: 111 | N90: 8 | O90: 17
B91: 2/12/19 | C91: 9:01:35 | D91: 1 | E91: 6 | F91: 1 | G91: 0 | H91: 0 | I91: 0 | J91: 0 | K91: 0 | L91: 123 | M91: 1 | N91: 0 | O91: 0 | P91: 0 | Q91: 0 | R91: 0 | S91: 124 | T91: 91 | U91: 0 | V91: 0 | W91: 448 | X91: 76 | Y91: 0
B92: 2/12/19 | C92: 9:01:35 | D92: 2 | E92: 6 | F92: 0 | G92: 0 | H92: 0 | I92: 0 | J92: 0 | K92: 0 | L92: 123 | M92: 0 | N92: 0 | O92: 0 | P92: 0 | Q92: 0 | R92: 0 | S92: 123 | T92: 91 | U92: 0 | V92: 0 | W92: 448 | X92: 108 | Y92: 0
B93: 2/12/19 | C93: 9:01:35 | D93: 3 | E93: 6 | F93: 0 | G93: 0 | H93: 0 | I93: 0 | J93: 0 | K93: 0 | L93: 123 | M93: 0 | N93: 0 | O93: 0 | P93: 0 | Q93: 0 | R93: 0 | S93: 123 | T93: 91 | U93: 0 | V93: 0 | W93: 448 | X93: 108 | Y93: 0
B94: 2/12/19 | C94: 9:01:35 | D94: 10 | E94: 4 | F94: 66 | G94: 3 | H94: 3 | I94: 77 | J94: 27580 | K94: 448 | L94: 100 | M94: 111 | N94: 8 | O94: 17
B95: 2/12/19 | C95: 9:01:40 | D95: 1 | E95: 6 | F95: 1 | G95: 0 | H95: 0 | I95: 0 | J95: 0 | K95: 0 | L95: 123 | M95: 1 | N95: 0 | O95: 0 | P95: 0 | Q95: 0 | R95: 0 | S95: 124 | T95: 91 | U95: 0 | V95: 0 | W95: 448 | X95: 76 | Y95: 0
B96: 2/12/19 | C96: 9:01:40 | D96: 2 | E96: 6 | F96: 0 | G96: 0 | H96: 0 | I96: 0 | J96: 0 | K96: 0 | L96: 123 | M96: 0 | N96: 0 | O96: 0 | P96: 0 | Q96: 0 | R96: 0 | S96: 123 | T96: 91 | U96: 0 | V96: 0 | W96: 448 | X96: 108 | Y96: 0
B97: 2/12/19 | C97: 9:01:40 | D97: 3 | E97: 6 | F97: 0 | G97: 0 | H97: 0 | I97: 0 | J97: 0 | K97: 0 | L97: 123 | M97: 0 | N97: 0 | O97: 0 | P97: 0 | Q97: 0 | R97: 0 | S97: 123 | T97: 91 | U97: 0 | V97: 0 | W97: 448 | X97: 108 | Y97: 0
B98: 2/12/19 | C98: 9:01:40 | D98: 10 | E98: 4 | F98: 67 | G98: 2 | H98: 2 | I98: 64 | J98: 6312 | K98: 448 | L98: 100 | M98: 111 | N98: 8 | O98: 17
B99: 2/12/19 | C99: 9:01:45 | D99: 1 | E99: 6 | F99: 1 | G99: 0 | H99: 0 | I99: 0 | J99: 0 | K99: 0 | L99: 123 | M99: 1 | N99: 0 | O99: 0 | P99: 0 | Q99: 0 | R99: 0 | S99: 124 | T99: 91 | U99: 0 | V99: 0 | W99: 448 | X99: 76 | Y99: 0
B100: 2/12/19 | C100: 9:01:45 | D100: 2 | E100: 6 | F100: 0 | G100: 0 | H100: 0 | I100: 0 | J100: 0 | K100: 0 | L100: 123 | M100: 0 | N100: 0 | O100: 0 | P100: 0 | Q100: 0 | R100: 0 | S100: 123 | T100: 91 | U100: 0 | V100: 0 | W100: 448 | X100: 108 | Y100: 0
B101: 2/12/19 | C101: 9:01:45 | D101: 3 | E101: 6 | F101: 0 | G101: 0 | H101: 0 | I101: 0 | J101: 0 | K101: 0 | L101: 123 | M101: 0 | N101: 0 | O101: 0 | P101: 0 | Q101: 0 | R101: 0 | S101: 123 | T101: 91 | U101: 0 | V101: 0 | W101: 448 | X101: 108 | Y101: 0
B102: 2/12/19 | C102: 9:01:45 | D102: 10 | E102: 4 | F102: 67 | G102: 3 | H102: 2 | I102: 65 | J102: 29973 | K102: 448 | L102: 100 | M102: 111 | N102: 8 | O102: 17
B103: 2/12/19 | C103: 9:01:50 | D103: 1 | E103: 6 | F103: 1 | G103: 0 | H103: 0 | I103: 0 | J103: 0 | K103: 0 | L103: 123 | M103: 1 | N103: 0 | O103: 0 | P103: 0 | Q103: 0 | R103: 0 | S103: 124 | T103: 91 | U103: 0 | V103: 0 | W103: 448 | X103: 76 | Y103: 0
B104: 2/12/19 | C104: 9:01:50 | D104: 2 | E104: 6 | F104: 0 | G104: 0 | H104: 0 | I104: 0 | J104: 0 | K104: 0 | L104: 123 | M104: 0 | N104: 0 | O104: 0 | P104: 0 | Q104: 0 | R104: 0 | S104: 123 | T104: 91 | U104: 0 | V104: 0 | W104: 448 | X104: 108 | Y104: 0
B105: 2/12/19 | C105: 9:01:50 | D105: 3 | E105: 6 | F105: 0 | G105: 0 | H105: 0 | I105: 0 | J105: 0 | K105: 0 | L105: 123 | M105: 0 | N105: 0 | O105: 0 | P105: 0 | Q105: 0 | R105: 0 | S105: 123 | T105: 91 | U105: 0 | V105: 0 | W105: 448 | X105: 108 | Y105: 0
B106: 2/12/19 | C106: 9:01:50 | D106: 10 | E106: 4 | F106: 66 | G106: 3 | H106: 3 | I106: 2 | J106: 8 | K106: 448 | L106: 100 | M106: 111 | N106: 8 | O106: 17
B107: 2/12/19 | C107: 9:01:55 | D107: 1 | E107: 6 | F107: 1 | G107: 0 | H107: 0 | I107: 0 | J107: 0 | K107: 0 | L107: 123 | M107: 1 | N107: 0 | O107: 0 | P107: 0 | Q107: 0 | R107: 0 | S107: 124 | T107: 91 | U107: 0 | V107: 0 | W107: 448 | X107: 76 | Y107: 0
B108: 2/12/19 | C108: 9:01:55 | D108: 2 | E108: 6 | F108: 0 | G108: 0 | H108: 0 | I108: 0 | J108: 0 | K108: 0 | L108: 123 | M108: 0 | N108: 0 | O108: 0 | P108: 0 | Q108: 0 | R108: 0 | S108: 123 | T108: 91 | U108: 0 | V108: 0 | W108: 448 | X108: 108 | Y108: 0
B109: 2/12/19 | C109: 9:01:55 | D109: 3 | E109: 6 | F109: 0 | G109: 0 | H109: 0 | I109: 0 | J109: 0 | K109: 0 | L109: 124 | M109: 0 | N109: 0 | O109: 0 | P109: 0 | Q109: 0 | R109: 0 | S109: 123 | T109: 91 | U109: 0 | V109: 0 | W109: 448 | X109: 108 | Y109: 0
B110: 2/12/19 | C110: 9:01:55 | D110: 10 | E110: 4 | F110: 66 | G110: 2 | H110: 3 | I110: 3 | J110: 28 | K110: 448 | L110: 100 | M110: 111 | N110: 8 | O110: 17
B111: 2/12/19 | C111: 9:02:00 | D111: 1 | E111: 6 | F111: 1 | G111: 0 | H111: 0 | I111: 0 | J111: 0 | K111: 0 | L111: 123 | M111: 1 | N111: 0 | O111: 0 | P111: 0 | Q111: 0 | R111: 0 | S111: 124 | T111: 91 | U111: 0 | V111: 0 | W111: 448 | X111: 76 | Y111: 0
B112: 2/12/19 | C112: 9:02:00 | D112: 2 | E112: 6 | F112: 0 | G112: 0 | H112: 0 | I112: 0 | J112: 0 | K112: 0 | L112: 123 | M112: 0 | N112: 0 | O112: 0 | P112: 0 | Q112: 0 | R112: 0 | S112: 123 | T112: 91 | U112: 0 | V112: 0 | W112: 448 | X112: 108 | Y112: 0
B113: 2/12/19 | C113: 9:02:00 | D113: 3 | E113: 6 | F113: 0 | G113: 0 | H113: 0 | I113: 0 | J113: 0 | K113: 0 | L113: 123 | M113: 0 | N113: 0 | O113: 0 | P113: 0 | Q113: 0 | R113: 0 | S113: 123 | T113: 91 | U113: 0 | V113: 0 | W113: 448 | X113: 108 | Y113: 0
B114: 2/12/19 | C114: 9:02:00 | D114: 10 | E114: 4 | F114: 66 | G114: 2 | H114: 3 | I114: 4 | J114: 512 | K114: 448 | L114: 100 | M114: 111 | N114: 8 | O114: 99
B115: 2/12/19 | C115: 9:02:05 | D115: 1 | E115: 6 | F115: 1 | G115: 0 | H115: 0 | I115: 0 | J115: 0 | K115: 0 | L115: 123 | M115: 1 | N115: 0 | O115: 0 | P115: 0 | Q115: 0 | R115: 0 | S115: 124 | T115: 91 | U115: 0 | V115: 0 | W115: 448 | X115: 76 | Y115: 0
B116: 2/12/19 | C116: 9:02:05 | D116: 2 | E116: 6 | F116: 0 | G116: 0 | H116: 0 | I116: 0 | J116: 0 | K116: 0 | L116: 123 | M116: 0 | N116: 0 | O116: 0 | P116: 0 | Q116: 0 | R116: 0 | S116: 123 | T116: 91 | U116: 0 | V116: 0 | W116: 448 | X116: 108 | Y116: 0
B117: 2/12/19 | C117: 9:02:05 | D117: 3 | E117: 6 | F117: 0 | G117: 0 | H117: 0 | I117: 0 | J117: 0 | K117: 0 | L117: 123 | M117: 0 | N117: 0 | O117: 0 | P117: 0 | Q117: 0 | R117: 0 | S117: 123 | T117: 91 | U117: 0 | V117: 0 | W117: 448 | X117: 108 | Y117: 0
B118: 2/12/19 | C118: 9:02:05 | D118: 10 | E118: 4 | F118: 67 | G118: 3 | H118: 3 | I118: 5 | J118: 2637 | K118: 448 | L118: 100 | M118: 111 | N118: 8 | O118: 99
B119: 2/12/19 | C119: 9:02:10 | D119: 1 | E119: 6 | F119: 1 | G119: 0 | H119: 0 | I119: 0 | J119: 0 | K119: 0 | L119: 123 | M119: 1 | N119: 0 | O119: 0 | P119: 0 | Q119: 0 | R119: 0 | S119: 124 | T119: 91 | U119: 0 | V119: 0 | W119: 448 | X119: 76 | Y119: 0
B120: 2/12/19 | C120: 9:02:10 | D120: 2 | E120: 6 | F120: 0 | G120: 0 | H120: 0 | I120: 0 | J120: 0 | K120: 0 | L120: 123 | M120: 0 | N120: 0 | O120: 0 | P120: 0 | Q120: 0 | R120: 0 | S120: 123 | T120: 91 | U120: 0 | V120: 0 | W120: 448 | X120: 108 | Y120: 0
B121: 2/12/19 | C121: 9:02:10 | D121: 3 | E121: 6 | F121: 0 | G121: 0 | H121: 0 | I121: 0 | J121: 0 | K121: 0 | L121: 123 | M121: 0 | N121: 0 | O121: 0 | P121: 0 | Q121: 0 | R121: 0 | S121: 123 | T121: 91 | U121: 0 | V121: 0 | W121: 448 | X121: 108 | Y121: 0
B122: 2/12/19 | C122: 9:02:10 | D122: 10 | E122: 4 | F122: 67 | G122: 2 | H122: 3 | I122: 6 | J122: 115 | K122: 448 | L122: 100 | M122: 111 | N122: 8 | O122: 17
B123: 2/12/19 | C123: 9:02:15 | D123: 1 | E123: 6 | F123: 1 | G123: 0 | H123: 0 | I123: 0 | J123: 0 | K123: 0 | L123: 123 | M123: 1 | N123: 0 | O123: 0 | P123: 0 | Q123: 0 | R123: 0 | S123: 124 | T123: 91 | U123: 0 | V123: 0 | W123: 448 | X123: 76 | Y123: 0
B124: 2/12/19 | C124: 9:02:15 | D124: 2 | E124: 6 | F124: 0 | G124: 0 | H124: 0 | I124: 0 | J124: 0 | K124: 0 | L124: 123 | M124: 0 | N124: 0 | O124: 0 | P124: 0 | Q124: 0 | R124: 0 | S124: 123 | T124: 91 | U124: 0 | V124: 0 | W124: 448 | X124: 108 | Y124: 0
B125: 2/12/19 | C125: 9:02:15 | D125: 3 | E125: 6 | F125: 0 | G125: 0 | H125: 0 | I125: 0 | J125: 0 | K125: 0 | L125: 124 | M125: 0 | N125: 0 | O125: 0 | P125: 0 | Q125: 0 | R125: 0 | S125: 123 | T125: 91 | U125: 0 | V125: 0 | W125: 448 | X125: 108 | Y125: 0
B126: 2/12/19 | C126: 9:02:15 | D126: 10 | E126: 4 | F126: 66 | G126: 3 | H126: 3 | I126: 7 | J126: 1 | K126: 448 | L126: 100 | M126: 111 | N126: 8 | O126: 17
B127: 2/12/19 | C127: 9:02:20 | D127: 1 | E127: 6 | F127: 1 | G127: 0 | H127: 0 | I127: 0 | J127: 0 | K127: 0 | L127: 123 | M127: 1 | N127: 0 | O127: 0 | P127: 0 | Q127: 0 | R127: 0 | S127: 124 | T127: 91 | U127: 0 | V127: 0 | W127: 448 | X127: 76 | Y127: 0
B128: 2/12/19 | C128: 9:02:20 | D128: 2 | E128: 6 | F128: 0 | G128: 0 | H128: 0 | I128: 0 | J128: 0 | K128: 0 | L128: 123 | M128: 0 | N128: 0 | O128: 0 | P128: 0 | Q128: 0 | R128: 0 | S128: 123 | T128: 91 | U128: 0 | V128: 0 | W128: 448 | X128: 108 | Y128: 0
B129: 2/12/19 | C129: 9:02:20 | D129: 3 | E129: 6 | F129: 0 | G129: 0 | H129: 0 | I129: 0 | J129: 0 | K129: 0 | L129: 123 | M129: 0 | N129: 0 | O129: 0 | P129: 0 | Q129: 0 | R129: 0 | S129: 123 | T129: 91 | U129: 0 | V129: 0 | W129: 448 | X129: 108 | Y129: 0
B130: 2/12/19 | C130: 9:02:20 | D130: 10 | E130: 4 | F130: 67 | G130: 3 | H130: 3 | I130: 8 | J130: 2 | K130: 448 | L130: 100 | M130: 111 | N130: 8 | O130: 17
B131: 2/12/19 | C131: 9:02:25 | D131: 1 | E131: 6 | F131: 1 | G131: 0 | H131: 0 | I131: 0 | J131: 0 | K131: 0 | L131: 123 | M131: 1 | N131: 0 | O131: 0 | P131: 0 | Q131: 0 | R131: 0 | S131: 124 | T131: 91 | U131: 0 | V131: 0 | W131: 448 | X131: 76 | Y131: 0
B132: 2/12/19 | C132: 9:02:25 | D132: 2 | E132: 6 | F132: 0 | G132: 0 | H132: 0 | I132: 0 | J132: 0 | K132: 0 | L132: 123 | M132: 0 | N132: 0 | O132: 0 | P132: 0 | Q132: 0 | R132: 0 | S132: 123 | T132: 91 | U132: 0 | V132: 0 | W132: 448 | X132: 108 | Y132: 0
B133: 2/12/19 | C133: 9:02:25 | D133: 3 | E133: 6 | F133: 0 | G133: 0 | H133: 0 | I133: 0 | J133: 0 | K133: 0 | L133: 123 | M133: 0 | N133: 0 | O133: 0 | P133: 0 | Q133: 0 | R133: 0 | S133: 123 | T133: 91 | U133: 0 | V133: 0 | W133: 448 | X133: 108 | Y133: 0
B134: 2/12/19 | C134: 9:02:25 | D134: 10 | E134: 4 | F134: 66 | G134: 2 | H134: 3 | I134: 9 | J134: 67 | K134: 448 | L134: 100 | M134: 111 | N134: 8 | O134: 17
B135: 2/12/19 | C135: 9:02:30 | D135: 1 | E135: 6 | F135: 1 | G135: 0 | H135: 0 | I135: 0 | J135: 0 | K135: 0 | L135: 123 | M135: 1 | N135: 0 | O135: 0 | P135: 0 | Q135: 0 | R135: 0 | S135: 124 | T135: 91 | U135: 0 | V135: 0 | W135: 448 | X135: 76 | Y135: 0
B136: 2/12/19 | C136: 9:02:30 | D136: 2 | E136: 6 | F136: 0 | G136: 0 | H136: 0 | I136: 0 | J136: 0 | K136: 0 | L136: 123 | M136: 0 | N136: 0 | O136: 0 | P136: 0 | Q136: 0 | R136: 0 | S136: 123 | T136: 91 | U136: 0 | V136: 0 | W136: 448 | X136: 108 | Y136: 0
B137: 2/12/19 | C137: 9:02:30 | D137: 3 | E137: 6 | F137: 0 | G137: 0 | H137: 0 | I137: 0 | J137: 0 | K137: 0 | L137: 123 | M137: 0 | N137: 0 | O137: 0 | P137: 0 | Q137: 0 | R137: 0 | S137: 123 | T137: 91 | U137: 0 | V137: 0 | W137: 448 | X137: 108 | Y137: 0
B138: 2/12/19 | C138: 9:02:30 | D138: 10 | E138: 4 | F138: 66 | G138: 3 | H138: 3 | I138: 10 | J138: 2 | K138: 448 | L138: 100 | M138: 111 | N138: 8 | O138: 17
B139: 2/12/19 | C139: 9:02:35 | D139: 1 | E139: 6 | F139: 1 | G139: 0 | H139: 0 | I139: 0 | J139: 0 | K139: 0 | L139: 123 | M139: 1 | N139: 0 | O139: 0 | P139: 0 | Q139: 0 | R139: 0 | S139: 124 | T139: 91 | U139: 0 | V139: 0 | W139: 448 | X139: 76 | Y139: 0
B140: 2/12/19 | C140: 9:02:35 | D140: 2 | E140: 6 | F140: 0 | G140: 0 | H140: 0 | I140: 0 | J140: 0 | K140: 0 | L140: 123 | M140: 0 | N140: 0 | O140: 0 | P140: 0 | Q140: 0 | R140: 0 | S140: 123 | T140: 91 | U140: 0 | V140: 0 | W140: 448 | X140: 108 | Y140: 0
B141: 2/12/19 | C141: 9:02:35 | D141: 3 | E141: 6 | F141: 0 | G141: 0 | H141: 0 | I141: 0 | J141: 0 | K141: 0 | L141: 123 | M141: 0 | N141: 0 | O141: 0 | P141: 0 | Q141: 0 | R141: 0 | S141: 123 | T141: 91 | U141: 0 | V141: 0 | W141: 448 | X141: 108 | Y141: 0
B142: 2/12/19 | C142: 9:02:35 | D142: 10 | E142: 4 | F142: 66 | G142: 2 | H142: 2 | I142: 11 | J142: 296 | K142: 448 | L142: 100 | M142: 111 | N142: 8 | O142: 17
B143: 2/12/19 | C143: 9:02:40 | D143: 1 | E143: 6 | F143: 1 | G143: 0 | H143: 0 | I143: 0 | J143: 0 | K143: 0 | L143: 123 | M143: 1 | N143: 0 | O143: 0 | P143: 0 | Q143: 0 | R143: 0 | S143: 124 | T143: 91 | U143: 0 | V143: 0 | W143: 448 | X143: 76 | Y143: 0
B144: 2/12/19 | C144: 9:02:40 | D144: 2 | E144: 6 | F144: 0 | G144: 0 | H144: 0 | I144: 0 | J144: 0 | K144: 0 | L144: 123 | M144: 0 | N144: 0 | O144: 0 | P144: 0 | Q144: 0 | R144: 0 | S144: 123 | T144: 91 | U144: 0 | V144: 0 | W144: 448 | X144: 108 | Y144: 0
B145: 2/12/19 | C145: 9:02:40 | D145: 3 | E145: 6 | F145: 0 | G145: 0 | H145: 0 | I145: 0 | J145: 0 | K145: 0 | L145: 123 | M145: 0 | N145: 0 | O145: 0 | P145: 0 | Q145: 0 | R145: 0 | S145: 123 | T145: 91 | U145: 0 | V145: 0 | W145: 448 | X145: 108 | Y145: 0
B146: 2/12/19 | C146: 9:02:40 | D146: 10 | E146: 4 | F146: 66 | G146: 2 | H146: 3 | I146: 76 | J146: 5848 | K146: 448 | L146: 100 | M146: 111 | N146: 8 | O146: 17
B147: 2/12/19 | C147: 9:02:45 | D147: 1 | E147: 6 | F147: 1 | G147: 0 | H147: 0 | I147: 0 | J147: 0 | K147: 0 | L147: 123 | M147: 1 | N147: 0 | O147: 0 | P147: 0 | Q147: 0 | R147: 0 | S147: 124 | T147: 91 | U147: 0 | V147: 0 | W147: 448 | X147: 76 | Y147: 0
B148: 2/12/19 | C148: 9:02:45 | D148: 2 | E148: 6 | F148: 0 | G148: 0 | H148: 0 | I148: 0 | J148: 0 | K148: 0 | L148: 123 | M148: 0 | N148: 0 | O148: 0 | P148: 0 | Q148: 0 | R148: 0 | S148: 123 | T148: 91 | U148: 0 | V148: 0 | W148: 448 | X148: 108 | Y148: 0
B149: 2/12/19 | C149: 9:02:45 | D149: 3 | E149: 6 | F149: 0 | G149: 0 | H149: 0 | I149: 0 | J149: 0 | K149: 0 | L149: 123 | M149: 0 | N149: 0 | O149: 0 | P149: 0 | Q149: 0 | R149: 0 | S149: 123 | T149: 91 | U149: 0 | V149: 0 | W149: 448 | X149: 108 | Y149: 0
B150: 2/12/19 | C150: 9:02:45 | D150: 10 | E150: 4 | F150: 67 | G150: 2 | H150: 3 | I150: 77 | J150: 27580 | K150: 448 | L150: 100 | M150: 111 | N150: 8 | O150: 17
B151: 2/12/19 | C151: 9:02:50 | D151: 1 | E151: 6 | F151: 1 | G151: 0 | H151: 0 | I151: 0 | J151: 0 | K151: 0 | L151: 123 | M151: 1 | N151: 0 | O151: 0 | P151: 0 | Q151: 0 | R151: 0 | S151: 124 | T151: 91 | U151: 0 | V151: 0 | W151: 448 | X151: 76 | Y151: 0
B152: 2/12/19 | C152: 9:02:50 | D152: 2 | E152: 6 | F152: 0 | G152: 0 | H152: 0 | I152: 0 | J152: 0 | K152: 0 | L152: 123 | M152: 0 | N152: 0 | O152: 0 | P152: 0 | Q152: 0 | R152: 0 | S152: 123 | T152: 91 | U152: 0 | V152: 0 | W152: 448 | X152: 108 | Y152: 0
B153: 2/12/19 | C153: 9:02:50 | D153: 3 | E153: 6 | F153: 0 | G153: 0 | H153: 0 | I153: 0 | J153: 0 | K153: 0 | L153: 124 | M153: 0 | N153: 0 | O153: 0 | P153: 0 | Q153: 0 | R153: 0 | S153: 123 | T153: 91 | U153: 0 | V153: 0 | W153: 448 | X153: 108 | Y153: 0
B154: 2/12/19 | C154: 9:02:50 | D154: 10 | E154: 4 | F154: 65 | G154: 2 | H154: 4 | I154: 64 | J154: 6313 | K154: 448 | L154: 100 | M154: 111 | N154: 8 | O154: 17
B155: 2/12/19 | C155: 9:02:55 | D155: 1 | E155: 6 | F155: 1 | G155: 0 | H155: 0 | I155: 0 | J155: 0 | K155: 0 | L155: 123 | M155: 1 | N155: 0 | O155: 0 | P155: 0 | Q155: 0 | R155: 0 | S155: 124 | T155: 91 | U155: 0 | V155: 0 | W155: 448 | X155: 76 | Y155: 0
B156: 2/12/19 | C156: 9:02:55 | D156: 2 | E156: 6 | F156: 0 | G156: 0 | H156: 0 | I156: 0 | J156: 0 | K156: 0 | L156: 123 | M156: 0 | N156: 0 | O156: 0 | P156: 0 | Q156: 0 | R156: 0 | S156: 123 | T156: 91 | U156: 0 | V156: 0 | W156: 448 | X156: 108 | Y156: 0
B157: 2/12/19 | C157: 9:02:55 | D157: 3 | E157: 6 | F157: 0 | G157: 0 | H157: 0 | I157: 0 | J157: 0 | K157: 0 | L157: 123 | M157: 0 | N157: 0 | O157: 0 | P157: 0 | Q157: 0 | R157: 0 | S157: 123 | T157: 91 | U157: 0 | V157: 0 | W157: 448 | X157: 108 | Y157: 0
B158: 2/12/19 | C158: 9:02:55 | D158: 10 | E158: 4 | F158: 66 | G158: 2 | H158: 3 | I158: 65 | J158: 29973 | K158: 448 | L158: 100 | M158: 111 | N158: 8 | O158: 17
B159: 2/12/19 | C159: 9:03:00 | D159: 1 | E159: 6 | F159: 1 | G159: 0 | H159: 0 | I159: 0 | J159: 0 | K159: 0 | L159: 123 | M159: 1 | N159: 0 | O159: 0 | P159: 0 | Q159: 0 | R159: 0 | S159: 124 | T159: 91 | U159: 0 | V159: 0 | W159: 448 | X159: 76 | Y159: 0
B160: 2/12/19 | C160: 9:03:00 | D160: 2 | E160: 6 | F160: 0 | G160: 0 | H160: 0 | I160: 0 | J160: 0 | K160: 0 | L160: 123 | M160: 0 | N160: 0 | O160: 0 | P160: 0 | Q160: 0 | R160: 0 | S160: 123 | T160: 91 | U160: 0 | V160: 0 | W160: 448 | X160: 108 | Y160: 0
B161: 2/12/19 | C161: 9:03:00 | D161: 3 | E161: 6 | F161: 0 | G161: 0 | H161: 0 | I161: 0 | J161: 0 | K161: 0 | L161: 123 | M161: 0 | N161: 0 | O161: 0 | P161: 0 | Q161: 0 | R161: 0 | S161: 123 | T161: 91 | U161: 0 | V161: 0 | W161: 448 | X161: 108 | Y161: 0
B162: 2/12/19 | C162: 9:03:00 | D162: 10 | E162: 4 | F162: 66 | G162: 3 | H162: 3 | I162: 2 | J162: 8 | K162: 448 | L162: 100 | M162: 111 | N162: 8 | O162: 17
B163: 2/12/19 | C163: 9:03:05 | D163: 1 | E163: 6 | F163: 1 | G163: 0 | H163: 0 | I163: 0 | J163: 0 | K163: 0 | L163: 123 | M163: 1 | N163: 0 | O163: 0 | P163: 0 | Q163: 0 | R163: 0 | S163: 124 | T163: 91 | U163: 0 | V163: 0 | W163: 448 | X163: 76 | Y163: 0
B164: 2/12/19 | C164: 9:03:05 | D164: 2 | E164: 6 | F164: 0 | G164: 0 | H164: 0 | I164: 0 | J164: 0 | K164: 0 | L164: 123 | M164: 0 | N164: 0 | O164: 0 | P164: 0 | Q164: 0 | R164: 0 | S164: 123 | T164: 91 | U164: 0 | V164: 0 | W164: 448 | X164: 108 | Y164: 0
B165: 2/12/19 | C165: 9:03:05 | D165: 3 | E165: 6 | F165: 0 | G165: 0 | H165: 0 | I165: 0 | J165: 0 | K165: 0 | L165: 123 | M165: 0 | N165: 0 | O165: 0 | P165: 0 | Q165: 0 | R165: 0 | S165: 123 | T165: 91 | U165: 0 | V165: 0 | W165: 448 | X165: 108 | Y165: 0
B166: 2/12/19 | C166: 9:03:05 | D166: 10 | E166: 4 | F166: 66 | G166: 3 | H166: 3 | I166: 3 | J166: 28 | K166: 448 | L166: 100 | M166: 111 | N166: 8 | O166: 17
B167: 2/12/19 | C167: 9:03:10 | D167: 1 | E167: 6 | F167: 1 | G167: 0 | H167: 0 | I167: 0 | J167: 0 | K167: 0 | L167: 123 | M167: 1 | N167: 0 | O167: 0 | P167: 0 | Q167: 0 | R167: 0 | S167: 124 | T167: 91 | U167: 0 | V167: 0 | W167: 448 | X167: 76 | Y167: 0
B168: 2/12/19 | C168: 9:03:10 | D168: 2 | E168: 6 | F168: 0 | G168: 0 | H168: 0 | I168: 0 | J168: 0 | K168: 0 | L168: 123 | M168: 0 | N168: 0 | O168: 0 | P168: 0 | Q168: 0 | R168: 0 | S168: 123 | T168: 91 | U168: 0 | V168: 0 | W168: 448 | X168: 108 | Y168: 0
B169: 2/12/19 | C169: 9:03:10 | D169: 3 | E169: 6 | F169: 0 | G169: 0 | H169: 0 | I169: 0 | J169: 0 | K169: 0 | L169: 123 | M169: 0 | N169: 0 | O169: 0 | P169: 0 | Q169: 0 | R169: 0 | S169: 123 | T169: 91 | U169: 0 | V169: 0 | W169: 448 | X169: 108 | Y169: 0
B170: 2/12/19 | C170: 9:03:10 | D170: 10 | E170: 4 | F170: 66 | G170: 3 | H170: 3 | I170: 4 | J170: 512 | K170: 448 | L170: 100 | M170: 111 | N170: 8 | O170: 17
B171: 2/12/19 | C171: 9:03:15 | D171: 1 | E171: 6 | F171: 1 | G171: 0 | H171: 0 | I171: 0 | J171: 0 | K171: 0 | L171: 123 | M171: 1 | N171: 0 | O171: 0 | P171: 0 | Q171: 0 | R171: 0 | S171: 124 | T171: 91 | U171: 0 | V171: 0 | W171: 448 | X171: 76 | Y171: 0
B172: 2/12/19 | C172: 9:03:15 | D172: 2 | E172: 6 | F172: 0 | G172: 0 | H172: 0 | I172: 0 | J172: 0 | K172: 0 | L172: 123 | M172: 0 | N172: 0 | O172: 0 | P172: 0 | Q172: 0 | R172: 0 | S172: 123 | T172: 91 | U172: 0 | V172: 0 | W172: 448 | X172: 108 | Y172: 0
B173: 2/12/19 | C173: 9:03:15 | D173: 3 | E173: 6 | F173: 0 | G173: 0 | H173: 0 | I173: 0 | J173: 0 | K173: 0 | L173: 123 | M173: 0 | N173: 0 | O173: 0 | P173: 0 | Q173: 0 | R173: 0 | S173: 123 | T173: 91 | U173: 0 | V173: 0 | W173: 448 | X173: 108 | Y173: 0
B174: 2/12/19 | C174: 9:03:15 | D174: 10 | E174: 4 | F174: 66 | G174: 3 | H174: 3 | I174: 5 | J174: 2637 | K174: 448 | L174: 100 | M174: 111 | N174: 8 | O174: 17
B175: 2/12/19 | C175: 9:03:20 | D175: 1 | E175: 6 | F175: 1 | G175: 0 | H175: 0 | I175: 0 | J175: 0 | K175: 0 | L175: 123 | M175: 1 | N175: 0 | O175: 0 | P175: 0 | Q175: 0 | R175: 0 | S175: 124 | T175: 91 | U175: 0 | V175: 0 | W175: 448 | X175: 76 | Y175: 0
B176: 2/12/19 | C176: 9:03:20 | D176: 2 | E176: 6 | F176: 0 | G176: 0 | H176: 0 | I176: 0 | J176: 0 | K176: 0 | L176: 123 | M176: 0 | N176: 0 | O176: 0 | P176: 0 | Q176: 0 | R176: 0 | S176: 123 | T176: 91 | U176: 0 | V176: 0 | W176: 448 | X176: 108 | Y176: 0
B177: 2/12/19 | C177: 9:03:20 | D177: 3 | E177: 6 | F177: 0 | G177: 0 | H177: 0 | I177: 0 | J177: 0 | K177: 0 | L177: 123 | M177: 0 | N177: 0 | O177: 0 | P177: 0 | Q177: 0 | R177: 0 | S177: 123 | T177: 91 | U177: 0 | V177: 0 | W177: 448 | X177: 108 | Y177: 0
B178: 2/12/19 | C178: 9:03:20 | D178: 10 | E178: 4 | F178: 67 | G178: 2 | H178: 2 | I178: 6 | J178: 115 | K178: 448 | L178: 100 | M178: 111 | N178: 8 | O178: 17
B179: 2/12/19 | C179: 9:03:25 | D179: 1 | E179: 6 | F179: 1 | G179: 0 | H179: 0 | I179: 0 | J179: 0 | K179: 0 | L179: 123 | M179: 1 | N179: 0 | O179: 0 | P179: 0 | Q179: 0 | R179: 0 | S179: 124 | T179: 91 | U179: 0 | V179: 0 | W179: 448 | X179: 76 | Y179: 0
B180: 2/12/19 | C180: 9:03:25 | D180: 2 | E180: 6 | F180: 0 | G180: 0 | H180: 0 | I180: 0 | J180: 0 | K180: 0 | L180: 123 | M180: 0 | N180: 0 | O180: 0 | P180: 0 | Q180: 0 | R180: 0 | S180: 123 | T180: 91 | U180: 0 | V180: 0 | W180: 448 | X180: 108 | Y180: 0
B181: 2/12/19 | C181: 9:03:25 | D181: 3 | E181: 6 | F181: 0 | G181: 0 | H181: 0 | I181: 0 | J181: 0 | K181: 0 | L181: 123 | M181: 0 | N181: 0 | O181: 0 | P181: 0 | Q181: 0 | R181: 0 | S181: 123 | T181: 91 | U181: 0 | V181: 0 | W181: 448 | X181: 108 | Y181: 0
B182: 2/12/19 | C182: 9:03:25 | D182: 10 | E182: 4 | F182: 66 | G182: 3 | H182: 3 | I182: 7 | J182: 1 | K182: 448 | L182: 100 | M182: 111 | N182: 8 | O182: 17
B183: 2/12/19 | C183: 9:03:30 | D183: 1 | E183: 6 | F183: 1 | G183: 0 | H183: 0 | I183: 0 | J183: 0 | K183: 0 | L183: 123 | M183: 1 | N183: 0 | O183: 0 | P183: 0 | Q183: 0 | R183: 0 | S183: 124 | T183: 91 | U183: 0 | V183: 0 | W183: 448 | X183: 76 | Y183: 0
B184: 2/12/19 | C184: 9:03:30 | D184: 2 | E184: 6 | F184: 0 | G184: 0 | H184: 0 | I184: 0 | J184: 0 | K184: 0 | L184: 123 | M184: 0 | N184: 0 | O184: 0 | P184: 0 | Q184: 0 | R184: 0 | S184: 123 | T184: 91 | U184: 0 | V184: 0 | W184: 448 | X184: 108 | Y184: 0
B185: 2/12/19 | C185: 9:03:30 | D185: 3 | E185: 6 | F185: 0 | G185: 0 | H185: 0 | I185: 0 | J185: 0 | K185: 0 | L185: 123 | M185: 0 | N185: 0 | O185: 0 | P185: 0 | Q185: 0 | R185: 0 | S185: 123 | T185: 91 | U185: 0 | V185: 0 | W185: 448 | X185: 108 | Y185: 0
B186: 2/12/19 | C186: 9:03:30 | D186: 10 | E186: 4 | F186: 66 | G186: 3 | H186: 3 | I186: 8 | J186: 2 | K186: 448 | L186: 100 | M186: 111 | N186: 8 | O186: 17
B187: 2/12/19 | C187: 9:03:35 | D187: 1 | E187: 6 | F187: 1 | G187: 0 | H187: 0 | I187: 0 | J187: 0 | K187: 0 | L187: 123 | M187: 1 | N187: 0 | O187: 0 | P187: 0 | Q187: 0 | R187: 0 | S187: 124 | T187: 91 | U187: 0 | V187: 0 | W187: 448 | X187: 76 | Y187: 0
B188: 2/12/19 | C188: 9:03:35 | D188: 2 | E188: 6 | F188: 0 | G188: 0 | H188: 0 | I188: 0 | J188: 0 | K188: 0 | L188: 123 | M188: 0 | N188: 0 | O188: 0 | P188: 0 | Q188: 0 | R188: 0 | S188: 123 | T188: 91 | U188: 0 | V188: 0 | W188: 448 | X188: 108 | Y188: 0
B189: 2/12/19 | C189: 9:03:35 | D189: 3 | E189: 6 | F189: 0 | G189: 0 | H189: 0 | I189: 0 | J189: 0 | K189: 0 | L189: 123 | M189: 0 | N189: 0 | O189: 0 | P189: 0 | Q189: 0 | R189: 0 | S189: 123 | T189: 91 | U189: 0 | V189: 0 | W189: 448 | X189: 108 | Y189: 0
B190: 2/12/19 | C190: 9:03:35 | D190: 10 | E190: 4 | F190: 66 | G190: 2 | H190: 4 | I190: 9 | J190: 67 | K190: 448 | L190: 100 | M190: 111 | N190: 8 | O190: 17
B191: 2/12/19 | C191: 9:03:40 | D191: 1 | E191: 6 | F191: 1 | G191: 0 | H191: 0 | I191: 0 | J191: 0 | K191: 0 | L191: 123 | M191: 1 | N191: 0 | O191: 0 | P191: 0 | Q191: 0 | R191: 0 | S191: 124 | T191: 91 | U191: 0 | V191: 0 | W191: 448 | X191: 76 | Y191: 0
B192: 2/12/19 | C192: 9:03:40 | D192: 2 | E192: 6 | F192: 0 | G192: 0 | H192: 0 | I192: 0 | J192: 0 | K192: 0 | L192: 123 | M192: 0 | N192: 0 | O192: 0 | P192: 0 | Q192: 0 | R192: 0 | S192: 123 | T192: 91 | U192: 0 | V192: 0 | W192: 448 | X192: 108 | Y192: 0
B193: 2/12/19 | C193: 9:03:40 | D193: 3 | E193: 6 | F193: 0 | G193: 0 | H193: 0 | I193: 0 | J193: 0 | K193: 0 | L193: 123 | M193: 0 | N193: 0 | O193: 0 | P193: 0 | Q193: 0 | R193: 0 | S193: 123 | T193: 91 | U193: 0 | V193: 0 | W193: 448 | X193: 108 | Y193: 0
B194: 2/12/19 | C194: 9:03:40 | D194: 10 | E194: 4 | F194: 66 | G194: 2 | H194: 4 | I194: 10 | J194: 2 | K194: 448 | L194: 100 | M194: 111 | N194: 8 | O194: 17
B195: 2/12/19 | C195: 9:03:45 | D195: 1 | E195: 6 | F195: 1 | G195: 0 | H195: 0 | I195: 0 | J195: 0 | K195: 0 | L195: 123 | M195: 1 | N195: 0 | O195: 0 | P195: 0 | Q195: 0 | R195: 0 | S195: 124 | T195: 91 | U195: 0 | V195: 0 | W195: 448 | X195: 76 | Y195: 0
B196: 2/12/19 | C196: 9:03:45 | D196: 2 | E196: 6 | F196: 0 | G196: 0 | H196: 0 | I196: 0 | J196: 0 | K196: 0 | L196: 123 | M196: 0 | N196: 0 | O196: 0 | P196: 0 | Q196: 0 | R196: 0 | S196: 123 | T196: 91 | U196: 0 | V196: 0 | W196: 448 | X196: 108 | Y196: 0
B197: 2/12/19 | C197: 9:03:45 | D197: 3 | E197: 6 | F197: 0 | G197: 0 | H197: 0 | I197: 0 | J197: 0 | K197: 0 | L197: 123 | M197: 0 | N197: 0 | O197: 0 | P197: 0 | Q197: 0 | R197: 0 | S197: 123 | T197: 91 | U197: 0 | V197: 0 | W197: 448 | X197: 108 | Y197: 0
B198: 2/12/19 | C198: 9:03:45 | D198: 10 | E198: 4 | F198: 66 | G198: 2 | H198: 4 | I198: 11 | J198: 297 | K198: 448 | L198: 100 | M198: 111 | N198: 8 | O198: 17
B199: 2/12/19 | C199: 9:03:50 | D199: 1 | E199: 6 | F199: 1 | G199: 0 | H199: 0 | I199: 0 | J199: 0 | K199: 0 | L199: 123 | M199: 1 | N199: 0 | O199: 0 | P199: 0 | Q199: 0 | R199: 0 | S199: 124 | T199: 91 | U199: 0 | V199: 0 | W199: 448 | X199: 76 | Y199: 0
B200: 2/12/19 | C200: 9:03:50 | D200: 2 | E200: 6 | F200: 0 | G200: 0 | H200: 0 | I200: 0 | J200: 0 | K200: 0 | L200: 123 | M200: 0 | N200: 0 | O200: 0 | P200: 0 | Q200: 0 | R200: 0 | S200: 123 | T200: 91 | U200: 0 | V200: 0 | W200: 448 | X200: 108 | Y200: 0
B201: 2/12/19 | C201: 9:03:50 | D201: 3 | E201: 6 | F201: 0 | G201: 0 | H201: 0 | I201: 0 | J201: 0 | K201: 0 | L201: 123 | M201: 0 | N201: 0 | O201: 0 | P201: 0 | Q201: 0 | R201: 0 | S201: 123 | T201: 91 | U201: 0 | V201: 0 | W201: 448 | X201: 108 | Y201: 0
B202: 2/12/19 | C202: 9:03:50 | D202: 10 | E202: 4 | F202: 66 | G202: 3 | H202: 4 | I202: 76 | J202: 5848 | K202: 448 | L202: 100 | M202: 111 | N202: 8 | O202: 17
B203: 2/12/19 | C203: 9:03:55 | D203: 1 | E203: 6 | F203: 1 | G203: 0 | H203: 0 | I203: 0 | J203: 0 | K203: 0 | L203: 123 | M203: 1 | N203: 0 | O203: 0 | P203: 0 | Q203: 0 | R203: 0 | S203: 124 | T203: 91 | U203: 0 | V203: 0 | W203: 448 | X203: 76 | Y203: 0
... 2047 more rows

Sheet 10
A1: Miller Solar
A2: 17395 Oak Rd. Atascadero, CA 93422
A3: WORKSHEET
A5: Client: | G5: 02:00:00
A6: Project:
A7: Date: | D7: Revision:
A9: Text Date | B9: Text Time | C9: Event | D9: Note | E9: Date | F9: Correct Date | G9: Column1
A10: 2/12/19 | B10: 17:55:53 | C10: Gateway Power Up | E10: =TEXT(A10,"m/dd/yy ")&" "&TEXT(F10,"hh:mm:ss") -> 2/12/19 15:55:53 | F10: =+Table8[[#This Row],[Text Time]]-$G$5 -> 15:55:53
A11: 2/12/19 | B11: 17:55:49 | C11: Gateway Power Down | E11: 2/12/19 15:55:49 | F11: =+Table8[[#This Row],[Text Time]]-$G$5 -> 15:55:49
A12: 2/12/19 | B12: 17:54:05 | C12: Inverter Firmware Revisions are the same | D12: Bat 51.2 VDC | E12: 2/12/19 15:54:05 | F12: =+Table8[[#This Row],[Text Time]]-$G$5 -> 15:54:05
A13: 2/12/19 | B13: 17:54:03 | C13: AGS Manual Stop | D13: Bat 51.2 VDC | E13: 2/12/19 15:54:03 | F13: =+Table8[[#This Row],[Text Time]]-$G$5 -> 15:54:03
A14: 2/12/19 | B14: 17:51:03 | C14: Inverter Firmware Revisions are Different | E14: 2/12/19 15:51:03 | F14: =+Table8[[#This Row],[Text Time]]-$G$5 -> 15:51:03
A15: 2/12/19 | B15: 17:39:05 | C15: Inverter Firmware Revisions are the same | D15: Bat 51.2 VDC | E15: 2/12/19 15:39:05 | F15: =+Table8[[#This Row],[Text Time]]-$G$5 -> 15:39:05
A16: 2/12/19 | B16: 17:30:05 | C16: Inverter Firmware Revisions are Different | D16: Bat 51.2 VDC | E16: 2/12/19 15:30:05 | F16: =+Table8[[#This Row],[Text Time]]-$G$5 -> 15:30:05
A17: 2/12/19 | B17: 17:21:05 | C17: Inverter Firmware Revisions are the same | D17: Bat 51.2 VDC | E17: 2/12/19 15:21:05 | F17: =+Table8[[#This Row],[Text Time]]-$G$5 -> 15:21:05
A18: 2/12/19 | B18: 17:15:05 | C18: Inverter Firmware Revisions are Different | D18: Bat 51.2 VDC | E18: 2/12/19 15:15:05 | F18: =+Table8[[#This Row],[Text Time]]-$G$5 -> 15:15:05
A19: 2/12/19 | B19: 16:54:05 | C19: Inverter Firmware Revisions are the same | D19: Bat 51.2 VDC | E19: 2/12/19 14:54:05 | F19: =+Table8[[#This Row],[Text Time]]-$G$5 -> 14:54:05
A20: 2/12/19 | B20: 16:51:05 | C20: Inverter Firmware Revisions are Different | D20: Bat 51.2 VDC | E20: 2/12/19 14:51:05 | F20: =+Table8[[#This Row],[Text Time]]-$G$5 -> 14:51:05
A21: 2/12/19 | B21: 16:12:05 | C21: Inverter Firmware Revisions are the same | D21: Bat 51.2 VDC | E21: 2/12/19 14:12:05 | F21: =+Table8[[#This Row],[Text Time]]-$G$5 -> 14:12:05
A22: 2/12/19 | B22: 16:09:05 | C22: Inverter Firmware Revisions are Different | D22: Bat 51.2 VDC | E22: 2/12/19 14:09:05 | F22: =+Table8[[#This Row],[Text Time]]-$G$5 -> 14:09:05
A23: 2/12/19 | B23: 15:51:05 | C23: Inverter Firmware Revisions are the same | D23: Bat 51.2 VDC | E23: 2/12/19 13:51:05 | F23: =+Table8[[#This Row],[Text Time]]-$G$5 -> 13:51:05
A24: 2/12/19 | B24: 15:48:05 | C24: Inverter Firmware Revisions are Different | D24: Bat 51.2 VDC | E24: 2/12/19 13:48:05 | F24: =+Table8[[#This Row],[Text Time]]-$G$5 -> 13:48:05
A25: 2/12/19 | B25: 15:38:50 | C25: AGS AC Input Accepted | E25: 2/12/19 13:38:50 | F25: =+Table8[[#This Row],[Text Time]]-$G$5 -> 13:38:50
A26: 2/12/19 | B26: 15:38:09 | C26: AGS Manual Start | D26: Bat 47.5 VDC SOC 16 % | E26: 2/12/19 13:38:09 | F26: =+Table8[[#This Row],[Text Time]]-$G$5 -> 13:38:09
A27: 2/12/19 | B27: 15:34:49 | C27: Gateway Power Up | E27: 2/12/19 13:34:49 | F27: =+Table8[[#This Row],[Text Time]]-$G$5 -> 13:34:49
A28: 2/12/19 | B28: 15:34:37 | C28: Gateway Power Down | E28: 2/12/19 13:34:37 | F28: =+Table8[[#This Row],[Text Time]]-$G$5 -> 13:34:37
A29: 2/12/19 | B29: 15:28:47 | C29: AGS AC Input Accepted | E29: 2/12/19 13:28:47 | F29: =+Table8[[#This Row],[Text Time]]-$G$5 -> 13:28:47
A30: 2/12/19 | B30: 15:27:37 | C30: AGS SOC Start | D30: Bat 47.1 VDC SOC 16 % | E30: 2/12/19 13:27:37 | F30: =+Table8[[#This Row],[Text Time]]-$G$5 -> 13:27:37
A31: 2/12/19 | B31: 14:50:45 | C31: FNDC-10 | D31: Batt SOC Low Warning | E31: 2/12/19 12:50:45 | F31: =+Table8[[#This Row],[Text Time]]-$G$5 -> 12:50:45
A32: 2/12/19 | B32: 14:50:45 | C32: FNDC-10 | D32: Batt SOC Low Error | E32: 2/12/19 12:50:45 | F32: =+Table8[[#This Row],[Text Time]]-$G$5 -> 12:50:45
A33: 2/12/19 | B33: 14:48:51 | C33: FNDC-10 | D33: Batt SOC OK | E33: 2/12/19 12:48:51 | F33: =+Table8[[#This Row],[Text Time]]-$G$5 -> 12:48:51
A34: 2/12/19 | B34: 14:48:51 | C34: FNDC-10 | D34: Batt SOC Low | E34: 2/12/19 12:48:51 | F34: =+Table8[[#This Row],[Text Time]]-$G$5 -> 12:48:51
A35: 2/12/19 | B35: 14:48:50 | C35: FNDC-10 | D35: Batt SOC Low Warning | E35: 2/12/19 12:48:50 | F35: =+Table8[[#This Row],[Text Time]]-$G$5 -> 12:48:50
A36: 2/12/19 | B36: 14:48:50 | C36: FNDC-10 | D36: Batt SOC Low Error | E36: 2/12/19 12:48:50 | F36: =+Table8[[#This Row],[Text Time]]-$G$5 -> 12:48:50
A37: 2/12/19 | B37: 14:40:29 | C37: FNDC-10 | D37: Batt SOC OK | E37: 2/12/19 12:40:29 | F37: =+Table8[[#This Row],[Text Time]]-$G$5 -> 12:40:29
A38: 2/12/19 | B38: 14:40:29 | C38: FNDC-10 | D38: Batt SOC Low | E38: 2/12/19 12:40:29 | F38: =+Table8[[#This Row],[Text Time]]-$G$5 -> 12:40:29
A39: 2/12/19 | B39: 14:40:28 | C39: FNDC-10 | D39: Batt SOC Low Warning | E39: 2/12/19 12:40:28 | F39: =+Table8[[#This Row],[Text Time]]-$G$5 -> 12:40:28
A40: 2/12/19 | B40: 14:40:28 | C40: FNDC-10 | D40: Batt SOC Low Error | E40: 2/12/19 12:40:28 | F40: =+Table8[[#This Row],[Text Time]]-$G$5 -> 12:40:28
A41: 2/12/19 | B41: 14:36:05 | C41: Inverter Firmware Revisions are the same | E41: 2/12/19 12:36:05 | F41: =+Table8[[#This Row],[Text Time]]-$G$5 -> 12:36:05
A42: 2/12/19 | B42: 14:35:12 | C42: AGS AC Input Accepted | E42: 2/12/19 12:35:12 | F42: =+Table8[[#This Row],[Text Time]]-$G$5 -> 12:35:12
A43: 2/12/19 | B43: 14:35:11 | C43: AGS AC Input Accepted | E43: 2/12/19 12:35:11 | F43: =+Table8[[#This Row],[Text Time]]-$G$5 -> 12:35:11
A44: 2/12/19 | B44: 14:35:10 | C44: AGS AC Input Accepted | E44: 2/12/19 12:35:10 | F44: =+Table8[[#This Row],[Text Time]]-$G$5 -> 12:35:10
A45: 2/12/19 | B45: 14:35:09 | C45: AGS AC Input Accepted | E45: 2/12/19 12:35:09 | F45: =+Table8[[#This Row],[Text Time]]-$G$5 -> 12:35:09
A46: 2/12/19 | B46: 14:35:08 | C46: AGS AC Input Accepted | E46: 2/12/19 12:35:08 | F46: =+Table8[[#This Row],[Text Time]]-$G$5 -> 12:35:08
A47: 2/12/19 | B47: 14:35:07 | C47: AGS AC Input Accepted | E47: 2/12/19 12:35:07 | F47: =+Table8[[#This Row],[Text Time]]-$G$5 -> 12:35:07
A48: 2/12/19 | B48: 14:35:06 | C48: AGS AC Input Accepted | E48: 2/12/19 12:35:06 | F48: =+Table8[[#This Row],[Text Time]]-$G$5 -> 12:35:06
A49: 2/12/19 | B49: 14:35:05 | C49: AGS AC Input Accepted | E49: 2/12/19 12:35:05 | F49: =+Table8[[#This Row],[Text Time]]-$G$5 -> 12:35:05
A50: 2/12/19 | B50: 14:35:04 | C50: AGS AC Input Accepted | E50: 2/12/19 12:35:04 | F50: =+Table8[[#This Row],[Text Time]]-$G$5 -> 12:35:04
A51: 2/12/19 | B51: 14:35:03 | C51: AGS AC Input Accepted | E51: 2/12/19 12:35:03 | F51: =+Table8[[#This Row],[Text Time]]-$G$5 -> 12:35:03
A52: 2/12/19 | B52: 14:35:02 | C52: AGS AC Input Accepted | E52: 2/12/19 12:35:02 | F52: =+Table8[[#This Row],[Text Time]]-$G$5 -> 12:35:02
A53: 2/12/19 | B53: 14:35:01 | C53: AGS AC Input Accepted | E53: 2/12/19 12:35:01 | F53: =+Table8[[#This Row],[Text Time]]-$G$5 -> 12:35:01
A54: 2/12/19 | B54: 14:35:00 | C54: AGS AC Input Accepted | E54: 2/12/19 12:35:00 | F54: =+Table8[[#This Row],[Text Time]]-$G$5 -> 12:35:00
A55: 2/12/19 | B55: 14:34:59 | C55: AGS AC Input Accepted | E55: 2/12/19 12:34:59 | F55: =+Table8[[#This Row],[Text Time]]-$G$5 -> 12:34:59
A56: 2/12/19 | B56: 14:34:58 | C56: AGS AC Input Accepted | E56: 2/12/19 12:34:58 | F56: =+Table8[[#This Row],[Text Time]]-$G$5 -> 12:34:58
A57: 2/12/19 | B57: 14:34:57 | C57: AGS AC Input Accepted | E57: 2/12/19 12:34:57 | F57: =+Table8[[#This Row],[Text Time]]-$G$5 -> 12:34:57
A58: 2/12/19 | B58: 14:34:56 | C58: AGS AC Input Accepted | E58: 2/12/19 12:34:56 | F58: =+Table8[[#This Row],[Text Time]]-$G$5 -> 12:34:56
A59: 2/12/19 | B59: 14:34:55 | C59: AGS AC Input Accepted | E59: 2/12/19 12:34:55 | F59: =+Table8[[#This Row],[Text Time]]-$G$5 -> 12:34:55
A60: 2/12/19 | B60: 14:34:54 | C60: AGS AC Input Accepted | E60: 2/12/19 12:34:54 | F60: =+Table8[[#This Row],[Text Time]]-$G$5 -> 12:34:54
A61: 2/12/19 | B61: 14:34:53 | C61: AGS AC Input Accepted | E61: 2/12/19 12:34:53 | F61: =+Table8[[#This Row],[Text Time]]-$G$5 -> 12:34:53
A62: 2/12/19 | B62: 14:34:52 | C62: AGS AC Input Accepted | E62: 2/12/19 12:34:52 | F62: =+Table8[[#This Row],[Text Time]]-$G$5 -> 12:34:52
A63: 2/12/19 | B63: 14:34:51 | C63: AGS AC Input Accepted | E63: 2/12/19 12:34:51 | F63: =+Table8[[#This Row],[Text Time]]-$G$5 -> 12:34:51
A64: 2/12/19 | B64: 14:34:50 | C64: AGS AC Input Accepted | E64: 2/12/19 12:34:50 | F64: =+Table8[[#This Row],[Text Time]]-$G$5 -> 12:34:50
A65: 2/12/19 | B65: 14:34:49 | C65: AGS AC Input Accepted | E65: 2/12/19 12:34:49 | F65: =+Table8[[#This Row],[Text Time]]-$G$5 -> 12:34:49
A66: 2/12/19 | B66: 14:34:48 | C66: AGS AC Input Accepted | E66: 2/12/19 12:34:48 | F66: =+Table8[[#This Row],[Text Time]]-$G$5 -> 12:34:48
A67: 2/12/19 | B67: 14:34:47 | C67: AGS AC Input Accepted | E67: 2/12/19 12:34:47 | F67: =+Table8[[#This Row],[Text Time]]-$G$5 -> 12:34:47
A68: 2/12/19 | B68: 14:34:46 | C68: AGS AC Input Accepted | E68: 2/12/19 12:34:46 | F68: =+Table8[[#This Row],[Text Time]]-$G$5 -> 12:34:46
A69: 2/12/19 | B69: 14:34:45 | C69: AGS AC Input Accepted | E69: 2/12/19 12:34:45 | F69: =+Table8[[#This Row],[Text Time]]-$G$5 -> 12:34:45
A70: 2/12/19 | B70: 14:34:44 | C70: AGS AC Input Accepted | E70: 2/12/19 12:34:44 | F70: =+Table8[[#This Row],[Text Time]]-$G$5 -> 12:34:44
A71: 2/12/19 | B71: 14:34:43 | C71: AGS AC Input Accepted | E71: 2/12/19 12:34:43 | F71: =+Table8[[#This Row],[Text Time]]-$G$5 -> 12:34:43
A72: 2/12/19 | B72: 14:34:42 | C72: AGS AC Input Accepted | E72: 2/12/19 12:34:42 | F72: =+Table8[[#This Row],[Text Time]]-$G$5 -> 12:34:42
A73: 2/12/19 | B73: 14:34:41 | C73: AGS AC Input Accepted | E73: 2/12/19 12:34:41 | F73: =+Table8[[#This Row],[Text Time]]-$G$5 -> 12:34:41
A74: 2/12/19 | B74: 14:34:40 | C74: AGS AC Input Accepted | E74: =TEXT(A74,"m/dd/yy ")&" "&TEXT(F74,"hh:mm:ss") -> 2/12/19 12:34:40 | F74: =+Table8[[#This Row],[Text Time]]-$G$5 -> 12:34:40
A75: 2/12/19 | B75: 14:34:39 | C75: AGS AC Input Accepted | E75: 2/12/19 12:34:39 | F75: =+Table8[[#This Row],[Text Time]]-$G$5 -> 12:34:39
A76: 2/12/19 | B76: 14:34:38 | C76: AGS AC Input Accepted | E76: 2/12/19 12:34:38 | F76: =+Table8[[#This Row],[Text Time]]-$G$5 -> 12:34:38
A77: 2/12/19 | B77: 14:34:37 | C77: AGS AC Input Accepted | E77: 2/12/19 12:34:37 | F77: =+Table8[[#This Row],[Text Time]]-$G$5 -> 12:34:37
A78: 2/12/19 | B78: 14:34:36 | C78: AGS AC Input Accepted | E78: 2/12/19 12:34:36 | F78: =+Table8[[#This Row],[Text Time]]-$G$5 -> 12:34:36
A79: 2/12/19 | B79: 14:34:35 | C79: AGS AC Input Accepted | E79: 2/12/19 12:34:35 | F79: =+Table8[[#This Row],[Text Time]]-$G$5 -> 12:34:35
A80: 2/12/19 | B80: 14:34:34 | C80: AGS AC Input Accepted | E80: 2/12/19 12:34:34 | F80: =+Table8[[#This Row],[Text Time]]-$G$5 -> 12:34:34
A81: 2/12/19 | B81: 14:34:33 | C81: AGS AC Input Accepted | E81: 2/12/19 12:34:33 | F81: =+Table8[[#This Row],[Text Time]]-$G$5 -> 12:34:33
A82: 2/12/19 | B82: 14:34:32 | C82: AGS AC Input Accepted | E82: 2/12/19 12:34:32 | F82: =+Table8[[#This Row],[Text Time]]-$G$5 -> 12:34:32
A83: 2/12/19 | B83: 14:34:31 | C83: AGS AC Input Accepted | E83: 2/12/19 12:34:31 | F83: =+Table8[[#This Row],[Text Time]]-$G$5 -> 12:34:31
A84: 2/12/19 | B84: 14:34:30 | C84: AGS AC Input Accepted | E84: 2/12/19 12:34:30 | F84: =+Table8[[#This Row],[Text Time]]-$G$5 -> 12:34:30
A85: 2/12/19 | B85: 14:34:29 | C85: AGS AC Input Accepted | E85: 2/12/19 12:34:29 | F85: =+Table8[[#This Row],[Text Time]]-$G$5 -> 12:34:29
A86: 2/12/19 | B86: 14:34:28 | C86: AGS AC Input Accepted | E86: 2/12/19 12:34:28 | F86: =+Table8[[#This Row],[Text Time]]-$G$5 -> 12:34:28
A87: 2/12/19 | B87: 14:34:27 | C87: AGS AC Input Accepted | E87: 2/12/19 12:34:27 | F87: =+Table8[[#This Row],[Text Time]]-$G$5 -> 12:34:27
A88: 2/12/19 | B88: 14:34:26 | C88: AGS AC Input Accepted | E88: 2/12/19 12:34:26 | F88: =+Table8[[#This Row],[Text Time]]-$G$5 -> 12:34:26
A89: 2/12/19 | B89: 14:34:25 | C89: AGS AC Input Accepted | E89: 2/12/19 12:34:25 | F89: =+Table8[[#This Row],[Text Time]]-$G$5 -> 12:34:25
A90: 2/12/19 | B90: 14:34:24 | C90: AGS AC Input Accepted | E90: 2/12/19 12:34:24 | F90: =+Table8[[#This Row],[Text Time]]-$G$5 -> 12:34:24
A91: 2/12/19 | B91: 14:34:23 | C91: AGS AC Input Accepted | E91: 2/12/19 12:34:23 | F91: =+Table8[[#This Row],[Text Time]]-$G$5 -> 12:34:23
A92: 2/12/19 | B92: 14:34:22 | C92: AGS AC Input Accepted | E92: 2/12/19 12:34:22 | F92: =+Table8[[#This Row],[Text Time]]-$G$5 -> 12:34:22
A93: 2/12/19 | B93: 14:34:21 | C93: AGS AC Input Accepted | E93: 2/12/19 12:34:21 | F93: =+Table8[[#This Row],[Text Time]]-$G$5 -> 12:34:21
A94: 2/12/19 | B94: 14:34:20 | C94: AGS AC Input Accepted | E94: 2/12/19 12:34:20 | F94: =+Table8[[#This Row],[Text Time]]-$G$5 -> 12:34:20
A95: 2/12/19 | B95: 14:34:19 | C95: AGS AC Input Accepted | E95: 2/12/19 12:34:19 | F95: =+Table8[[#This Row],[Text Time]]-$G$5 -> 12:34:19
A96: 2/12/19 | B96: 14:34:18 | C96: AGS AC Input Accepted | E96: 2/12/19 12:34:18 | F96: =+Table8[[#This Row],[Text Time]]-$G$5 -> 12:34:18
A97: 2/12/19 | B97: 14:34:17 | C97: AGS AC Input Accepted | E97: 2/12/19 12:34:17 | F97: =+Table8[[#This Row],[Text Time]]-$G$5 -> 12:34:17
A98: 2/12/19 | B98: 14:34:16 | C98: AGS AC Input Accepted | E98: 2/12/19 12:34:16 | F98: =+Table8[[#This Row],[Text Time]]-$G$5 -> 12:34:16
A99: 2/12/19 | B99: 14:34:15 | C99: AGS AC Input Accepted | E99: 2/12/19 12:34:15 | F99: =+Table8[[#This Row],[Text Time]]-$G$5 -> 12:34:15
A100: 2/12/19 | B100: 14:34:14 | C100: AGS AC Input Accepted | E100: 2/12/19 12:34:14 | F100: =+Table8[[#This Row],[Text Time]]-$G$5 -> 12:34:14
A101: 2/12/19 | B101: 14:34:13 | C101: AGS AC Input Accepted | E101: 2/12/19 12:34:13 | F101: =+Table8[[#This Row],[Text Time]]-$G$5 -> 12:34:13
A102: 2/12/19 | B102: 14:34:12 | C102: AGS AC Input Accepted | E102: 2/12/19 12:34:12 | F102: =+Table8[[#This Row],[Text Time]]-$G$5 -> 12:34:12
A103: 2/12/19 | B103: 14:34:11 | C103: AGS AC Input Accepted | E103: 2/12/19 12:34:11 | F103: =+Table8[[#This Row],[Text Time]]-$G$5 -> 12:34:11
A104: 2/12/19 | B104: 14:34:10 | C104: AGS AC Input Accepted | E104: 2/12/19 12:34:10 | F104: =+Table8[[#This Row],[Text Time]]-$G$5 -> 12:34:10
A105: 2/12/19 | B105: 14:34:09 | C105: AGS AC Input Accepted | E105: 2/12/19 12:34:09 | F105: =+Table8[[#This Row],[Text Time]]-$G$5 -> 12:34:09
A106: 2/12/19 | B106: 14:34:08 | C106: AGS AC Input Accepted | E106: 2/12/19 12:34:08 | F106: =+Table8[[#This Row],[Text Time]]-$G$5 -> 12:34:08
A107: 2/12/19 | B107: 14:34:07 | C107: AGS AC Input Accepted | E107: 2/12/19 12:34:07 | F107: =+Table8[[#This Row],[Text Time]]-$G$5 -> 12:34:07
A108: 2/12/19 | B108: 14:34:06 | C108: AGS AC Input Accepted | E108: 2/12/19 12:34:06 | F108: =+Table8[[#This Row],[Text Time]]-$G$5 -> 12:34:06
A109: 2/12/19 | B109: 14:34:05 | C109: AGS AC Input Accepted | E109: 2/12/19 12:34:05 | F109: =+Table8[[#This Row],[Text Time]]-$G$5 -> 12:34:05
A110: 2/12/19 | B110: 14:34:04 | C110: AGS AC Input Accepted | E110: 2/12/19 12:34:04 | F110: =+Table8[[#This Row],[Text Time]]-$G$5 -> 12:34:04
A111: 2/12/19 | B111: 14:34:03 | C111: AGS AC Input Accepted | E111: 2/12/19 12:34:03 | F111: =+Table8[[#This Row],[Text Time]]-$G$5 -> 12:34:03
A112: 2/12/19 | B112: 14:34:02 | C112: AGS AC Input Accepted | E112: 2/12/19 12:34:02 | F112: =+Table8[[#This Row],[Text Time]]-$G$5 -> 12:34:02
A113: 2/12/19 | B113: 14:34:01 | C113: AGS AC Input Accepted | E113: 2/12/19 12:34:01 | F113: =+Table8[[#This Row],[Text Time]]-$G$5 -> 12:34:01
A114: 2/12/19 | B114: 14:34:00 | C114: AGS AC Input Accepted | E114: 2/12/19 12:34:00 | F114: =+Table8[[#This Row],[Text Time]]-$G$5 -> 12:34:00
A115: 2/12/19 | B115: 14:33:59 | C115: AGS AC Input Accepted | E115: 2/12/19 12:33:59 | F115: =+Table8[[#This Row],[Text Time]]-$G$5 -> 12:33:59
A116: 2/12/19 | B116: 14:33:58 | C116: AGS AC Input Accepted | E116: 2/12/19 12:33:58 | F116: =+Table8[[#This Row],[Text Time]]-$G$5 -> 12:33:58
A117: 2/12/19 | B117: 14:33:57 | C117: AGS AC Input Accepted | E117: 2/12/19 12:33:57 | F117: =+Table8[[#This Row],[Text Time]]-$G$5 -> 12:33:57
A118: 2/12/19 | B118: 14:33:56 | C118: AGS AC Input Accepted | E118: 2/12/19 12:33:56 | F118: =+Table8[[#This Row],[Text Time]]-$G$5 -> 12:33:56
A119: 2/12/19 | B119: 14:33:55 | C119: AGS AC Input Accepted | E119: 2/12/19 12:33:55 | F119: =+Table8[[#This Row],[Text Time]]-$G$5 -> 12:33:55
A120: 2/12/19 | B120: 14:33:54 | C120: AGS AC Input Accepted | E120: 2/12/19 12:33:54 | F120: =+Table8[[#This Row],[Text Time]]-$G$5 -> 12:33:54
A121: 2/12/19 | B121: 14:33:53 | C121: AGS AC Input Accepted | E121: 2/12/19 12:33:53 | F121: =+Table8[[#This Row],[Text Time]]-$G$5 -> 12:33:53
A122: 2/12/19 | B122: 14:33:52 | C122: AGS AC Input Accepted | E122: 2/12/19 12:33:52 | F122: =+Table8[[#This Row],[Text Time]]-$G$5 -> 12:33:52
A123: 2/12/19 | B123: 14:33:51 | C123: AGS AC Input Accepted | E123: 2/12/19 12:33:51 | F123: =+Table8[[#This Row],[Text Time]]-$G$5 -> 12:33:51
A124: 2/12/19 | B124: 14:33:50 | C124: AGS AC Input Accepted | E124: 2/12/19 12:33:50 | F124: =+Table8[[#This Row],[Text Time]]-$G$5 -> 12:33:50
A125: 2/12/19 | B125: 14:33:49 | C125: AGS AC Input Accepted | E125: 2/12/19 12:33:49 | F125: =+Table8[[#This Row],[Text Time]]-$G$5 -> 12:33:49
A126: 2/12/19 | B126: 14:33:48 | C126: AGS AC Input Accepted | E126: 2/12/19 12:33:48 | F126: =+Table8[[#This Row],[Text Time]]-$G$5 -> 12:33:48
A127: 2/12/19 | B127: 14:33:47 | C127: AGS AC Input Accepted | E127: 2/12/19 12:33:47 | F127: =+Table8[[#This Row],[Text Time]]-$G$5 -> 12:33:47
A128: 2/12/19 | B128: 14:33:46 | C128: AGS AC Input Accepted | E128: 2/12/19 12:33:46 | F128: =+Table8[[#This Row],[Text Time]]-$G$5 -> 12:33:46
A129: 2/12/19 | B129: 14:33:45 | C129: AGS AC Input Accepted | E129: 2/12/19 12:33:45 | F129: =+Table8[[#This Row],[Text Time]]-$G$5 -> 12:33:45
A130: 2/12/19 | B130: 14:33:44 | C130: AGS AC Input Accepted | E130: 2/12/19 12:33:44 | F130: =+Table8[[#This Row],[Text Time]]-$G$5 -> 12:33:44
A131: 2/12/19 | B131: 14:33:43 | C131: AGS AC Input Accepted | E131: 2/12/19 12:33:43 | F131: =+Table8[[#This Row],[Text Time]]-$G$5 -> 12:33:43
A132: 2/12/19 | B132: 14:33:42 | C132: AGS AC Input Accepted | E132: 2/12/19 12:33:42 | F132: =+Table8[[#This Row],[Text Time]]-$G$5 -> 12:33:42
A133: 2/12/19 | B133: 14:33:41 | C133: AGS AC Input Accepted | E133: 2/12/19 12:33:41 | F133: =+Table8[[#This Row],[Text Time]]-$G$5 -> 12:33:41
A134: 2/12/19 | B134: 14:33:40 | C134: AGS AC Input Accepted | E134: 2/12/19 12:33:40 | F134: =+Table8[[#This Row],[Text Time]]-$G$5 -> 12:33:40
A135: 2/12/19 | B135: 14:33:39 | C135: AGS AC Input Accepted | E135: 2/12/19 12:33:39 | F135: =+Table8[[#This Row],[Text Time]]-$G$5 -> 12:33:39
A136: 2/12/19 | B136: 14:33:38 | C136: AGS AC Input Accepted | E136: 2/12/19 12:33:38 | F136: =+Table8[[#This Row],[Text Time]]-$G$5 -> 12:33:38
A137: 2/12/19 | B137: 14:33:37 | C137: AGS AC Input Accepted | E137: 2/12/19 12:33:37 | F137: =+Table8[[#This Row],[Text Time]]-$G$5 -> 12:33:37
A138: 2/12/19 | B138: 14:33:36 | C138: AGS AC Input Accepted | E138: =TEXT(A138,"m/dd/yy ")&" "&TEXT(F138,"hh:mm:ss") -> 2/12/19 12:33:36 | F138: =+Table8[[#This Row],[Text Time]]-$G$5 -> 12:33:36
A139: 2/12/19 | B139: 14:33:35 | C139: AGS AC Input Accepted | E139: 2/12/19 12:33:35 | F139: =+Table8[[#This Row],[Text Time]]-$G$5 -> 12:33:35
A140: 2/12/19 | B140: 14:33:34 | C140: AGS AC Input Accepted | E140: 2/12/19 12:33:34 | F140: =+Table8[[#This Row],[Text Time]]-$G$5 -> 12:33:34
A141: 2/12/19 | B141: 14:33:33 | C141: AGS AC Input Accepted | E141: 2/12/19 12:33:33 | F141: =+Table8[[#This Row],[Text Time]]-$G$5 -> 12:33:33
A142: 2/12/19 | B142: 14:33:32 | C142: AGS AC Input Accepted | E142: 2/12/19 12:33:32 | F142: =+Table8[[#This Row],[Text Time]]-$G$5 -> 12:33:32
A143: 2/12/19 | B143: 14:33:31 | C143: AGS AC Input Accepted | E143: 2/12/19 12:33:31 | F143: =+Table8[[#This Row],[Text Time]]-$G$5 -> 12:33:31
A144: 2/12/19 | B144: 14:33:30 | C144: AGS AC Input Accepted | E144: 2/12/19 12:33:30 | F144: =+Table8[[#This Row],[Text Time]]-$G$5 -> 12:33:30
A145: 2/12/19 | B145: 14:33:29 | C145: AGS AC Input Accepted | E145: 2/12/19 12:33:29 | F145: =+Table8[[#This Row],[Text Time]]-$G$5 -> 12:33:29
A146: 2/12/19 | B146: 14:33:28 | C146: AGS AC Input Accepted | E146: 2/12/19 12:33:28 | F146: =+Table8[[#This Row],[Text Time]]-$G$5 -> 12:33:28
A147: 2/12/19 | B147: 14:33:27 | C147: AGS AC Input Accepted | E147: 2/12/19 12:33:27 | F147: =+Table8[[#This Row],[Text Time]]-$G$5 -> 12:33:27
A148: 2/12/19 | B148: 14:33:26 | C148: AGS AC Input Accepted | E148: 2/12/19 12:33:26 | F148: =+Table8[[#This Row],[Text Time]]-$G$5 -> 12:33:26
A149: 2/12/19 | B149: 14:33:25 | C149: AGS AC Input Accepted | E149: 2/12/19 12:33:25 | F149: =+Table8[[#This Row],[Text Time]]-$G$5 -> 12:33:25
A150: 2/12/19 | B150: 14:33:24 | C150: AGS AC Input Accepted | E150: 2/12/19 12:33:24 | F150: =+Table8[[#This Row],[Text Time]]-$G$5 -> 12:33:24
A151: 2/12/19 | B151: 14:33:23 | C151: AGS AC Input Accepted | E151: 2/12/19 12:33:23 | F151: =+Table8[[#This Row],[Text Time]]-$G$5 -> 12:33:23
A152: 2/12/19 | B152: 14:33:22 | C152: AGS AC Input Accepted | E152: 2/12/19 12:33:22 | F152: =+Table8[[#This Row],[Text Time]]-$G$5 -> 12:33:22
A153: 2/12/19 | B153: 14:33:21 | C153: AGS AC Input Accepted | E153: 2/12/19 12:33:21 | F153: =+Table8[[#This Row],[Text Time]]-$G$5 -> 12:33:21
A154: 2/12/19 | B154: 14:33:20 | C154: AGS AC Input Accepted | E154: 2/12/19 12:33:20 | F154: =+Table8[[#This Row],[Text Time]]-$G$5 -> 12:33:20
A155: 2/12/19 | B155: 14:33:19 | C155: AGS AC Input Accepted | E155: 2/12/19 12:33:19 | F155: =+Table8[[#This Row],[Text Time]]-$G$5 -> 12:33:19
A156: 2/12/19 | B156: 14:33:18 | C156: AGS AC Input Accepted | E156: 2/12/19 12:33:18 | F156: =+Table8[[#This Row],[Text Time]]-$G$5 -> 12:33:18
A157: 2/12/19 | B157: 14:33:17 | C157: AGS AC Input Accepted | E157: 2/12/19 12:33:17 | F157: =+Table8[[#This Row],[Text Time]]-$G$5 -> 12:33:17
A158: 2/12/19 | B158: 14:33:16 | C158: AGS AC Input Accepted | E158: 2/12/19 12:33:16 | F158: =+Table8[[#This Row],[Text Time]]-$G$5 -> 12:33:16
A159: 2/12/19 | B159: 14:33:15 | C159: AGS AC Input Accepted | E159: 2/12/19 12:33:15 | F159: =+Table8[[#This Row],[Text Time]]-$G$5 -> 12:33:15
A160: 2/12/19 | B160: 14:33:14 | C160: AGS AC Input Accepted | E160: 2/12/19 12:33:14 | F160: =+Table8[[#This Row],[Text Time]]-$G$5 -> 12:33:14
A161: 2/12/19 | B161: 14:33:13 | C161: AGS AC Input Accepted | E161: 2/12/19 12:33:13 | F161: =+Table8[[#This Row],[Text Time]]-$G$5 -> 12:33:13
A162: 2/12/19 | B162: 14:33:12 | C162: AGS AC Input Accepted | E162: 2/12/19 12:33:12 | F162: =+Table8[[#This Row],[Text Time]]-$G$5 -> 12:33:12
A163: 2/12/19 | B163: 14:33:11 | C163: AGS AC Input Accepted | E163: 2/12/19 12:33:11 | F163: =+Table8[[#This Row],[Text Time]]-$G$5 -> 12:33:11
A164: 2/12/19 | B164: 14:33:10 | C164: AGS AC Input Accepted | E164: 2/12/19 12:33:10 | F164: =+Table8[[#This Row],[Text Time]]-$G$5 -> 12:33:10
A165: 2/12/19 | B165: 14:33:09 | C165: AGS AC Input Accepted | E165: 2/12/19 12:33:09 | F165: =+Table8[[#This Row],[Text Time]]-$G$5 -> 12:33:09
A166: 2/12/19 | B166: 14:33:08 | C166: AGS AC Input Accepted | E166: 2/12/19 12:33:08 | F166: =+Table8[[#This Row],[Text Time]]-$G$5 -> 12:33:08
A167: 2/12/19 | B167: 14:33:07 | C167: AGS AC Input Accepted | E167: 2/12/19 12:33:07 | F167: =+Table8[[#This Row],[Text Time]]-$G$5 -> 12:33:07
A168: 2/12/19 | B168: 14:33:06 | C168: AGS AC Input Accepted | E168: 2/12/19 12:33:06 | F168: =+Table8[[#This Row],[Text Time]]-$G$5 -> 12:33:06
A169: 2/12/19 | B169: 14:33:05 | C169: AGS AC Input Accepted | E169: 2/12/19 12:33:05 | F169: =+Table8[[#This Row],[Text Time]]-$G$5 -> 12:33:05
A170: 2/12/19 | B170: 14:33:05 | C170: Inverter Firmware Revisions are Different | E170: 2/12/19 12:33:05 | F170: =+Table8[[#This Row],[Text Time]]-$G$5 -> 12:33:05
A171: 2/12/19 | B171: 14:33:04 | C171: AGS AC Input Accepted | E171: 2/12/19 12:33:04 | F171: =+Table8[[#This Row],[Text Time]]-$G$5 -> 12:33:04
A172: 2/12/19 | B172: 14:33:03 | C172: AGS AC Input Accepted | E172: 2/12/19 12:33:03 | F172: =+Table8[[#This Row],[Text Time]]-$G$5 -> 12:33:03
A173: 2/12/19 | B173: 14:33:02 | C173: AGS AC Input Accepted | E173: 2/12/19 12:33:02 | F173: =+Table8[[#This Row],[Text Time]]-$G$5 -> 12:33:02
A174: 2/12/19 | B174: 14:33:01 | C174: AGS AC Input Accepted | E174: 2/12/19 12:33:01 | F174: =+Table8[[#This Row],[Text Time]]-$G$5 -> 12:33:01
A175: 2/12/19 | B175: 14:33:00 | C175: AGS AC Input Accepted | E175: 2/12/19 12:33:00 | F175: =+Table8[[#This Row],[Text Time]]-$G$5 -> 12:33:00
A176: 2/12/19 | B176: 14:32:59 | C176: AGS AC Input Accepted | E176: 2/12/19 12:32:59 | F176: =+Table8[[#This Row],[Text Time]]-$G$5 -> 12:32:59
A177: 2/12/19 | B177: 14:32:58 | C177: AGS AC Input Accepted | E177: 2/12/19 12:32:58 | F177: =+Table8[[#This Row],[Text Time]]-$G$5 -> 12:32:58
A178: 2/12/19 | B178: 14:32:57 | C178: AGS AC Input Accepted | E178: 2/12/19 12:32:57 | F178: =+Table8[[#This Row],[Text Time]]-$G$5 -> 12:32:57
A179: 2/12/19 | B179: 14:32:56 | C179: AGS AC Input Accepted | E179: 2/12/19 12:32:56 | F179: =+Table8[[#This Row],[Text Time]]-$G$5 -> 12:32:56
A180: 2/12/19 | B180: 14:32:55 | C180: AGS AC Input Accepted | E180: 2/12/19 12:32:55 | F180: =+Table8[[#This Row],[Text Time]]-$G$5 -> 12:32:55
A181: 2/12/19 | B181: 14:32:54 | C181: AGS AC Input Accepted | E181: 2/12/19 12:32:54 | F181: =+Table8[[#This Row],[Text Time]]-$G$5 -> 12:32:54
A182: 2/12/19 | B182: 14:32:53 | C182: AGS AC Input Accepted | E182: 2/12/19 12:32:53 | F182: =+Table8[[#This Row],[Text Time]]-$G$5 -> 12:32:53
A183: 2/12/19 | B183: 14:32:52 | C183: AGS AC Input Accepted | E183: 2/12/19 12:32:52 | F183: =+Table8[[#This Row],[Text Time]]-$G$5 -> 12:32:52
A184: 2/12/19 | B184: 14:32:51 | C184: AGS AC Input Accepted | E184: 2/12/19 12:32:51 | F184: =+Table8[[#This Row],[Text Time]]-$G$5 -> 12:32:51
A185: 2/12/19 | B185: 14:32:50 | C185: AGS AC Input Accepted | E185: 2/12/19 12:32:50 | F185: =+Table8[[#This Row],[Text Time]]-$G$5 -> 12:32:50
A186: 2/12/19 | B186: 14:32:49 | C186: AGS AC Input Accepted | E186: 2/12/19 12:32:49 | F186: =+Table8[[#This Row],[Text Time]]-$G$5 -> 12:32:49
A187: 2/12/19 | B187: 14:32:48 | C187: AGS AC Input Accepted | E187: 2/12/19 12:32:48 | F187: =+Table8[[#This Row],[Text Time]]-$G$5 -> 12:32:48
A188: 2/12/19 | B188: 14:32:47 | C188: AGS AC Input Accepted | E188: 2/12/19 12:32:47 | F188: =+Table8[[#This Row],[Text Time]]-$G$5 -> 12:32:47
A189: 2/12/19 | B189: 14:32:46 | C189: AGS AC Input Accepted | E189: 2/12/19 12:32:46 | F189: =+Table8[[#This Row],[Text Time]]-$G$5 -> 12:32:46
A190: 2/12/19 | B190: 14:32:45 | C190: AGS AC Input Accepted | E190: 2/12/19 12:32:45 | F190: =+Table8[[#This Row],[Text Time]]-$G$5 -> 12:32:45
A191: 2/12/19 | B191: 14:32:44 | C191: AGS AC Input Accepted | E191: 2/12/19 12:32:44 | F191: =+Table8[[#This Row],[Text Time]]-$G$5 -> 12:32:44
A192: 2/12/19 | B192: 14:32:43 | C192: AGS AC Input Accepted | E192: 2/12/19 12:32:43 | F192: =+Table8[[#This Row],[Text Time]]-$G$5 -> 12:32:43
A193: 2/12/19 | B193: 14:32:42 | C193: AGS AC Input Accepted | E193: 2/12/19 12:32:42 | F193: =+Table8[[#This Row],[Text Time]]-$G$5 -> 12:32:42
A194: 2/12/19 | B194: 14:32:41 | C194: AGS AC Input Accepted | E194: 2/12/19 12:32:41 | F194: =+Table8[[#This Row],[Text Time]]-$G$5 -> 12:32:41
A195: 2/12/19 | B195: 14:32:40 | C195: AGS AC Input Accepted | E195: 2/12/19 12:32:40 | F195: =+Table8[[#This Row],[Text Time]]-$G$5 -> 12:32:40
A196: 2/12/19 | B196: 14:32:39 | C196: AGS AC Input Accepted | E196: 2/12/19 12:32:39 | F196: =+Table8[[#This Row],[Text Time]]-$G$5 -> 12:32:39
A197: 2/12/19 | B197: 14:32:38 | C197: AGS AC Input Accepted | E197: 2/12/19 12:32:38 | F197: =+Table8[[#This Row],[Text Time]]-$G$5 -> 12:32:38
A198: 2/12/19 | B198: 14:32:37 | C198: AGS AC Input Accepted | E198: 2/12/19 12:32:37 | F198: =+Table8[[#This Row],[Text Time]]-$G$5 -> 12:32:37
A199: 2/12/19 | B199: 14:32:36 | C199: AGS AC Input Accepted | E199: 2/12/19 12:32:36 | F199: =+Table8[[#This Row],[Text Time]]-$G$5 -> 12:32:36
A200: 2/12/19 | B200: 14:32:35 | C200: AGS AC Input Accepted | E200: 2/12/19 12:32:35 | F200: =+Table8[[#This Row],[Text Time]]-$G$5 -> 12:32:35
A201: 2/12/19 | B201: 14:32:34 | C201: AGS AC Input Accepted | E201: 2/12/19 12:32:34 | F201: =+Table8[[#This Row],[Text Time]]-$G$5 -> 12:32:34
A202: 2/12/19 | B202: 14:32:33 | C202: AGS AC Input Accepted | E202: =TEXT(A202,"m/dd/yy ")&" "&TEXT(F202,"hh:mm:ss") -> 2/12/19 12:32:33 | F202: =+Table8[[#This Row],[Text Time]]-$G$5 -> 12:32:33
... 2025 more rows

Sheet 11
A1: Miller Solar
A2: 17395 Oak Rd. Atascadero, CA 93422
A3: WORKSHEET
A5: Client:
A6: Project:
A7: Date: | D7: Revision:
A10: Radian | B10: Date | C10: Time | D10: Port | E10: Device Type (6) | F10: L1 Inverter Current | G10: L1 Charger Current | H10: L1 Buy Current | I10: L1 Sell Current | J10: L1 Grid input Voltage | K10: L1 Generator input voltage | L10: L1 Output Voltage | M10: L2 Inverter Current | N10: L2 Charger Current | O10: L2 Buy Current | P10: L2 Sell Current | Q10: L2 Grid input Voltage | R10: L2 Generator input Voltage | S10: L2 Output Voltage | T10: Inverter operating mode | U10: Error Codes | V10: AC mode | W10: Battery Voltage | X10: Misc | Y10: Warning Codes
A11: FXR | C11: Time | D11: Port | E11: Device Type (5) | F11: L1 Inverter Current | G11: L1 Charger Current | H11: L1 Buy Current | I11: L1 Sell Current | J11: L1 Grid input Voltage | K11: L1 Generator input voltage | L11: L1 Output Voltage | M11: L2 Inverter Current | N11: L2 Charger Current | O11: L2 Buy Current | P11: L2 Sell Current | Q11: L2 Grid input Voltage | R11: L2 Generator input Voltage | S11: L2 Output Voltage | T11: Inverter operating mode | U11: Error Codes | V11: AC mode | W11: Battery Voltage | X11: Misc | Y11: Warning Codes
A12: FX | B12: Date | C12: Time | D12: Port | E12: Device Type (2) | F12: Inverter Current | G12: Charger Current | H12: Buy Current | I12: AC In Voltage | J12: AC Out Voltage | K12: Sell Current | L12: Operating Mode | M12: Error Code | N12: AC Mode | O12: Battery Voltage | P12: Misc | Q12: Warning Code
A13: CC | B13: Date | C13: Time | D13: Port | E13: Device Type (3) | F13: unused | G13: Charger Current | H13: PV Current | I13: PV Voltage | J13: Daily KWh | K13: CC Amps (tenths) | L13: Aux Mode | M13: Error Code | N13: Mode | O13: Battery Voltage | P13: Amp Hours | Q13: unused
A14: FNDC | B14: Date | C14: Time | D14: Port | E14: Device Type (4) | F14: Shunt A Amps | G14: Shunt B Amps | H14: Shunt C Amps | I14: Extra Data Identifier | J14: Extra Data | K14: Battery Voltage | L14: SOC | M14: Shunt Enable | N14: Status Flag | O14: Battery Temp

Sheet 12
A1: Miller Solar
A2: 17395 Oak Rd. Atascadero, CA 93422
A3: WORKSHEET
A5: Client:
A6: Project:
A7: Date: | D7: Revision:
A10: Radian | B10: Date | C10: Time | D10: Port | E10: Device Type (6) | F10: L1 Inverter Current | G10: L1 Charger Current | H10: L1 Buy Current | I10: L1 Sell Current | J10: L1 Grid input Voltage | K10: L1 Generator input voltage | L10: L1 Output Voltage | M10: L2 Inverter Current | N10: L2 Charger Current | O10: L2 Buy Current | P10: L2 Sell Current | Q10: L2 Grid input Voltage | R10: L2 Generator input Voltage | S10: L2 Output Voltage | T10: Inverter operating mode | U10: Error Codes | V10: AC mode | W10: Battery Voltage | X10: Misc | Y10: Warning Codes
A11: FXR | C11: Time | D11: Port | E11: Device Type (5) | F11: L1 Inverter Current | G11: L1 Charger Current | H11: L1 Buy Current | I11: L1 Sell Current | J11: L1 Grid input Voltage | K11: L1 Generator input voltage | L11: L1 Output Voltage | M11: L2 Inverter Current | N11: L2 Charger Current | O11: L2 Buy Current | P11: L2 Sell Current | Q11: L2 Grid input Voltage | R11: L2 Generator input Voltage | S11: L2 Output Voltage | T11: Inverter operating mode | U11: Error Codes | V11: AC mode | W11: Battery Voltage | X11: Misc | Y11: Warning Codes
A12: FX | B12: Date | C12: Time | D12: Port | E12: Device Type (2) | F12: Inverter Current | G12: Charger Current | H12: Buy Current | I12: AC In Voltage | J12: AC Out Voltage | K12: Sell Current | L12: Operating Mode | M12: Error Code | N12: AC Mode | O12: Battery Voltage | P12: Misc | Q12: Warning Code
A13: CC | B13: Date | C13: Time | D13: Port | E13: Device Type (3) | F13: unused | G13: Charger Current | H13: PV Current | I13: PV Voltage | J13: Daily KWh | K13: CC Amps (tenths) | L13: Aux Mode | M13: Error Code | N13: Mode | O13: Battery Voltage | P13: Amp Hours | Q13: unused
A14: FNDC | B14: Date | C14: Time | D14: Port | E14: Device Type (4) | F14: Shunt A Amps | G14: Shunt B Amps | H14: Shunt C Amps | I14: Extra Data Identifier | J14: Extra Data | K14: Battery Voltage | L14: SOC | M14: Shunt Enable | N14: Status Flag | O14: Battery Temp
B15: Column1 | C15: Column2 | D15: Column3 | E15: Column4 | F15: Column5 | G15: Column6 | H15: Column7 | I15: Column8 | J15: Column9 | K15: Column10 | L15: Column11 | M15: Column12 | N15: Column13 | O15: Column14 | P15: Column15 | Q15: Column16 | R15: Column17 | S15: Column18 | T15: Column19 | U15: Column20 | V15: Column21 | W15: Column22 | X15: Column23 | Y15: Column24
B16: 2/21/19 | C16: 11:00:03 | D16: 1 | E16: 5 | F16: 0 | G16: 0 | H16: 0 | I16: 0 | J16: 0 | K16: 0 | L16: 0 | M16: 0 | N16: 8 | O16: 10 | P16: 0 | Q16: 122 | R16: 0 | S16: 122 | T16: 3 | U16: 0 | V16: 2 | W16: 624 | X16: 60 | Y16: 0
B17: 2/21/19 | C17: 11:00:03 | D17: 2 | E17: 5 | F17: 0 | G17: 0 | H17: 0 | I17: 0 | J17: 0 | K17: 0 | L17: 0 | M17: 0 | N17: 7 | O17: 9 | P17: 0 | Q17: 122 | R17: 0 | S17: 122 | T17: 11 | U17: 0 | V17: 2 | W17: 624 | X17: 44 | Y17: 0
B18: 2/21/19 | C18: 11:00:03 | D18: 3 | E18: 4 | F18: 672 | G18: 1 | H18: 0 | I18: 2 | J18: 34 | K18: 625 | L18: 99 | M18: 110 | N18: 0 | O18: 22
B19: 2/21/19 | C19: 11:00:03 | D19: 7 | E19: 5 | F19: 0 | G19: 0 | H19: 0 | I19: 0 | J19: 0 | K19: 0 | L19: 0 | M19: 0 | N19: 11 | O19: 11 | P19: 0 | Q19: 122 | R19: 0 | S19: 121 | T19: 3 | U19: 0 | V19: 2 | W19: 624 | X19: 44 | Y19: 0
B20: 2/21/19 | C20: 11:00:03 | D20: 8 | E20: 5 | F20: 0 | G20: 0 | H20: 0 | I20: 0 | J20: 0 | K20: 0 | L20: 0 | M20: 0 | N20: 11 | O20: 11 | P20: 0 | Q20: 123 | R20: 0 | S20: 122 | T20: 11 | U20: 0 | V20: 2 | W20: 624 | X20: 60 | Y20: 0
B21: 2/21/19 | C21: 11:00:03 | D21: 9 | E21: 3 | F21: 0 | G21: 0 | H21: 0 | I21: 124 | J21: 5 | K21: 0 | L21: 3 | M21: 0 | N21: 4 | O21: 629 | P21: 10 | Q21: 0
B22: 2/21/19 | C22: 11:00:03 | D22: 10 | E22: 3 | F22: 0 | G22: 0 | H22: 0 | I22: 114 | J22: 11 | K22: 0 | L22: 3 | M22: 0 | N22: 4 | O22: 628 | P22: 19 | Q22: 0
B23: 2/21/19 | C23: 11:00:04 | D23: 1 | E23: 5 | F23: 0 | G23: 0 | H23: 0 | I23: 0 | J23: 122 | K23: 0 | L23: 123 | M23: 0 | N23: 8 | O23: 10 | P23: 0 | Q23: 122 | R23: 0 | S23: 123 | T23: 3 | U23: 0 | V23: 2 | W23: 624 | X23: 60 | Y23: 0
B24: 2/21/19 | C24: 11:00:04 | D24: 2 | E24: 5 | F24: 0 | G24: 0 | H24: 0 | I24: 0 | J24: 0 | K24: 0 | L24: 0 | M24: 0 | N24: 7 | O24: 9 | P24: 0 | Q24: 122 | R24: 0 | S24: 122 | T24: 11 | U24: 0 | V24: 2 | W24: 624 | X24: 44 | Y24: 0
B25: 2/21/19 | C25: 11:00:04 | D25: 3 | E25: 4 | F25: 672 | G25: 1 | H25: 0 | I25: 3 | J25: 197 | K25: 625 | L25: 99 | M25: 110 | N25: 0 | O25: 22
B26: 2/21/19 | C26: 11:00:04 | D26: 7 | E26: 5 | F26: 0 | G26: 0 | H26: 0 | I26: 0 | J26: 0 | K26: 0 | L26: 0 | M26: 0 | N26: 11 | O26: 11 | P26: 0 | Q26: 122 | R26: 0 | S26: 121 | T26: 3 | U26: 0 | V26: 2 | W26: 624 | X26: 44 | Y26: 0
B27: 2/21/19 | C27: 11:00:04 | D27: 8 | E27: 5 | F27: 0 | G27: 0 | H27: 0 | I27: 0 | J27: 0 | K27: 0 | L27: 0 | M27: 0 | N27: 11 | O27: 11 | P27: 0 | Q27: 123 | R27: 0 | S27: 122 | T27: 11 | U27: 0 | V27: 2 | W27: 624 | X27: 60 | Y27: 0
B28: 2/21/19 | C28: 11:00:04 | D28: 9 | E28: 3 | F28: 0 | G28: 0 | H28: 0 | I28: 124 | J28: 5 | K28: 0 | L28: 3 | M28: 0 | N28: 4 | O28: 629 | P28: 10 | Q28: 0
B29: 2/21/19 | C29: 11:00:04 | D29: 10 | E29: 3 | F29: 0 | G29: 0 | H29: 0 | I29: 114 | J29: 11 | K29: 0 | L29: 3 | M29: 0 | N29: 4 | O29: 628 | P29: 19 | Q29: 0
B30: 2/21/19 | C30: 11:00:05 | D30: 1 | E30: 5 | F30: 0 | G30: 0 | H30: 0 | I30: 0 | J30: 0 | K30: 0 | L30: 0 | M30: 0 | N30: 8 | O30: 10 | P30: 0 | Q30: 122 | R30: 0 | S30: 123 | T30: 3 | U30: 0 | V30: 2 | W30: 624 | X30: 60 | Y30: 0
B31: 2/21/19 | C31: 11:00:05 | D31: 2 | E31: 5 | F31: 0 | G31: 0 | H31: 0 | I31: 0 | J31: 0 | K31: 0 | L31: 0 | M31: 0 | N31: 7 | O31: 9 | P31: 0 | Q31: 122 | R31: 0 | S31: 122 | T31: 11 | U31: 0 | V31: 2 | W31: 624 | X31: 44 | Y31: 0
B32: 2/21/19 | C32: 11:00:05 | D32: 3 | E32: 4 | F32: 674 | G32: 1 | H32: 0 | I32: 4 | J32: 0 | K32: 625 | L32: 99 | M32: 110 | N32: 0 | O32: 22
B33: 2/21/19 | C33: 11:00:05 | D33: 7 | E33: 5 | F33: 0 | G33: 0 | H33: 0 | I33: 0 | J33: 0 | K33: 0 | L33: 0 | M33: 0 | N33: 11 | O33: 11 | P33: 0 | Q33: 123 | R33: 0 | S33: 121 | T33: 3 | U33: 0 | V33: 2 | W33: 624 | X33: 44 | Y33: 0
B34: 2/21/19 | C34: 11:00:05 | D34: 8 | E34: 5 | F34: 0 | G34: 0 | H34: 0 | I34: 0 | J34: 0 | K34: 0 | L34: 0 | M34: 0 | N34: 11 | O34: 12 | P34: 0 | Q34: 123 | R34: 0 | S34: 122 | T34: 11 | U34: 0 | V34: 2 | W34: 624 | X34: 60 | Y34: 0
B35: 2/21/19 | C35: 11:00:05 | D35: 9 | E35: 3 | F35: 0 | G35: 0 | H35: 0 | I35: 124 | J35: 5 | K35: 0 | L35: 3 | M35: 0 | N35: 4 | O35: 629 | P35: 10 | Q35: 0
B36: 2/21/19 | C36: 11:00:05 | D36: 10 | E36: 3 | F36: 0 | G36: 0 | H36: 0 | I36: 114 | J36: 11 | K36: 0 | L36: 3 | M36: 0 | N36: 4 | O36: 629 | P36: 19 | Q36: 0
B37: 2/21/19 | C37: 11:00:06 | D37: 1 | E37: 5 | F37: 0 | G37: 0 | H37: 0 | I37: 0 | J37: 0 | K37: 0 | L37: 0 | M37: 0 | N37: 9 | O37: 10 | P37: 0 | Q37: 122 | R37: 0 | S37: 122 | T37: 3 | U37: 0 | V37: 2 | W37: 624 | X37: 60 | Y37: 0
B38: 2/21/19 | C38: 11:00:06 | D38: 2 | E38: 5 | F38: 0 | G38: 0 | H38: 0 | I38: 0 | J38: 0 | K38: 0 | L38: 0 | M38: 0 | N38: 8 | O38: 9 | P38: 0 | Q38: 122 | R38: 0 | S38: 122 | T38: 11 | U38: 0 | V38: 2 | W38: 624 | X38: 44 | Y38: 0
B39: 2/21/19 | C39: 11:00:06 | D39: 3 | E39: 4 | F39: 676 | G39: 1 | H39: 0 | I39: 5 | J39: 0 | K39: 626 | L39: 99 | M39: 110 | N39: 0 | O39: 22
B40: 2/21/19 | C40: 11:00:06 | D40: 7 | E40: 5 | F40: 0 | G40: 0 | H40: 0 | I40: 0 | J40: 0 | K40: 0 | L40: 0 | M40: 0 | N40: 11 | O40: 11 | P40: 0 | Q40: 122 | R40: 0 | S40: 122 | T40: 3 | U40: 0 | V40: 2 | W40: 624 | X40: 44 | Y40: 0
B41: 2/21/19 | C41: 11:00:06 | D41: 8 | E41: 5 | F41: 0 | G41: 0 | H41: 0 | I41: 0 | J41: 0 | K41: 0 | L41: 0 | M41: 0 | N41: 11 | O41: 11 | P41: 0 | Q41: 122 | R41: 0 | S41: 121 | T41: 11 | U41: 0 | V41: 2 | W41: 624 | X41: 60 | Y41: 0
B42: 2/21/19 | C42: 11:00:06 | D42: 9 | E42: 3 | F42: 0 | G42: 0 | H42: 0 | I42: 124 | J42: 5 | K42: 0 | L42: 3 | M42: 0 | N42: 4 | O42: 629 | P42: 10 | Q42: 0
B43: 2/21/19 | C43: 11:00:06 | D43: 10 | E43: 3 | F43: 0 | G43: 0 | H43: 0 | I43: 115 | J43: 11 | K43: 0 | L43: 3 | M43: 0 | N43: 4 | O43: 629 | P43: 19 | Q43: 0
B44: 2/21/19 | C44: 11:00:07 | D44: 1 | E44: 5 | F44: 0 | G44: 0 | H44: 0 | I44: 0 | J44: 0 | K44: 0 | L44: 0 | M44: 0 | N44: 9 | O44: 10 | P44: 0 | Q44: 122 | R44: 0 | S44: 122 | T44: 3 | U44: 0 | V44: 2 | W44: 624 | X44: 60 | Y44: 0
B45: 2/21/19 | C45: 11:00:07 | D45: 2 | E45: 5 | F45: 0 | G45: 0 | H45: 0 | I45: 0 | J45: 0 | K45: 0 | L45: 0 | M45: 0 | N45: 7 | O45: 9 | P45: 0 | Q45: 122 | R45: 0 | S45: 122 | T45: 11 | U45: 0 | V45: 2 | W45: 624 | X45: 44 | Y45: 0
B46: 2/21/19 | C46: 11:00:07 | D46: 3 | E46: 4 | F46: 676 | G46: 2 | H46: 0 | I46: 6 | J46: 11 | K46: 625 | L46: 99 | M46: 110 | N46: 0 | O46: 22
B47: 2/21/19 | C47: 11:00:07 | D47: 7 | E47: 5 | F47: 0 | G47: 0 | H47: 0 | I47: 0 | J47: 0 | K47: 0 | L47: 0 | M47: 0 | N47: 11 | O47: 11 | P47: 0 | Q47: 122 | R47: 0 | S47: 121 | T47: 3 | U47: 0 | V47: 2 | W47: 624 | X47: 44 | Y47: 0
B48: 2/21/19 | C48: 11:00:07 | D48: 8 | E48: 5 | F48: 0 | G48: 0 | H48: 0 | I48: 0 | J48: 0 | K48: 0 | L48: 0 | M48: 0 | N48: 11 | O48: 11 | P48: 0 | Q48: 123 | R48: 0 | S48: 121 | T48: 11 | U48: 0 | V48: 2 | W48: 624 | X48: 60 | Y48: 0
B49: 2/21/19 | C49: 11:00:07 | D49: 9 | E49: 3 | F49: 0 | G49: 0 | H49: 0 | I49: 124 | J49: 5 | K49: 0 | L49: 3 | M49: 0 | N49: 4 | O49: 629 | P49: 10 | Q49: 0
B50: 2/21/19 | C50: 11:00:07 | D50: 10 | E50: 3 | F50: 0 | G50: 0 | H50: 0 | I50: 115 | J50: 11 | K50: 0 | L50: 3 | M50: 0 | N50: 4 | O50: 628 | P50: 19 | Q50: 0
B51: 2/21/19 | C51: 11:00:08 | D51: 1 | E51: 5 | F51: 0 | G51: 0 | H51: 0 | I51: 0 | J51: 0 | K51: 0 | L51: 0 | M51: 0 | N51: 9 | O51: 10 | P51: 0 | Q51: 121 | R51: 0 | S51: 122 | T51: 3 | U51: 0 | V51: 2 | W51: 624 | X51: 60 | Y51: 0
B52: 2/21/19 | C52: 11:00:08 | D52: 2 | E52: 5 | F52: 0 | G52: 0 | H52: 0 | I52: 0 | J52: 0 | K52: 0 | L52: 0 | M52: 0 | N52: 8 | O52: 9 | P52: 0 | Q52: 122 | R52: 0 | S52: 122 | T52: 11 | U52: 0 | V52: 2 | W52: 624 | X52: 44 | Y52: 0
B53: 2/21/19 | C53: 11:00:08 | D53: 3 | E53: 4 | F53: 677 | G53: 2 | H53: 0 | I53: 7 | J53: 80 | K53: 626 | L53: 99 | M53: 110 | N53: 0 | O53: 22
B54: 2/21/19 | C54: 11:00:08 | D54: 7 | E54: 5 | F54: 0 | G54: 0 | H54: 0 | I54: 0 | J54: 0 | K54: 0 | L54: 0 | M54: 0 | N54: 11 | O54: 11 | P54: 0 | Q54: 122 | R54: 0 | S54: 121 | T54: 3 | U54: 0 | V54: 2 | W54: 624 | X54: 44 | Y54: 0
B55: 2/21/19 | C55: 11:00:08 | D55: 8 | E55: 5 | F55: 0 | G55: 0 | H55: 0 | I55: 0 | J55: 0 | K55: 0 | L55: 0 | M55: 0 | N55: 11 | O55: 12 | P55: 0 | Q55: 123 | R55: 0 | S55: 122 | T55: 11 | U55: 0 | V55: 2 | W55: 624 | X55: 60 | Y55: 0
B56: 2/21/19 | C56: 11:00:08 | D56: 9 | E56: 3 | F56: 0 | G56: 0 | H56: 0 | I56: 124 | J56: 5 | K56: 0 | L56: 3 | M56: 0 | N56: 4 | O56: 629 | P56: 10 | Q56: 0
B57: 2/21/19 | C57: 11:00:08 | D57: 10 | E57: 3 | F57: 0 | G57: 0 | H57: 0 | I57: 115 | J57: 11 | K57: 0 | L57: 3 | M57: 0 | N57: 4 | O57: 629 | P57: 19 | Q57: 0
B58: 2/21/19 | C58: 11:00:09 | D58: 1 | E58: 5 | F58: 0 | G58: 0 | H58: 0 | I58: 0 | J58: 0 | K58: 0 | L58: 0 | M58: 0 | N58: 9 | O58: 10 | P58: 0 | Q58: 121 | R58: 0 | S58: 122 | T58: 3 | U58: 0 | V58: 2 | W58: 624 | X58: 60 | Y58: 0
B59: 2/21/19 | C59: 11:00:09 | D59: 2 | E59: 5 | F59: 0 | G59: 0 | H59: 0 | I59: 0 | J59: 0 | K59: 0 | L59: 0 | M59: 0 | N59: 7 | O59: 9 | P59: 0 | Q59: 122 | R59: 0 | S59: 122 | T59: 11 | U59: 0 | V59: 2 | W59: 624 | X59: 44 | Y59: 0
B60: 2/21/19 | C60: 11:00:09 | D60: 3 | E60: 4 | F60: 677 | G60: 1 | H60: 0 | I60: 8 | J60: 358 | K60: 626 | L60: 99 | M60: 110 | N60: 0 | O60: 22
B61: 2/21/19 | C61: 11:00:09 | D61: 7 | E61: 5 | F61: 0 | G61: 0 | H61: 0 | I61: 0 | J61: 0 | K61: 0 | L61: 0 | M61: 0 | N61: 11 | O61: 11 | P61: 0 | Q61: 122 | R61: 0 | S61: 121 | T61: 3 | U61: 0 | V61: 2 | W61: 624 | X61: 44 | Y61: 0
B62: 2/21/19 | C62: 11:00:09 | D62: 8 | E62: 5 | F62: 0 | G62: 0 | H62: 0 | I62: 0 | J62: 0 | K62: 0 | L62: 0 | M62: 0 | N62: 11 | O62: 11 | P62: 0 | Q62: 123 | R62: 0 | S62: 121 | T62: 11 | U62: 0 | V62: 2 | W62: 624 | X62: 60 | Y62: 0
B63: 2/21/19 | C63: 11:00:09 | D63: 9 | E63: 3 | F63: 0 | G63: 0 | H63: 0 | I63: 124 | J63: 5 | K63: 0 | L63: 3 | M63: 0 | N63: 4 | O63: 629 | P63: 10 | Q63: 0
B64: 2/21/19 | C64: 11:00:09 | D64: 10 | E64: 3 | F64: 0 | G64: 0 | H64: 0 | I64: 115 | J64: 11 | K64: 0 | L64: 3 | M64: 0 | N64: 4 | O64: 629 | P64: 19 | Q64: 0
B65: 2/21/19 | C65: 11:00:11 | D65: 1 | E65: 5 | F65: 0 | G65: 0 | H65: 0 | I65: 0 | J65: 0 | K65: 0 | L65: 0 | M65: 0 | N65: 9 | O65: 10 | P65: 0 | Q65: 121 | R65: 0 | S65: 122 | T65: 3 | U65: 0 | V65: 2 | W65: 624 | X65: 60 | Y65: 0
B66: 2/21/19 | C66: 11:00:11 | D66: 2 | E66: 5 | F66: 0 | G66: 0 | H66: 0 | I66: 0 | J66: 0 | K66: 0 | L66: 0 | M66: 0 | N66: 8 | O66: 9 | P66: 0 | Q66: 122 | R66: 0 | S66: 122 | T66: 11 | U66: 0 | V66: 2 | W66: 624 | X66: 44 | Y66: 0
B67: 2/21/19 | C67: 11:00:11 | D67: 3 | E67: 4 | F67: 680 | G67: 1 | H67: 0 | I67: 9 | J67: 180 | K67: 626 | L67: 99 | M67: 110 | N67: 0 | O67: 22
B68: 2/21/19 | C68: 11:00:11 | D68: 7 | E68: 5 | F68: 0 | G68: 0 | H68: 0 | I68: 0 | J68: 0 | K68: 0 | L68: 0 | M68: 0 | N68: 11 | O68: 11 | P68: 0 | Q68: 122 | R68: 0 | S68: 121 | T68: 3 | U68: 0 | V68: 2 | W68: 624 | X68: 44 | Y68: 0
B69: 2/21/19 | C69: 11:00:11 | D69: 8 | E69: 5 | F69: 0 | G69: 0 | H69: 0 | I69: 0 | J69: 0 | K69: 0 | L69: 0 | M69: 0 | N69: 11 | O69: 11 | P69: 0 | Q69: 123 | R69: 0 | S69: 122 | T69: 11 | U69: 0 | V69: 2 | W69: 624 | X69: 60 | Y69: 0
B70: 2/21/19 | C70: 11:00:11 | D70: 9 | E70: 3 | F70: 0 | G70: 0 | H70: 0 | I70: 124 | J70: 5 | K70: 0 | L70: 3 | M70: 0 | N70: 4 | O70: 629 | P70: 10 | Q70: 0
B71: 2/21/19 | C71: 11:00:11 | D71: 10 | E71: 3 | F71: 0 | G71: 0 | H71: 0 | I71: 115 | J71: 11 | K71: 0 | L71: 3 | M71: 0 | N71: 4 | O71: 629 | P71: 19 | Q71: 0
B72: 2/21/19 | C72: 11:00:12 | D72: 1 | E72: 5 | F72: 0 | G72: 0 | H72: 0 | I72: 0 | J72: 0 | K72: 0 | L72: 0 | M72: 0 | N72: 8 | O72: 10 | P72: 0 | Q72: 122 | R72: 0 | S72: 122 | T72: 3 | U72: 0 | V72: 2 | W72: 624 | X72: 60 | Y72: 0
B73: 2/21/19 | C73: 11:00:12 | D73: 2 | E73: 5 | F73: 0 | G73: 0 | H73: 0 | I73: 0 | J73: 0 | K73: 0 | L73: 0 | M73: 0 | N73: 8 | O73: 9 | P73: 0 | Q73: 122 | R73: 0 | S73: 122 | T73: 11 | U73: 0 | V73: 2 | W73: 624 | X73: 44 | Y73: 0
B74: 2/21/19 | C74: 11:00:12 | D74: 3 | E74: 4 | F74: 671 | G74: 1 | H74: 0 | I74: 10 | J74: 2057 | K74: 626 | L74: 99 | M74: 110 | N74: 0 | O74: 22
B75: 2/21/19 | C75: 11:00:12 | D75: 7 | E75: 5 | F75: 0 | G75: 0 | H75: 0 | I75: 0 | J75: 0 | K75: 0 | L75: 0 | M75: 0 | N75: 11 | O75: 11 | P75: 0 | Q75: 122 | R75: 0 | S75: 121 | T75: 3 | U75: 0 | V75: 2 | W75: 624 | X75: 44 | Y75: 0
B76: 2/21/19 | C76: 11:00:12 | D76: 8 | E76: 5 | F76: 0 | G76: 0 | H76: 0 | I76: 0 | J76: 0 | K76: 0 | L76: 0 | M76: 0 | N76: 11 | O76: 12 | P76: 0 | Q76: 123 | R76: 0 | S76: 122 | T76: 11 | U76: 0 | V76: 2 | W76: 624 | X76: 60 | Y76: 0
B77: 2/21/19 | C77: 11:00:12 | D77: 9 | E77: 3 | F77: 0 | G77: 0 | H77: 0 | I77: 125 | J77: 5 | K77: 0 | L77: 3 | M77: 0 | N77: 4 | O77: 629 | P77: 10 | Q77: 0
B78: 2/21/19 | C78: 11:00:12 | D78: 10 | E78: 3 | F78: 0 | G78: 0 | H78: 0 | I78: 115 | J78: 11 | K78: 0 | L78: 3 | M78: 0 | N78: 4 | O78: 629 | P78: 19 | Q78: 0
B79: 2/21/19 | C79: 11:00:13 | D79: 1 | E79: 5 | F79: 0 | G79: 0 | H79: 0 | I79: 0 | J79: 0 | K79: 0 | L79: 0 | M79: 0 | N79: 9 | O79: 10 | P79: 0 | Q79: 121 | R79: 0 | S79: 122 | T79: 3 | U79: 0 | V79: 2 | W79: 624 | X79: 60 | Y79: 0
B80: 2/21/19 | C80: 11:00:13 | D80: 2 | E80: 5 | F80: 0 | G80: 0 | H80: 0 | I80: 0 | J80: 0 | K80: 0 | L80: 0 | M80: 0 | N80: 8 | O80: 9 | P80: 0 | Q80: 122 | R80: 0 | S80: 122 | T80: 11 | U80: 0 | V80: 2 | W80: 624 | X80: 44 | Y80: 0
B81: 2/21/19 | C81: 11:00:13 | D81: 3 | E81: 4 | F81: 680 | G81: 2 | H81: 0 | I81: 11 | J81: 854 | K81: 626 | L81: 99 | M81: 110 | N81: 0 | O81: 22
B82: 2/21/19 | C82: 11:00:13 | D82: 7 | E82: 5 | F82: 0 | G82: 0 | H82: 0 | I82: 0 | J82: 0 | K82: 0 | L82: 0 | M82: 0 | N82: 11 | O82: 11 | P82: 0 | Q82: 122 | R82: 0 | S82: 121 | T82: 3 | U82: 0 | V82: 2 | W82: 624 | X82: 44 | Y82: 0
B83: 2/21/19 | C83: 11:00:13 | D83: 8 | E83: 5 | F83: 0 | G83: 0 | H83: 0 | I83: 0 | J83: 0 | K83: 0 | L83: 0 | M83: 0 | N83: 11 | O83: 12 | P83: 0 | Q83: 122 | R83: 0 | S83: 121 | T83: 11 | U83: 0 | V83: 2 | W83: 624 | X83: 60 | Y83: 0
B84: 2/21/19 | C84: 11:00:13 | D84: 9 | E84: 3 | F84: 0 | G84: 0 | H84: 0 | I84: 125 | J84: 5 | K84: 0 | L84: 3 | M84: 0 | N84: 4 | O84: 629 | P84: 10 | Q84: 0
B85: 2/21/19 | C85: 11:00:13 | D85: 10 | E85: 3 | F85: 0 | G85: 0 | H85: 0 | I85: 115 | J85: 11 | K85: 0 | L85: 3 | M85: 0 | N85: 4 | O85: 628 | P85: 19 | Q85: 0
B86: 2/21/19 | C86: 11:00:14 | D86: 1 | E86: 5 | F86: 0 | G86: 0 | H86: 0 | I86: 0 | J86: 0 | K86: 0 | L86: 0 | M86: 0 | N86: 9 | O86: 10 | P86: 0 | Q86: 121 | R86: 0 | S86: 122 | T86: 3 | U86: 0 | V86: 2 | W86: 624 | X86: 60 | Y86: 0
B87: 2/21/19 | C87: 11:00:14 | D87: 2 | E87: 5 | F87: 0 | G87: 0 | H87: 0 | I87: 0 | J87: 0 | K87: 0 | L87: 0 | M87: 0 | N87: 7 | O87: 9 | P87: 0 | Q87: 122 | R87: 0 | S87: 121 | T87: 11 | U87: 0 | V87: 2 | W87: 624 | X87: 44 | Y87: 0
B88: 2/21/19 | C88: 11:00:14 | D88: 3 | E88: 4 | F88: 678 | G88: 1 | H88: 0 | I88: 76 | J88: 15 | K88: 626 | L88: 99 | M88: 110 | N88: 0 | O88: 22
B89: 2/21/19 | C89: 11:00:14 | D89: 7 | E89: 5 | F89: 0 | G89: 0 | H89: 0 | I89: 0 | J89: 0 | K89: 0 | L89: 0 | M89: 0 | N89: 11 | O89: 11 | P89: 0 | Q89: 123 | R89: 0 | S89: 121 | T89: 3 | U89: 0 | V89: 2 | W89: 624 | X89: 44 | Y89: 0
B90: 2/21/19 | C90: 11:00:14 | D90: 8 | E90: 5 | F90: 0 | G90: 0 | H90: 0 | I90: 0 | J90: 0 | K90: 0 | L90: 0 | M90: 0 | N90: 11 | O90: 12 | P90: 0 | Q90: 122 | R90: 0 | S90: 121 | T90: 11 | U90: 0 | V90: 2 | W90: 624 | X90: 60 | Y90: 0
B91: 2/21/19 | C91: 11:00:14 | D91: 9 | E91: 3 | F91: 0 | G91: 0 | H91: 0 | I91: 125 | J91: 5 | K91: 0 | L91: 3 | M91: 0 | N91: 4 | O91: 629 | P91: 10 | Q91: 0
B92: 2/21/19 | C92: 11:00:14 | D92: 10 | E92: 3 | F92: 0 | G92: 0 | H92: 0 | I92: 115 | J92: 11 | K92: 0 | L92: 3 | M92: 0 | N92: 4 | O92: 629 | P92: 19 | Q92: 0
B93: 2/21/19 | C93: 11:00:15 | D93: 1 | E93: 5 | F93: 0 | G93: 0 | H93: 0 | I93: 0 | J93: 0 | K93: 0 | L93: 0 | M93: 0 | N93: 9 | O93: 10 | P93: 0 | Q93: 121 | R93: 0 | S93: 122 | T93: 3 | U93: 0 | V93: 2 | W93: 624 | X93: 60 | Y93: 0
B94: 2/21/19 | C94: 11:00:15 | D94: 2 | E94: 5 | F94: 0 | G94: 0 | H94: 0 | I94: 0 | J94: 0 | K94: 0 | L94: 0 | M94: 0 | N94: 8 | O94: 9 | P94: 0 | Q94: 122 | R94: 0 | S94: 122 | T94: 11 | U94: 0 | V94: 2 | W94: 624 | X94: 44 | Y94: 0
B95: 2/21/19 | C95: 11:00:15 | D95: 3 | E95: 4 | F95: 677 | G95: 2 | H95: 0 | I95: 13 | J95: 212 | K95: 625 | L95: 99 | M95: 110 | N95: 0 | O95: 22
B96: 2/21/19 | C96: 11:00:15 | D96: 7 | E96: 5 | F96: 0 | G96: 0 | H96: 0 | I96: 0 | J96: 0 | K96: 0 | L96: 0 | M96: 0 | N96: 11 | O96: 11 | P96: 0 | Q96: 123 | R96: 0 | S96: 121 | T96: 3 | U96: 0 | V96: 2 | W96: 624 | X96: 44 | Y96: 0
B97: 2/21/19 | C97: 11:00:15 | D97: 8 | E97: 5 | F97: 0 | G97: 0 | H97: 0 | I97: 0 | J97: 0 | K97: 0 | L97: 0 | M97: 0 | N97: 11 | O97: 11 | P97: 0 | Q97: 122 | R97: 0 | S97: 121 | T97: 11 | U97: 0 | V97: 2 | W97: 624 | X97: 60 | Y97: 0
B98: 2/21/19 | C98: 11:00:15 | D98: 9 | E98: 3 | F98: 0 | G98: 0 | H98: 0 | I98: 125 | J98: 5 | K98: 0 | L98: 3 | M98: 0 | N98: 4 | O98: 629 | P98: 10 | Q98: 0
B99: 2/21/19 | C99: 11:00:15 | D99: 10 | E99: 3 | F99: 0 | G99: 0 | H99: 0 | I99: 116 | J99: 11 | K99: 0 | L99: 3 | M99: 0 | N99: 4 | O99: 628 | P99: 19 | Q99: 0
B100: 2/21/19 | C100: 11:00:16 | D100: 1 | E100: 5 | F100: 0 | G100: 0 | H100: 0 | I100: 0 | J100: 0 | K100: 0 | L100: 0 | M100: 0 | N100: 9 | O100: 10 | P100: 0 | Q100: 122 | R100: 0 | S100: 122 | T100: 3 | U100: 0 | V100: 2 | W100: 624 | X100: 60 | Y100: 0
B101: 2/21/19 | C101: 11:00:16 | D101: 2 | E101: 5 | F101: 0 | G101: 0 | H101: 0 | I101: 0 | J101: 0 | K101: 0 | L101: 0 | M101: 0 | N101: 8 | O101: 9 | P101: 0 | Q101: 122 | R101: 0 | S101: 122 | T101: 11 | U101: 0 | V101: 2 | W101: 624 | X101: 44 | Y101: 0
B102: 2/21/19 | C102: 11:00:16 | D102: 3 | E102: 4 | F102: 676 | G102: 2 | H102: 0 | I102: 0 | J102: 1 | K102: 626 | L102: 99 | M102: 110 | N102: 0 | O102: 22
B103: 2/21/19 | C103: 11:00:16 | D103: 7 | E103: 5 | F103: 0 | G103: 0 | H103: 0 | I103: 0 | J103: 0 | K103: 0 | L103: 0 | M103: 0 | N103: 11 | O103: 11 | P103: 0 | Q103: 122 | R103: 0 | S103: 121 | T103: 3 | U103: 0 | V103: 2 | W103: 624 | X103: 44 | Y103: 0
B104: 2/21/19 | C104: 11:00:16 | D104: 8 | E104: 5 | F104: 0 | G104: 0 | H104: 0 | I104: 0 | J104: 0 | K104: 0 | L104: 0 | M104: 0 | N104: 11 | O104: 11 | P104: 0 | Q104: 123 | R104: 0 | S104: 122 | T104: 11 | U104: 0 | V104: 2 | W104: 624 | X104: 60 | Y104: 0
B105: 2/21/19 | C105: 11:00:16 | D105: 9 | E105: 3 | F105: 0 | G105: 0 | H105: 0 | I105: 126 | J105: 5 | K105: 0 | L105: 3 | M105: 0 | N105: 4 | O105: 629 | P105: 10 | Q105: 0
B106: 2/21/19 | C106: 11:00:16 | D106: 10 | E106: 3 | F106: 0 | G106: 0 | H106: 0 | I106: 116 | J106: 11 | K106: 0 | L106: 3 | M106: 0 | N106: 4 | O106: 629 | P106: 19 | Q106: 0
B107: 2/21/19 | C107: 11:00:18 | D107: 1 | E107: 5 | F107: 0 | G107: 0 | H107: 0 | I107: 0 | J107: 0 | K107: 0 | L107: 0 | M107: 0 | N107: 9 | O107: 10 | P107: 0 | Q107: 122 | R107: 0 | S107: 122 | T107: 3 | U107: 0 | V107: 2 | W107: 624 | X107: 60 | Y107: 0
B108: 2/21/19 | C108: 11:00:18 | D108: 2 | E108: 5 | F108: 0 | G108: 0 | H108: 0 | I108: 0 | J108: 0 | K108: 0 | L108: 0 | M108: 0 | N108: 8 | O108: 9 | P108: 0 | Q108: 122 | R108: 0 | S108: 122 | T108: 11 | U108: 0 | V108: 2 | W108: 624 | X108: 44 | Y108: 0
B109: 2/21/19 | C109: 11:00:18 | D109: 3 | E109: 4 | F109: 671 | G109: 1 | H109: 0 | I109: 1 | J109: 309 | K109: 626 | L109: 99 | M109: 110 | N109: 0 | O109: 22
B110: 2/21/19 | C110: 11:00:18 | D110: 7 | E110: 5 | F110: 0 | G110: 0 | H110: 0 | I110: 0 | J110: 0 | K110: 0 | L110: 0 | M110: 0 | N110: 11 | O110: 11 | P110: 0 | Q110: 123 | R110: 0 | S110: 121 | T110: 3 | U110: 0 | V110: 2 | W110: 624 | X110: 44 | Y110: 0
B111: 2/21/19 | C111: 11:00:18 | D111: 8 | E111: 5 | F111: 0 | G111: 0 | H111: 0 | I111: 0 | J111: 0 | K111: 0 | L111: 0 | M111: 0 | N111: 11 | O111: 11 | P111: 0 | Q111: 122 | R111: 0 | S111: 121 | T111: 11 | U111: 0 | V111: 2 | W111: 624 | X111: 60 | Y111: 0
B112: 2/21/19 | C112: 11:00:18 | D112: 9 | E112: 3 | F112: 0 | G112: 0 | H112: 0 | I112: 126 | J112: 5 | K112: 0 | L112: 3 | M112: 0 | N112: 4 | O112: 629 | P112: 10 | Q112: 0
B113: 2/21/19 | C113: 11:00:18 | D113: 10 | E113: 3 | F113: 0 | G113: 0 | H113: 0 | I113: 117 | J113: 11 | K113: 0 | L113: 3 | M113: 0 | N113: 4 | O113: 629 | P113: 19 | Q113: 0
B114: 2/21/19 | C114: 11:00:18 | D114: 1 | E114: 5 | F114: 0 | G114: 0 | H114: 0 | I114: 0 | J114: 0 | K114: 0 | L114: 0 | M114: 0 | N114: 9 | O114: 10 | P114: 0 | Q114: 122 | R114: 0 | S114: 122 | T114: 3 | U114: 0 | V114: 2 | W114: 624 | X114: 60 | Y114: 0
B115: 2/21/19 | C115: 11:00:18 | D115: 2 | E115: 5 | F115: 0 | G115: 0 | H115: 0 | I115: 0 | J115: 0 | K115: 0 | L115: 0 | M115: 0 | N115: 8 | O115: 9 | P115: 0 | Q115: 122 | R115: 0 | S115: 122 | T115: 11 | U115: 0 | V115: 2 | W115: 624 | X115: 44 | Y115: 0
B116: 2/21/19 | C116: 11:00:18 | D116: 3 | E116: 4 | F116: 673 | G116: 0 | H116: 0 | I116: 2 | J116: 34 | K116: 625 | L116: 99 | M116: 110 | N116: 0 | O116: 22
B117: 2/21/19 | C117: 11:00:18 | D117: 7 | E117: 5 | F117: 0 | G117: 0 | H117: 0 | I117: 0 | J117: 0 | K117: 0 | L117: 0 | M117: 0 | N117: 11 | O117: 11 | P117: 0 | Q117: 122 | R117: 0 | S117: 121 | T117: 3 | U117: 0 | V117: 2 | W117: 624 | X117: 44 | Y117: 0
B118: 2/21/19 | C118: 11:00:18 | D118: 8 | E118: 5 | F118: 0 | G118: 0 | H118: 0 | I118: 0 | J118: 0 | K118: 0 | L118: 0 | M118: 0 | N118: 11 | O118: 11 | P118: 0 | Q118: 122 | R118: 0 | S118: 121 | T118: 11 | U118: 0 | V118: 2 | W118: 624 | X118: 60 | Y118: 0
B119: 2/21/19 | C119: 11:00:18 | D119: 9 | E119: 3 | F119: 0 | G119: 0 | H119: 0 | I119: 127 | J119: 5 | K119: 0 | L119: 3 | M119: 0 | N119: 4 | O119: 629 | P119: 10 | Q119: 0
B120: 2/21/19 | C120: 11:00:18 | D120: 10 | E120: 3 | F120: 0 | G120: 0 | H120: 0 | I120: 117 | J120: 11 | K120: 0 | L120: 3 | M120: 0 | N120: 4 | O120: 628 | P120: 19 | Q120: 0
B121: 2/21/19 | C121: 11:00:19 | D121: 1 | E121: 5 | F121: 0 | G121: 0 | H121: 0 | I121: 0 | J121: 0 | K121: 0 | L121: 0 | M121: 0 | N121: 8 | O121: 10 | P121: 0 | Q121: 121 | R121: 0 | S121: 122 | T121: 3 | U121: 0 | V121: 2 | W121: 624 | X121: 60 | Y121: 0
B122: 2/21/19 | C122: 11:00:19 | D122: 2 | E122: 5 | F122: 0 | G122: 0 | H122: 0 | I122: 0 | J122: 0 | K122: 0 | L122: 0 | M122: 0 | N122: 8 | O122: 9 | P122: 0 | Q122: 122 | R122: 0 | S122: 121 | T122: 11 | U122: 0 | V122: 2 | W122: 624 | X122: 44 | Y122: 0
B123: 2/21/19 | C123: 11:00:19 | D123: 3 | E123: 4 | F123: 673 | G123: 0 | H123: 0 | I123: 3 | J123: 197 | K123: 625 | L123: 99 | M123: 110 | N123: 0 | O123: 22
B124: 2/21/19 | C124: 11:00:19 | D124: 7 | E124: 5 | F124: 0 | G124: 0 | H124: 0 | I124: 0 | J124: 0 | K124: 0 | L124: 0 | M124: 0 | N124: 11 | O124: 11 | P124: 0 | Q124: 123 | R124: 0 | S124: 121 | T124: 3 | U124: 0 | V124: 2 | W124: 624 | X124: 44 | Y124: 0
B125: 2/21/19 | C125: 11:00:19 | D125: 8 | E125: 5 | F125: 0 | G125: 0 | H125: 0 | I125: 0 | J125: 0 | K125: 0 | L125: 0 | M125: 0 | N125: 11 | O125: 11 | P125: 0 | Q125: 123 | R125: 0 | S125: 122 | T125: 11 | U125: 0 | V125: 2 | W125: 624 | X125: 60 | Y125: 0
B126: 2/21/19 | C126: 11:00:19 | D126: 9 | E126: 3 | F126: 0 | G126: 0 | H126: 0 | I126: 127 | J126: 5 | K126: 0 | L126: 3 | M126: 0 | N126: 4 | O126: 629 | P126: 10 | Q126: 0
B127: 2/21/19 | C127: 11:00:19 | D127: 10 | E127: 3 | F127: 0 | G127: 0 | H127: 0 | I127: 118 | J127: 11 | K127: 0 | L127: 3 | M127: 0 | N127: 4 | O127: 629 | P127: 19 | Q127: 0
B128: 2/21/19 | C128: 11:00:20 | D128: 1 | E128: 5 | F128: 0 | G128: 0 | H128: 0 | I128: 0 | J128: 0 | K128: 0 | L128: 0 | M128: 0 | N128: 9 | O128: 10 | P128: 0 | Q128: 122 | R128: 0 | S128: 122 | T128: 3 | U128: 0 | V128: 2 | W128: 624 | X128: 60 | Y128: 0
B129: 2/21/19 | C129: 11:00:20 | D129: 2 | E129: 5 | F129: 0 | G129: 0 | H129: 0 | I129: 0 | J129: 0 | K129: 0 | L129: 0 | M129: 0 | N129: 8 | O129: 9 | P129: 0 | Q129: 122 | R129: 0 | S129: 121 | T129: 11 | U129: 0 | V129: 2 | W129: 624 | X129: 44 | Y129: 0
B130: 2/21/19 | C130: 11:00:20 | D130: 3 | E130: 4 | F130: 668 | G130: 7 | H130: 0 | I130: 4 | J130: 0 | K130: 625 | L130: 99 | M130: 110 | N130: 16 | O130: 22
B131: 2/21/19 | C131: 11:00:20 | D131: 7 | E131: 5 | F131: 0 | G131: 0 | H131: 0 | I131: 0 | J131: 0 | K131: 0 | L131: 0 | M131: 0 | N131: 11 | O131: 11 | P131: 0 | Q131: 122 | R131: 0 | S131: 122 | T131: 3 | U131: 0 | V131: 2 | W131: 624 | X131: 44 | Y131: 0
B132: 2/21/19 | C132: 11:00:20 | D132: 8 | E132: 5 | F132: 0 | G132: 0 | H132: 0 | I132: 0 | J132: 0 | K132: 0 | L132: 0 | M132: 0 | N132: 11 | O132: 11 | P132: 0 | Q132: 123 | R132: 0 | S132: 122 | T132: 11 | U132: 0 | V132: 2 | W132: 624 | X132: 60 | Y132: 0
B133: 2/21/19 | C133: 11:00:20 | D133: 9 | E133: 3 | F133: 0 | G133: 0 | H133: 0 | I133: 127 | J133: 5 | K133: 0 | L133: 3 | M133: 0 | N133: 4 | O133: 629 | P133: 10 | Q133: 0
B134: 2/21/19 | C134: 11:00:20 | D134: 10 | E134: 3 | F134: 0 | G134: 0 | H134: 0 | I134: 118 | J134: 11 | K134: 0 | L134: 3 | M134: 0 | N134: 4 | O134: 629 | P134: 19 | Q134: 0
B135: 2/21/19 | C135: 11:00:21 | D135: 1 | E135: 5 | F135: 0 | G135: 0 | H135: 0 | I135: 0 | J135: 0 | K135: 0 | L135: 0 | M135: 0 | N135: 9 | O135: 10 | P135: 0 | Q135: 122 | R135: 0 | S135: 122 | T135: 3 | U135: 0 | V135: 2 | W135: 624 | X135: 60 | Y135: 0
B136: 2/21/19 | C136: 11:00:21 | D136: 2 | E136: 5 | F136: 0 | G136: 0 | H136: 0 | I136: 0 | J136: 0 | K136: 0 | L136: 0 | M136: 0 | N136: 8 | O136: 9 | P136: 0 | Q136: 122 | R136: 0 | S136: 122 | T136: 11 | U136: 0 | V136: 2 | W136: 624 | X136: 44 | Y136: 0
B137: 2/21/19 | C137: 11:00:21 | D137: 3 | E137: 4 | F137: 672 | G137: 6 | H137: 0 | I137: 5 | J137: 0 | K137: 625 | L137: 99 | M137: 110 | N137: 16 | O137: 22
B138: 2/21/19 | C138: 11:00:21 | D138: 7 | E138: 5 | F138: 0 | G138: 0 | H138: 0 | I138: 0 | J138: 0 | K138: 0 | L138: 0 | M138: 0 | N138: 11 | O138: 11 | P138: 0 | Q138: 123 | R138: 0 | S138: 122 | T138: 3 | U138: 0 | V138: 2 | W138: 624 | X138: 44 | Y138: 0
B139: 2/21/19 | C139: 11:00:21 | D139: 8 | E139: 5 | F139: 0 | G139: 0 | H139: 0 | I139: 0 | J139: 0 | K139: 0 | L139: 0 | M139: 0 | N139: 11 | O139: 11 | P139: 0 | Q139: 123 | R139: 0 | S139: 122 | T139: 11 | U139: 0 | V139: 2 | W139: 624 | X139: 60 | Y139: 0
B140: 2/21/19 | C140: 11:00:21 | D140: 9 | E140: 3 | F140: 0 | G140: 0 | H140: 0 | I140: 128 | J140: 5 | K140: 0 | L140: 3 | M140: 0 | N140: 4 | O140: 629 | P140: 10 | Q140: 0
B141: 2/21/19 | C141: 11:00:21 | D141: 10 | E141: 3 | F141: 0 | G141: 0 | H141: 0 | I141: 118 | J141: 11 | K141: 0 | L141: 3 | M141: 0 | N141: 4 | O141: 628 | P141: 19 | Q141: 0
B142: 2/21/19 | C142: 11:00:22 | D142: 1 | E142: 5 | F142: 0 | G142: 0 | H142: 0 | I142: 0 | J142: 0 | K142: 0 | L142: 0 | M142: 0 | N142: 8 | O142: 10 | P142: 0 | Q142: 121 | R142: 0 | S142: 122 | T142: 3 | U142: 0 | V142: 2 | W142: 624 | X142: 60 | Y142: 0
B143: 2/21/19 | C143: 11:00:22 | D143: 2 | E143: 5 | F143: 0 | G143: 0 | H143: 0 | I143: 0 | J143: 0 | K143: 0 | L143: 0 | M143: 0 | N143: 8 | O143: 9 | P143: 0 | Q143: 122 | R143: 0 | S143: 121 | T143: 11 | U143: 0 | V143: 2 | W143: 624 | X143: 44 | Y143: 0
B144: 2/21/19 | C144: 11:00:22 | D144: 3 | E144: 4 | F144: 674 | G144: 8 | H144: 0 | I144: 6 | J144: 11 | K144: 625 | L144: 99 | M144: 110 | N144: 16 | O144: 22
B145: 2/21/19 | C145: 11:00:22 | D145: 7 | E145: 5 | F145: 0 | G145: 0 | H145: 0 | I145: 0 | J145: 0 | K145: 0 | L145: 0 | M145: 0 | N145: 11 | O145: 11 | P145: 0 | Q145: 122 | R145: 0 | S145: 121 | T145: 3 | U145: 0 | V145: 2 | W145: 624 | X145: 44 | Y145: 0
B146: 2/21/19 | C146: 11:00:22 | D146: 8 | E146: 5 | F146: 0 | G146: 0 | H146: 0 | I146: 0 | J146: 0 | K146: 0 | L146: 0 | M146: 0 | N146: 11 | O146: 11 | P146: 0 | Q146: 123 | R146: 0 | S146: 122 | T146: 11 | U146: 0 | V146: 2 | W146: 624 | X146: 60 | Y146: 0
B147: 2/21/19 | C147: 11:00:22 | D147: 9 | E147: 3 | F147: 0 | G147: 0 | H147: 0 | I147: 127 | J147: 5 | K147: 0 | L147: 3 | M147: 0 | N147: 4 | O147: 629 | P147: 10 | Q147: 0
B148: 2/21/19 | C148: 11:00:22 | D148: 10 | E148: 3 | F148: 0 | G148: 0 | H148: 0 | I148: 117 | J148: 11 | K148: 0 | L148: 3 | M148: 0 | N148: 4 | O148: 628 | P148: 19 | Q148: 0
B149: 2/21/19 | C149: 11:00:23 | D149: 1 | E149: 5 | F149: 0 | G149: 0 | H149: 0 | I149: 0 | J149: 0 | K149: 0 | L149: 0 | M149: 0 | N149: 9 | O149: 10 | P149: 0 | Q149: 121 | R149: 0 | S149: 122 | T149: 3 | U149: 0 | V149: 2 | W149: 624 | X149: 60 | Y149: 0
B150: 2/21/19 | C150: 11:00:23 | D150: 2 | E150: 5 | F150: 0 | G150: 0 | H150: 0 | I150: 0 | J150: 0 | K150: 0 | L150: 0 | M150: 0 | N150: 8 | O150: 9 | P150: 0 | Q150: 122 | R150: 0 | S150: 122 | T150: 11 | U150: 0 | V150: 2 | W150: 624 | X150: 44 | Y150: 0
B151: 2/21/19 | C151: 11:00:23 | D151: 3 | E151: 4 | F151: 671 | G151: 10 | H151: 0 | I151: 7 | J151: 80 | K151: 625 | L151: 99 | M151: 110 | N151: 16 | O151: 22
B152: 2/21/19 | C152: 11:00:23 | D152: 7 | E152: 5 | F152: 0 | G152: 0 | H152: 0 | I152: 0 | J152: 0 | K152: 0 | L152: 0 | M152: 0 | N152: 11 | O152: 11 | P152: 0 | Q152: 122 | R152: 0 | S152: 121 | T152: 3 | U152: 0 | V152: 2 | W152: 624 | X152: 44 | Y152: 0
B153: 2/21/19 | C153: 11:00:23 | D153: 8 | E153: 5 | F153: 0 | G153: 0 | H153: 0 | I153: 0 | J153: 0 | K153: 0 | L153: 0 | M153: 0 | N153: 11 | O153: 11 | P153: 0 | Q153: 122 | R153: 0 | S153: 122 | T153: 11 | U153: 0 | V153: 2 | W153: 624 | X153: 60 | Y153: 0
B154: 2/21/19 | C154: 11:00:23 | D154: 9 | E154: 3 | F154: 0 | G154: 0 | H154: 0 | I154: 127 | J154: 5 | K154: 0 | L154: 3 | M154: 0 | N154: 4 | O154: 629 | P154: 10 | Q154: 0
B155: 2/21/19 | C155: 11:00:23 | D155: 10 | E155: 3 | F155: 0 | G155: 0 | H155: 0 | I155: 117 | J155: 11 | K155: 0 | L155: 3 | M155: 0 | N155: 4 | O155: 629 | P155: 19 | Q155: 0
B156: 2/21/19 | C156: 11:00:24 | D156: 1 | E156: 5 | F156: 0 | G156: 0 | H156: 0 | I156: 0 | J156: 0 | K156: 0 | L156: 0 | M156: 0 | N156: 8 | O156: 10 | P156: 0 | Q156: 122 | R156: 0 | S156: 122 | T156: 3 | U156: 0 | V156: 2 | W156: 624 | X156: 60 | Y156: 0
B157: 2/21/19 | C157: 11:00:24 | D157: 2 | E157: 5 | F157: 0 | G157: 0 | H157: 0 | I157: 0 | J157: 0 | K157: 0 | L157: 0 | M157: 0 | N157: 8 | O157: 9 | P157: 0 | Q157: 122 | R157: 0 | S157: 122 | T157: 11 | U157: 0 | V157: 2 | W157: 624 | X157: 44 | Y157: 0
B158: 2/21/19 | C158: 11:00:24 | D158: 3 | E158: 4 | F158: 671 | G158: 4 | H158: 0 | I158: 8 | J158: 359 | K158: 625 | L158: 99 | M158: 110 | N158: 16 | O158: 22
B159: 2/21/19 | C159: 11:00:24 | D159: 7 | E159: 5 | F159: 0 | G159: 0 | H159: 0 | I159: 0 | J159: 0 | K159: 0 | L159: 0 | M159: 0 | N159: 11 | O159: 11 | P159: 0 | Q159: 123 | R159: 0 | S159: 122 | T159: 3 | U159: 0 | V159: 2 | W159: 624 | X159: 44 | Y159: 0
B160: 2/21/19 | C160: 11:00:24 | D160: 8 | E160: 5 | F160: 0 | G160: 0 | H160: 0 | I160: 0 | J160: 0 | K160: 0 | L160: 0 | M160: 0 | N160: 11 | O160: 12 | P160: 0 | Q160: 123 | R160: 0 | S160: 121 | T160: 11 | U160: 0 | V160: 2 | W160: 624 | X160: 60 | Y160: 0
B161: 2/21/19 | C161: 11:00:24 | D161: 9 | E161: 3 | F161: 0 | G161: 0 | H161: 0 | I161: 127 | J161: 5 | K161: 0 | L161: 3 | M161: 0 | N161: 4 | O161: 628 | P161: 10 | Q161: 0
B162: 2/21/19 | C162: 11:00:24 | D162: 10 | E162: 3 | F162: 0 | G162: 0 | H162: 0 | I162: 117 | J162: 11 | K162: 0 | L162: 3 | M162: 0 | N162: 4 | O162: 629 | P162: 19 | Q162: 0
B163: 2/21/19 | C163: 11:00:25 | D163: 1 | E163: 5 | F163: 0 | G163: 0 | H163: 0 | I163: 0 | J163: 0 | K163: 0 | L163: 0 | M163: 0 | N163: 9 | O163: 10 | P163: 0 | Q163: 121 | R163: 0 | S163: 122 | T163: 3 | U163: 0 | V163: 2 | W163: 624 | X163: 60 | Y163: 0
B164: 2/21/19 | C164: 11:00:25 | D164: 2 | E164: 5 | F164: 0 | G164: 0 | H164: 0 | I164: 0 | J164: 0 | K164: 0 | L164: 0 | M164: 0 | N164: 8 | O164: 9 | P164: 0 | Q164: 122 | R164: 0 | S164: 122 | T164: 11 | U164: 0 | V164: 2 | W164: 624 | X164: 44 | Y164: 0
B165: 2/21/19 | C165: 11:00:25 | D165: 3 | E165: 4 | F165: 675 | G165: 1 | H165: 0 | I165: 9 | J165: 180 | K165: 626 | L165: 99 | M165: 110 | N165: 16 | O165: 22
B166: 2/21/19 | C166: 11:00:25 | D166: 7 | E166: 5 | F166: 0 | G166: 0 | H166: 0 | I166: 0 | J166: 0 | K166: 0 | L166: 0 | M166: 0 | N166: 11 | O166: 11 | P166: 0 | Q166: 123 | R166: 0 | S166: 122 | T166: 3 | U166: 0 | V166: 2 | W166: 624 | X166: 44 | Y166: 0
B167: 2/21/19 | C167: 11:00:25 | D167: 8 | E167: 5 | F167: 0 | G167: 0 | H167: 0 | I167: 0 | J167: 0 | K167: 0 | L167: 0 | M167: 0 | N167: 11 | O167: 12 | P167: 0 | Q167: 123 | R167: 0 | S167: 122 | T167: 11 | U167: 0 | V167: 2 | W167: 624 | X167: 60 | Y167: 0
B168: 2/21/19 | C168: 11:00:25 | D168: 9 | E168: 3 | F168: 0 | G168: 0 | H168: 0 | I168: 127 | J168: 5 | K168: 0 | L168: 3 | M168: 0 | N168: 4 | O168: 629 | P168: 10 | Q168: 0
B169: 2/21/19 | C169: 11:00:25 | D169: 10 | E169: 3 | F169: 0 | G169: 0 | H169: 0 | I169: 117 | J169: 11 | K169: 0 | L169: 3 | M169: 0 | N169: 4 | O169: 629 | P169: 19 | Q169: 0
B170: 2/21/19 | C170: 11:00:26 | D170: 1 | E170: 5 | F170: 0 | G170: 0 | H170: 0 | I170: 0 | J170: 0 | K170: 0 | L170: 0 | M170: 0 | N170: 9 | O170: 10 | P170: 0 | Q170: 122 | R170: 0 | S170: 122 | T170: 3 | U170: 0 | V170: 2 | W170: 624 | X170: 60 | Y170: 0
B171: 2/21/19 | C171: 11:00:26 | D171: 2 | E171: 5 | F171: 0 | G171: 0 | H171: 0 | I171: 0 | J171: 0 | K171: 0 | L171: 0 | M171: 0 | N171: 8 | O171: 9 | P171: 0 | Q171: 122 | R171: 0 | S171: 122 | T171: 11 | U171: 0 | V171: 2 | W171: 624 | X171: 44 | Y171: 0
B172: 2/21/19 | C172: 11:00:26 | D172: 3 | E172: 4 | F172: 675 | G172: 1 | H172: 0 | I172: 10 | J172: 2059 | K172: 626 | L172: 99 | M172: 110 | N172: 16 | O172: 22
B173: 2/21/19 | C173: 11:00:26 | D173: 7 | E173: 5 | F173: 0 | G173: 0 | H173: 0 | I173: 0 | J173: 0 | K173: 0 | L173: 0 | M173: 0 | N173: 11 | O173: 11 | P173: 0 | Q173: 123 | R173: 0 | S173: 122 | T173: 3 | U173: 0 | V173: 2 | W173: 624 | X173: 44 | Y173: 0
B174: 2/21/19 | C174: 11:00:26 | D174: 8 | E174: 5 | F174: 0 | G174: 0 | H174: 0 | I174: 0 | J174: 0 | K174: 0 | L174: 0 | M174: 0 | N174: 11 | O174: 11 | P174: 0 | Q174: 123 | R174: 0 | S174: 122 | T174: 11 | U174: 0 | V174: 2 | W174: 624 | X174: 60 | Y174: 0
B175: 2/21/19 | C175: 11:00:26 | D175: 9 | E175: 3 | F175: 0 | G175: 0 | H175: 0 | I175: 127 | J175: 5 | K175: 0 | L175: 3 | M175: 0 | N175: 4 | O175: 629 | P175: 10 | Q175: 0
B176: 2/21/19 | C176: 11:00:26 | D176: 10 | E176: 3 | F176: 0 | G176: 0 | H176: 0 | I176: 117 | J176: 11 | K176: 0 | L176: 3 | M176: 0 | N176: 4 | O176: 629 | P176: 19 | Q176: 0
B177: 2/21/19 | C177: 11:00:27 | D177: 1 | E177: 5 | F177: 0 | G177: 0 | H177: 0 | I177: 0 | J177: 0 | K177: 0 | L177: 0 | M177: 0 | N177: 9 | O177: 10 | P177: 0 | Q177: 122 | R177: 0 | S177: 122 | T177: 3 | U177: 0 | V177: 2 | W177: 624 | X177: 60 | Y177: 0
B178: 2/21/19 | C178: 11:00:27 | D178: 2 | E178: 5 | F178: 0 | G178: 0 | H178: 0 | I178: 0 | J178: 0 | K178: 0 | L178: 0 | M178: 0 | N178: 8 | O178: 9 | P178: 0 | Q178: 122 | R178: 0 | S178: 122 | T178: 11 | U178: 0 | V178: 2 | W178: 624 | X178: 44 | Y178: 0
B179: 2/21/19 | C179: 11:00:27 | D179: 3 | E179: 4 | F179: 675 | G179: 1 | H179: 0 | I179: 11 | J179: 854 | K179: 626 | L179: 99 | M179: 110 | N179: 0 | O179: 22
B180: 2/21/19 | C180: 11:00:27 | D180: 7 | E180: 5 | F180: 0 | G180: 0 | H180: 0 | I180: 0 | J180: 0 | K180: 0 | L180: 0 | M180: 0 | N180: 11 | O180: 11 | P180: 0 | Q180: 122 | R180: 0 | S180: 121 | T180: 3 | U180: 0 | V180: 2 | W180: 624 | X180: 44 | Y180: 0
B181: 2/21/19 | C181: 11:00:27 | D181: 8 | E181: 5 | F181: 0 | G181: 0 | H181: 0 | I181: 0 | J181: 0 | K181: 0 | L181: 0 | M181: 0 | N181: 11 | O181: 12 | P181: 0 | Q181: 123 | R181: 0 | S181: 122 | T181: 11 | U181: 0 | V181: 2 | W181: 624 | X181: 60 | Y181: 0
B182: 2/21/19 | C182: 11:00:27 | D182: 9 | E182: 3 | F182: 0 | G182: 0 | H182: 0 | I182: 127 | J182: 5 | K182: 0 | L182: 3 | M182: 0 | N182: 4 | O182: 629 | P182: 10 | Q182: 0
B183: 2/21/19 | C183: 11:00:27 | D183: 10 | E183: 3 | F183: 0 | G183: 0 | H183: 0 | I183: 118 | J183: 11 | K183: 0 | L183: 3 | M183: 0 | N183: 4 | O183: 629 | P183: 19 | Q183: 0
B184: 2/21/19 | C184: 11:00:28 | D184: 1 | E184: 5 | F184: 0 | G184: 0 | H184: 0 | I184: 0 | J184: 0 | K184: 0 | L184: 0 | M184: 0 | N184: 9 | O184: 10 | P184: 0 | Q184: 122 | R184: 0 | S184: 122 | T184: 3 | U184: 0 | V184: 2 | W184: 624 | X184: 60 | Y184: 0
B185: 2/21/19 | C185: 11:00:28 | D185: 2 | E185: 5 | F185: 0 | G185: 0 | H185: 0 | I185: 0 | J185: 0 | K185: 0 | L185: 0 | M185: 0 | N185: 8 | O185: 9 | P185: 0 | Q185: 122 | R185: 0 | S185: 121 | T185: 11 | U185: 0 | V185: 2 | W185: 624 | X185: 44 | Y185: 0
B186: 2/21/19 | C186: 11:00:28 | D186: 3 | E186: 4 | F186: 678 | G186: 5 | H186: 0 | I186: 76 | J186: 15 | K186: 626 | L186: 99 | M186: 110 | N186: 16 | O186: 22
B187: 2/21/19 | C187: 11:00:28 | D187: 7 | E187: 5 | F187: 0 | G187: 0 | H187: 0 | I187: 0 | J187: 0 | K187: 0 | L187: 0 | M187: 0 | N187: 11 | O187: 11 | P187: 0 | Q187: 123 | R187: 0 | S187: 122 | T187: 3 | U187: 0 | V187: 2 | W187: 624 | X187: 44 | Y187: 0
B188: 2/21/19 | C188: 11:00:28 | D188: 8 | E188: 5 | F188: 0 | G188: 0 | H188: 0 | I188: 0 | J188: 0 | K188: 0 | L188: 0 | M188: 0 | N188: 11 | O188: 11 | P188: 0 | Q188: 123 | R188: 0 | S188: 122 | T188: 11 | U188: 0 | V188: 2 | W188: 624 | X188: 60 | Y188: 0
B189: 2/21/19 | C189: 11:00:28 | D189: 9 | E189: 3 | F189: 0 | G189: 0 | H189: 0 | I189: 127 | J189: 5 | K189: 0 | L189: 3 | M189: 0 | N189: 4 | O189: 628 | P189: 10 | Q189: 0
B190: 2/21/19 | C190: 11:00:28 | D190: 10 | E190: 3 | F190: 0 | G190: 0 | H190: 0 | I190: 117 | J190: 11 | K190: 0 | L190: 3 | M190: 0 | N190: 4 | O190: 629 | P190: 19 | Q190: 0
B191: 2/21/19 | C191: 11:00:29 | D191: 1 | E191: 5 | F191: 0 | G191: 0 | H191: 0 | I191: 0 | J191: 0 | K191: 0 | L191: 0 | M191: 0 | N191: 9 | O191: 10 | P191: 0 | Q191: 122 | R191: 0 | S191: 122 | T191: 3 | U191: 0 | V191: 2 | W191: 624 | X191: 60 | Y191: 0
B192: 2/21/19 | C192: 11:00:29 | D192: 2 | E192: 5 | F192: 0 | G192: 0 | H192: 0 | I192: 0 | J192: 0 | K192: 0 | L192: 0 | M192: 0 | N192: 7 | O192: 9 | P192: 0 | Q192: 122 | R192: 0 | S192: 121 | T192: 11 | U192: 0 | V192: 2 | W192: 624 | X192: 44 | Y192: 0
B193: 2/21/19 | C193: 11:00:29 | D193: 3 | E193: 4 | F193: 676 | G193: 7 | H193: 0 | I193: 13 | J193: 214 | K193: 625 | L193: 99 | M193: 110 | N193: 16 | O193: 22
B194: 2/21/19 | C194: 11:00:29 | D194: 7 | E194: 5 | F194: 0 | G194: 0 | H194: 0 | I194: 0 | J194: 0 | K194: 0 | L194: 0 | M194: 0 | N194: 11 | O194: 11 | P194: 0 | Q194: 123 | R194: 0 | S194: 122 | T194: 3 | U194: 0 | V194: 2 | W194: 624 | X194: 44 | Y194: 0
B195: 2/21/19 | C195: 11:00:29 | D195: 8 | E195: 5 | F195: 0 | G195: 0 | H195: 0 | I195: 0 | J195: 0 | K195: 0 | L195: 0 | M195: 0 | N195: 11 | O195: 12 | P195: 0 | Q195: 123 | R195: 0 | S195: 122 | T195: 11 | U195: 0 | V195: 2 | W195: 624 | X195: 60 | Y195: 0
B196: 2/21/19 | C196: 11:00:29 | D196: 9 | E196: 3 | F196: 0 | G196: 0 | H196: 0 | I196: 127 | J196: 5 | K196: 0 | L196: 3 | M196: 0 | N196: 4 | O196: 629 | P196: 10 | Q196: 0
B197: 2/21/19 | C197: 11:00:29 | D197: 10 | E197: 3 | F197: 0 | G197: 0 | H197: 0 | I197: 117 | J197: 11 | K197: 0 | L197: 3 | M197: 0 | N197: 4 | O197: 629 | P197: 19 | Q197: 0
B198: 2/21/19 | C198: 11:00:30 | D198: 1 | E198: 5 | F198: 0 | G198: 0 | H198: 0 | I198: 0 | J198: 0 | K198: 0 | L198: 0 | M198: 0 | N198: 9 | O198: 10 | P198: 0 | Q198: 122 | R198: 0 | S198: 122 | T198: 3 | U198: 0 | V198: 2 | W198: 624 | X198: 60 | Y198: 0
B199: 2/21/19 | C199: 11:00:30 | D199: 2 | E199: 5 | F199: 0 | G199: 0 | H199: 0 | I199: 0 | J199: 0 | K199: 0 | L199: 0 | M199: 0 | N199: 8 | O199: 9 | P199: 0 | Q199: 122 | R199: 0 | S199: 122 | T199: 11 | U199: 0 | V199: 2 | W199: 624 | X199: 44 | Y199: 0
B200: 2/21/19 | C200: 11:00:30 | D200: 3 | E200: 4 | F200: 675 | G200: 6 | H200: 0 | I200: 0 | J200: 2 | K200: 625 | L200: 99 | M200: 110 | N200: 16 | O200: 22
B201: 2/21/19 | C201: 11:00:30 | D201: 7 | E201: 5 | F201: 0 | G201: 0 | H201: 0 | I201: 0 | J201: 0 | K201: 0 | L201: 0 | M201: 0 | N201: 11 | O201: 11 | P201: 0 | Q201: 122 | R201: 0 | S201: 122 | T201: 3 | U201: 0 | V201: 2 | W201: 624 | X201: 44 | Y201: 0
B202: 2/21/19 | C202: 11:00:30 | D202: 8 | E202: 5 | F202: 0 | G202: 0 | H202: 0 | I202: 0 | J202: 0 | K202: 0 | L202: 0 | M202: 0 | N202: 11 | O202: 12 | P202: 0 | Q202: 122 | R202: 0 | S202: 121 | T202: 11 | U202: 0 | V202: 2 | W202: 624 | X202: 60 | Y202: 0
B203: 2/21/19 | C203: 11:00:30 | D203: 9 | E203: 3 | F203: 0 | G203: 0 | H203: 0 | I203: 126 | J203: 5 | K203: 0 | L203: 3 | M203: 0 | N203: 4 | O203: 629 | P203: 10 | Q203: 0
... 4297 more rows
